Workbook

Sheet Instructions
E3: Minimum Energy Performance Data Center Calculator LEED 2009 and LEED v4 - EA Prerequisite Minimum Energy Performance and EA Credit Optimize Energy Performance
E5: General Information
E6: This calculator is provided to assist data center project teams in the documentation of IT Server energy and Electrical System Efficiency savings. For all data center projects where savings is being claimed from the IT Systems or the Electrical Systems, supporting documentation must be provided to demonstrate that all strategies/technologies being claimed are being employed within the data center. This calculator may be used as supporting documentation to justify savings related to IT systems or electrical systems. The calculator creates a representative baseline for most data center topologies and IT systems. Since this calculator will not create a representative baseline for every data center application, project teams are still welcome to create their own Baseline, but in this case the project team is responsible to provide justification for all Baseline assumptions used. By using this calculator, project teams are not required to define their own baseline, or provide justification for the Baseline IT and electrical assumptions. Since it is well known that many data center projects do not know the exact types of IT equipment that will be used in their data center until well after the end of construction, this calculator can provide default values for many of these systems.
E8: The results from this calculator may be used in one of two ways:
E10: 1. The calculated energy savings from the IT and Electrical Systems will be calculated in kWh and can be directly claimed without needing to run another energy model. This approach is simpler, in that no additional energy models are required, but it will likely lead to a conservative estimate of savings since it does not show the HVAC savings associated with lower IT and electrical loads.
E11: 2. The calculated electrical load for the Baseline IT and Electrical Systems can be used as inputs to an exceptional calculation method, where the Baseline Case model is revised to show the Baseline IT and electrical loads from this calculator. This approach requires additional energy modeling, and additional efforts to report the outputs in the LEED calculator/forms, but will lead to a more accurate estimate of savings, since it will calculate the HVAC savings associated with the lower IT and electrical loads.
E13: Instructions
E14: Step 1.
E15: Enable macros.
E16: Note: This calculator is for use with Excel for Mac 2011 and Excel 2007 or later.
E18: Step 2.
E19: Enter the information relating to the Proposed Data Center topology and installed equipment capacities. The information entered here dictates the equipment that is used in calculating the baseline equipment capacities and efficiencies.
E21: Data center topology | K21: =IF(Instructions!H21="Tier I",1,IF(Instructions!H21="Tier II",2,IF(Instructions!H21="Tier III",3,4))) -> 4
E23: Total IT equipment load (kW)
E25: IT load influenced by project (%)
E27: Startup IT load (kW)
E29: Total installed PDU capacity (kW)
E31: Total installed UPS capacity (kW)
E33: PDU or UPS capacity influenced by project (%)
E35: Step 3.
E36: Complete the Server Efficiency tab. The information entered into this tab focuses on three main elements, the breakdown of equipment types in the data center, the virtualization rate, and the server energy consumption. The combination of these elements determine the equivalent number of workloads being performed by the proposed servers and this number is used to calculate the IT Baseline.
E38: IT Equipment Breakdown The majority of IT equipment within a data center can be broken down into three main types of equipment, Compute, Storage, and Networking. Within the compute category the equipment can be further classified into Servers and Mainframe/Other. This calculator assumes that only computing equipment classified as Servers can be virtualized. The IT Equipment load for the project is taken from the Project Information tab and the project team will enter in the breakdown of IT equipment by percentage here.
E40: Server Virtualization Rate The virtualization rate is comprised of three main attributes, the percentage of physical servers that host virtual servers, the consolidation ratio, and the utilization rate. The percentage of servers using virtualization is simply defining the percentage of servers that will host virtual servers and the percentage of servers that will be traditional single application servers. The consolidation ratio defines the average number of virtual servers that will be hosted on each physical machine. The utilization rate is a measure of what percentage of the time the processor is active, versus sitting idle. Based on discussions with the ad hoc committee and research into industry studies on server utilization, it was concluded that 12% is a valid utilization figure to be used as a part of the base case energy use calculation. One of the main benefits of virtualization is to increase the overall processor utilization by taking advantage of the diversity inherent in the server usage. As the utilization increases the servers are in effect doing more computing for less energy because the idle consumption is constant whether or not any computing is happening.
E42: Server Energy Consumption The energy consumption of the server is calculated based on the idle power consumption, the maximum power consumption, and the utilization rate as discussed above. If the type of servers being used in the data center are known, the idle power and maximum power can be entered into the spreadsheet, otherwise, if the servers are Energy Star, the average power draw of the Energy Star servers can be used. Power Management software can be an effective strategy for reducing the power consumption of servers when they are idling. If power management software is used the percentage of servers utilizing it as well as the reduction in idle power are entered here as well. The average power draw for all servers is then calculated taking all of these factors into account and is used to determine the equivalent server workloads.
E44: Step 4.
E45: Complete the Electrical Efficiency tab. The values calculated from the Server Efficiency tab are used as the power draw for the electrical systems on the Electrical System Efficiency tab. The first step is to indicate, using the radio button, whether or not the Proposed building's PDUs utilize static transfer switches. Next, using the checkboxes, select all of the types of equipment that are being used in the calculation of the Proposed building's electrical infrastructure efficiency. These steps ensure that the Baseline electrical infrastructure is calculated using similar equipment to the Proposed. After this is done the energy consumption due to the Baseline electrical system infrastructure will be calculated.
E47: To determine the electrical consumption of the Proposed Building select the type of UPS and the size range. This will calculate the amount of electrical loss expected under various IT loadings based upon USGBC efficiency data and the size of the UPSs and PDUs in the project. If the efficiency of the total electrical system (including all components checked for the Baseline calculation) is known for 25%, 50%, 75%, and 100% IT loadings then these efficiency values may be manually entered into the Minimum Energy Performance Calculator instead of using default values.
E49: The Electrical System Efficiency tab also calculates the anticipated losses associated with the electrical system at the Startup loading condition for both the Proposed and Baseline IT loads. Since most electrical equipment operates less efficiently under partial loading conditions, these values can be used in the energy model to help determine the data center PUE at start up as compared with the PUE under full IT loading.
E51: Step 5.
E52: After entering all relevant project information into the Server Efficiency and Electrical System Efficiency tabs, the calculated values will be collected on the Summary tab. The data on this tab is presented in two tables, one showing annual energy consumption (in kWh), and one showing energy model load demand values (in kW).
E54: Step 6.
E55: Once the calculator is complete, the two final steps are documenting the energy savings associated with the IT and Electrical systems and determining the PUE for Startup and full build out.
E57: Energy Savings Documentation As noted above, the documentation of energy savings associated with the IT and Electrical systems can either use the simplified, conservative approach or take the additional step of performing an additional ASHRAE Baseline energy model utilizing the calculated values from this tool. If the project is using the simplified approach, simply use the information on the Summary tab to complete the Minimum Energy Performance Calculator. For projects looking to claim the HVAC savings associated with the reduction in IT and electrical loads, create an additional ASHRAE Baseline model with the only difference being the electrical loads assigned to the appropriate IT server rooms and electrical support spaces. Enter the results of this simulation into the Minimum Energy Performance Calculator and provide any relevant input and output reports as would be done for the standard ASHRAE Baseline model in the LEED credit form.
E59: PUE Calculations for Startup and Full Build Out In order to calculate the Startup PUE an additional energy model must be created. This model should be identical to the Proposed case energy model including all HVAC equipment at designed capacities and efficiencies. The only difference between the Startup model and the Proposed model is the electrical load associated with the IT server rooms and electrical support spaces. These values are located on the Summary tab and should be input into the appropriate spaces. Enter the results of this simulation into the Minimum Energy Performance Calculator and provide any relevant input and output reports as would be done for the standard Proposed case model in the LEED credit form. Based on the information provided in the Proposed case energy model, the Minimum Energy Performance Calculator will automatically calculate the PUE for the full build out.
K61: UPS Type
K62: Double Conversion (VFI-S)
K63: Line Interactive (VI-S)
K64: Standby (VFD)
K65: UPS Size
K66: 10<20kVA
K67: 20<40kVA
K68: 40<200kVA
K69: 200kVA and up
K71: Topology
K72: Tier I
K73: Tier II
K74: Tier III
K75: Tier IV

Sheet Server Efficiency
B2: IT (Server) Equipment Efficiency
B5: Proposed IT (Server) Energy Usage | M5: Baseline IT Energy Usage | R5: Summary
B7: Proposed IT | F7: Proposed IT influenced by project | J7: Outside project scope | M7: Average server utilization (%) | O7: 0.12 | R7: Baseline IT energy consumption (kWh) | S7: =IFERROR(O23+(D9-H15-J15)*8760, 0) -> 0 | W7: Utilization | X7: 0.12 | Y7: =Z7-(($AF$7-$X$7)/8) -> 0.1675 | Z7: 0.215 | AA7: 0.2625 | AB7: 0.31 | AC7: 0.3575 | AD7: 0.405 | AE7: 0.4525 | AF7: 0.5
B9: Total IT equipment (kW) | D9: =Instructions!$H$23 -> 0 | F9: Influenced by project (kW) | H9: =Instructions!$H$23*Instructions!$H$25 -> 0 | M9: Baseline server virtualization (%) | O9: 0.2 | R9: Proposed IT energy consumption (kWh) | S9: =IFERROR(O25+(D9-H15-J15)*8760, 0) -> 0 | W9: Workloads | X9: 1 | Y9: =Z9-(($AF$9-1)/8) -> 0.875 | Z9: =AA9-(($AF$9-$X$9)/8) -> 0.75 | AA9: 0.625 | AB9: 0.5 | AC9: 0.375 | AD9: 0.25 | AE9: 0.125 | AF9: ='Server Efficiency'!H27 -> 0
B11: Total compute (%) | F11: Total compute (kW) | H11: =D11*H9 -> 0 | J11: =IFERROR($D$9*(1-$H$9/$D$9)*D11,0) -> 0 | M11: Equivalent number of servers based on proposed conditions | O11: =IFERROR(TRUNC((IF(J33,H50,IF(J41,H72,H61)))/(10*O9+(1-O9))), "") -> 0 | R11: Average annual IT energy savings (%) | S11: =IFERROR(IF(S9>0,((S7-S9)/S7),0), "") -> 0 | W11: Machines | X11: =AF9 -> 0 | Y11: =AE9 -> 0.125 | Z11: =AD9 -> 0.25 | AA11: =AC9 -> 0.375 | AB11: =AB9 -> 0.5 | AC11: =AA9 -> 0.625 | AD11: =Z9 -> 0.75 | AE11: =Y9 -> 0.875 | AF11: =X9 -> 1
B13: Mainframe/other (%) | F13: Mainframe/other (kW) | H13: =D13*H11 -> 0 | J13: =D13*$J$11 -> 0 | M13: EPA Qualified Product List for Servers | W13: Reduction in Machines | X13: =IFERROR(1-X11/$X$11,0) -> 0 | Y13: 0 | Z13: 0 | AA13: 0 | AB13: 0 | AC13: 0 | AD13: 0 | AE13: 0 | AF13: 0
B15: Servers (%) | F15: Servers (kW) | H15: =D15*H11 -> 0 | J15: =D15*$J$11 -> 0 | M15: Average maximum power (watts) | O15: ='Qualified Product List'!$AP$140 -> 210.2152672
B17: Compute (%) | D17: =D13+D15 -> 0 | F17: Compute (kW) | H17: =H13+H15 -> 0 | J17: =J15+J13 -> 0 | M17: Average idle power (watts) | O17: ='Qualified Product List'!$AO$140 -> 115.2061069 | W17: Assumptions made in this analysis:
B19: Storage (%) | F19: Storage (kW) | H19: =D19*H9 -> 0 | J19: =IFERROR($D$9*(1-$H$9/$D$9)*D19,0) -> 0 | M19: Average server power at baseline conditions (watts) | O19: =((1-O9)*(O17+(O15-O17)*O7))+(O9*(O17+(O15-O17)*0.5)) -> 133.8279023 | W19: 1. The average server utilization is 12% . This value was established from informal data from users, the Ad Hoc IT committee and research on industry practices. 2. It is assumed that a server's average utilization will never be below 12% for these calculations. 3. All non-virtualized server will have 12% average utilization. 4. A server cannot exceed 50% utilization. 5. The baseline virtualization rate is assumed to be 20% at a consolidation rate of 10:1 with 50% virtualized server utilization. 6. If the server utilization is increased without reducing the number of physical servers, the overall energy consumption will increase. 7. Reducing physical servers without increasing utilization will NOT result in energy savings. 8. It is assumed that all servers in the startup IT load (up to the percentage influenced by the project) have the virtualization, and power management characteristics as input on this sheet.
B21: Network (%) | F21: Network (kW) | H21: =D21*H9 -> 0 | J21: =IFERROR($D$9*(1-$H$9/$D$9)*D21,0) -> 0 | M21: Equivalent server load (kW) | O21: =IFERROR(ROUNDUP(O11*O19/1000,0), "") -> 0
B23: Percentage of servers using virtualization (%) | J23: 0.2 | M23: Baseline server energy consumption (kWh) | O23: =IFERROR((ROUND(O19*O11/1000,0))*8760, "") -> 0
B25: Virtualized average server utilization (%) | J25: 0.5 | M25: Proposed server energy consumption (kWh) | O25: =IF(J33,(ROUND((H47*H48+J47*J48)/1000,0))*8760,IF(J41,(ROUND((H69*H70+J69*J70)/1000,0))*8760,(ROUND((H58*H59+J58*J59)/1000,0))*8760)) -> 0
B27: Consolidation ratio (x:1) | J27: 10
B29: Power management reduction (%)
B31: Amount of servers using power management (%)
B32: Select all that apply:
B33: Number of proposed servers known | J33: FALSE
B34: By entering the proposed number of servers, the average power utilization per server is calculated by dividing the server kW by the number of servers. This option should take into account the average server power including any power management options deployed.
B37: Enable power management functionality | J37: FALSE
B38: Allow for a software controlled reduction in idle power of servers based on the parameters above. Supporting documentation showing the characteristics of the power management plan must be provided.
B41: Use default EPA average server powers | J41: FALSE
B42: The average maximum power and average idle power are calculated based on all ENERGY STAR-qualified servers.
B46: Number of Proposed Servers Known
B47: Average power at utilization (watts) (Pn = Pidle + (Pmax – Pidle) / 100 * n) | H47: =IFERROR($H$15*1000/H48,0) -> 0 | J47: =($J$23)*J52+(1-$J$23)*J53 -> 133.8279023
B48: Number of proposed servers | J48: =TRUNC($J$15*1000/J47) -> 0
B49: Equivalent workloads | H49: =IFERROR(FLOOR(((cR*$H$23)+(1-($H$23)))*H48,1),0) -> 0 | J49: =FLOOR((10*$J$23*J48)+(1-($J$23))*J48,1) -> 0
B50: Total equivalent workloads for project | H50: =IFERROR(H49+J49, 0) -> 0
B52: Average Power Draw | C52: Virtualized servers (watts) | J52: ='Qualified Product List'!$AO$140+('Qualified Product List'!$AP$140-'Qualified Product List'!$AO$140)*$J$25 -> 162.710687
C53: Non-virtualized servers (watts) | J53: ='Qualified Product List'!$AO$140+('Qualified Product List'!$AP$140-'Qualified Product List'!$AO$140)*$O$7 -> 126.6072061
B55: =IF(J37,"As-Designed Server Powers with Power Management Utilized", "As-Designed Average Server Powers") -> As-Designed Average Server Powers
B56: Average maximum power (watts) | J56: ='Qualified Product List'!$AP$140 -> 210.2152672
B57: Average idle power (watts) | J57: ='Qualified Product List'!$AO$140 -> 115.2061069
B58: Average power at utilization (watts) (Pn = Pidle + (Pmax – Pidle) / 100 * n) | H58: =IFERROR(($H$23)*H63+((1-$H$23))*H64,0) -> 0 | J58: =($J$23)*J63+(1-$J$23)*J64 -> 133.8279023
B59: Estimated number of proposed servers | H59: =IFERROR(TRUNC($H$15*1000/H58),0) -> 0 | J59: =TRUNC($J$15*1000/J58) -> 0
B60: Equivalent workloads | H60: =IFERROR(FLOOR((cR*$H$23*H59)+(1-($H$23))*H59,1),0) -> 0 | J60: =FLOOR((10*$J$23*J59)+(1-($J$23))*J59,1) -> 0
B61: Total equivalent workloads for project | H61: =IFERROR(H60+J60, 0) -> 0
B63: Average Power Draw | C63: Virtualized servers (watts) | H63: =IF(J37,($H$31)*(H57*((1-$H$29))+(H56-H57*((1-$H$29)))*$H$25)+((1-$H$31))*(H57+(H56-H57)*$H$25),H57+(H56-H57)*$H$25) -> 0 | J63: =J57+(J56-J57)*$J$25 -> 162.710687
C64: Non-virtualized servers (watts) | H64: =IF(J37,($H$31)*(H57*((1-$H$29))+(H56-H57*((1-$H$29)))*$O$7)+((1-$H$31))*(H57+(H56-H57)*$O$7),H57+(H56-H57)*$O$7) -> 0 | J64: =J57+(J56-J57)*$O$7 -> 126.6072061
B66: =IF(J37,"Default EPA Average Server Powers with Power Management Utilized", "Default EPA Average Server Powers") -> Default EPA Average Server Powers
B67: Average maximum power (watts) | H67: ='Qualified Product List'!$AP$140 -> 210.2152672 | J67: ='Qualified Product List'!$AP$140 -> 210.2152672
B68: Average idle power (watts) | H68: =IF(J37,(($H$31)*((1-$H$29))*'Qualified Product List'!$AO$140)+(((1-$H$31))*'Qualified Product List'!$AO$140),'Qualified Product List'!$AO$140) -> 115.2061069 | J68: ='Qualified Product List'!$AO$140 -> 115.2061069
B69: Average power at utilization (watts) (Pn = Pidle + (Pmax – Pidle) / 100 * n) | H69: =IFERROR(($H$23*H74)+(1-$H$23)*H75,0) -> 126.6072061 | J69: =($J$23)*J74+(1-$J$23)*J75 -> 133.8279023
B70: Estimated number of proposed servers | H70: =IFERROR(TRUNC($H$15*1000/H69),0) -> 0 | J70: =TRUNC($J$15*1000/J69) -> 0
B71: Equivalent workloads | H71: =IFERROR(FLOOR((cR*$H$23*H70)+(1-$H$23)*H70,1),0) -> 0 | J71: =FLOOR((10*$J$23*J70)+(1-($J$23))*J70,1) -> 0
B72: Total equivalent workloads for project | H72: =IFERROR(H71+J71, 0) -> 0
B74: Average Power Draw | C74: Virtualized servers (watts) | H74: =H68+(H67-H68)*$H$25 -> 115.2061069 | J74: =J68+(J67-J68)*$J$25 -> 162.710687
C75: Non-virtualized servers (watts) | H75: =H68+(H67-H68)*$O$7 -> 126.6072061 | J75: =J68+(J67-J68)*$O$7 -> 126.6072061
B77: Effective consolidation ratio across virtualized servers (x:1) | H77: =X9+(AF9-X9)*(($H$25-X7)/(AF7-X7)) -> 1.315789474

Sheet Startup Server Efficiency
B2: Startup IT (Server) Equipment Efficiency
B5: Proposed Startup IT Energy Usage | M5: Baseline Startup IT Energy Usage
B7: Proposed Startup IT | F7: Proposed IT influenced by project | J7: Outside project scope | M7: Average server utilization (%) | O7: 0.12
B9: Total startup IT equipment (kW) | D9: =Instructions!H27 -> 0 | F9: Influenced by project (kW) | H9: =IF(D9<=Instructions!$H$23*Instructions!$H$25,D9,Instructions!$H$23*Instructions!$H$25) -> 0 | M9: Baseline server virtualization (%) | O9: 0.2
B11: Total compute (%) | D11: ='Server Efficiency'!$D$11 -> 0 | F11: Total compute (kW) | H11: =D11*H9 -> 0 | J11: =IFERROR($D$9*(1-$H$9/$D$9)*D11,0) -> 0 | M11: Equivalent number of servers based on proposed conditions | O11: =IFERROR(TRUNC((IF(J33,H42,IF(J35,H64,H53)))/(10*O9+(1-O9))), "") -> 0
B13: Mainframe/other (%) | D13: ='Server Efficiency'!$D$13 -> 0 | F13: Mainframe/other (kW) | H13: =D13*H11 -> 0 | J13: =D13*$J$11 -> 0 | M13: EPA Qualified Product List for Servers
B15: Servers (%) | D15: ='Server Efficiency'!$D$15 -> 0 | F15: Servers (kW) | H15: =D15*H11 -> 0 | J15: =D15*$J$11 -> 0 | M15: Average maximum power (watts) | O15: ='Qualified Product List'!$AP$140 -> 210.2152672
B17: Compute (%) | D17: =D13+D15 -> 0 | F17: Compute (kW) | H17: =H13+H15 -> 0 | J17: =J15+J13 -> 0 | M17: Average idle power (watts) | O17: ='Qualified Product List'!$AO$140 -> 115.2061069
B19: Storage (%) | D19: ='Server Efficiency'!$D$19 -> 0 | F19: Storage (kW) | H19: =D19*H9 -> 0 | J19: =IFERROR($D$9*(1-$H$9/$D$9)*D19,0) -> 0 | M19: Average server power at baseline conditions (watts) | O19: =((1-O9)*(O17+(O15-O17)*O7))+(O9*(O17+(O15-O17)*0.5)) -> 133.8279023
B21: Network (%) | D21: ='Server Efficiency'!$D$21 -> 0 | F21: Network (kW) | H21: =D21*H9 -> 0 | J21: =IFERROR($D$9*(1-$H$9/$D$9)*D21,0) -> 0 | M21: Equivalent server load (kW) | O21: =IFERROR(ROUNDUP(O11*O19/1000,0), "") -> 0
B23: Percentage of servers using virtualization (%) | H23: ='Server Efficiency'!$H$23 -> 0 | J23: 0.2 | M23: Baseline server energy consumption (kWh) | O23: =IFERROR((ROUND(O19*O11/1000,0))*8760, "") -> 0
B25: Virtualized average server utilization (%) | H25: ='Server Efficiency'!$H$25 -> 0 | J25: 0.5
B27: Consolidation ratio (x:1) | H27: ='Server Efficiency'!$H$27 -> 0 | J27: 10 | M27: Baseline startup IT energy consumption (kWh) | O27: =IFERROR(O23+(D9-H15-J15)*8760, 0) -> 0
B29: Power management reduction (%) | H29: ='Server Efficiency'!H29 -> 0
B31: Amount of servers using power management (%) | H31: ='Server Efficiency'!H31 -> 0
B33: Number of proposed servers known | J33: FALSE
B34: Enable power management functionality | J34: FALSE
B35: Use default EPA average server powers | J35: FALSE
B38: Number of Proposed Servers Known
B39: Average power at utilization (watts) (Pn = Pidle + (Pmax – Pidle) / 100 * n) | H39: =IFERROR($H$15*1000/H40,0) -> 0 | J39: =($J$23)*J44+(1-$J$23)*J45 -> 133.8279023
B40: Number of proposed servers | H40: =IFERROR(IF(H9>=D9,'Server Efficiency'!H48-(Instructions!$H$23*Instructions!$H$25-Instructions!$H$27)/(Instructions!$H$23*Instructions!$H$25)*'Server Efficiency'!H48,'Server Efficiency'!H48),0) -> 0 | J40: =TRUNC($J$15*1000/J39) -> 0
B41: Equivalent workloads | H41: =IFERROR(FLOOR(((cR*$H$23)+(1-($H$23)))*H40,1),0) -> 0 | J41: =FLOOR((10*$J$23*J40)+(1-($J$23))*J40,1) -> 0
B42: Total equivalent workloads for project | H42: =IFERROR(H41+J41, 0) -> 0
G43: TRUE
B44: Average Power Draw | C44: Virtualized servers (watts) | J44: ='Qualified Product List'!$AO$140+('Qualified Product List'!$AP$140-'Qualified Product List'!$AO$140)*$J$25 -> 162.710687
C45: Non-virtualized servers (watts) | J45: ='Qualified Product List'!$AO$140+('Qualified Product List'!$AP$140-'Qualified Product List'!$AO$140)*$O$7 -> 126.6072061
B47: =IF(J34,"As-Designed Server Powers with Power Management Utilized", "As-Designed Average Server Powers") -> As-Designed Average Server Powers
B48: Average maximum power (watts) | H48: ='Server Efficiency'!H56 -> 0 | J48: ='Qualified Product List'!$AP$140 -> 210.2152672
B49: Average idle power (watts) | H49: ='Server Efficiency'!H57 -> 0 | J49: ='Qualified Product List'!$AO$140 -> 115.2061069
B50: Average power at utilization (watts) (Pn = Pidle + (Pmax – Pidle) / 100 * n) | H50: =IFERROR(($H$23)*H55+((1-$H$23))*H56,0) -> 0 | J50: =($J$23)*J55+(1-$J$23)*J56 -> 133.8279023
B51: Estimated number of proposed servers | H51: =IFERROR(TRUNC($H$15*1000/H50),0) -> 0 | J51: =TRUNC($J$15*1000/J50) -> 0
B52: Equivalent workloads | H52: =IFERROR(FLOOR((cR*$H$23*H51)+(1-($H$23))*H51,1),0) -> 0 | J52: =FLOOR((10*$J$23*J51)+(1-($J$23))*J51,1) -> 0
B53: Total equivalent workloads for project | H53: =IFERROR(H52+J52, 0) -> 0
B55: Average Power Draw | C55: Virtualized servers (watts) | H55: =IF(J29,($H$31)*(H49*((1-$H$29))+(H48-H49*((1-$H$29)))*$H$25)+((1-$H$31))*(H49+(H48-H49)*$H$25),H49+(H48-H49)*$H$25) -> 0 | J55: =J49+(J48-J49)*$J$25 -> 162.710687
C56: Non-virtualized servers (watts) | H56: =IF(J34,($H$31)*(H49*((1-$H$29))+(H48-H49*((1-$H$29)))*$O$7)+((1-$H$31))*(H49+(H48-H49)*$O$7),H49+(H48-H49)*$O$7) -> 0 | J56: =J49+(J48-J49)*$O$7 -> 126.6072061
G57: TRUE
B58: =IF(J34,"Default EPA Average Server Powers with Power Management Utilized", "Default EPA Average Server Powers") -> Default EPA Average Server Powers
B59: Average maximum power (watts) | H59: ='Qualified Product List'!$AP$140 -> 210.2152672 | J59: ='Qualified Product List'!$AP$140 -> 210.2152672
B60: Average idle power (watts) | H60: =IF(J29,(($H$31)*((1-$H$29))*'Qualified Product List'!$AO$140)+(((1-$H$31))*'Qualified Product List'!$AO$140),'Qualified Product List'!$AO$140) -> 115.2061069 | J60: ='Qualified Product List'!$AO$140 -> 115.2061069
B61: Average power at utilization (watts) (Pn = Pidle + (Pmax – Pidle) / 100 * n) | H61: =IFERROR(($H$23*H66)+(1-$H$23)*H67,0) -> 126.6072061 | J61: =($J$23)*J66+(1-$J$23)*J67 -> 133.8279023
B62: Estimated number of proposed servers | H62: =IFERROR(TRUNC($H$15*1000/H61),0) -> 0 | J62: =TRUNC($J$15*1000/J61) -> 0
B63: Equivalent workloads | H63: =IFERROR(FLOOR((cR*$H$23*H62)+(1-$H$23)*H62,1),0) -> 0 | J63: =FLOOR((10*$J$23*J62)+(1-($J$23))*J62,1) -> 0
B64: Total equivalent workloads for project | H64: =IFERROR(H63+J63, 0) -> 0
B66: Average Power Draw | C66: Virtualized servers (watts) | H66: =H60+(H59-H60)*$H$25 -> 115.2061069 | J66: =J60+(J59-J60)*$J$25 -> 162.710687
C67: Non-virtualized servers (watts) | H67: =H60+(H59-H60)*$O$7 -> 126.6072061 | J67: =J60+(J59-J60)*$O$7 -> 126.6072061
B69: Effective consolidation ratio across virtualized servers (x:1 | H69: ='Server Efficiency'!cR -> 1.315789474

Sheet Electrical System Efficiency
B2: Electrical System Efficiency
B5: Proposed Electrical System Efficiency | L5: Baseline Electrical System Efficiency | V5: Baseline and Proposed Case Comparison
B7: Select one of the following: | L7: Select all that apply. The following components are included in analysis: | V7: Baseline annual energy use (kWh) | Y7: =Q31*8760 -> 0
C9: Default efficiency values. Utilizes the USGBC-provided efficiency values for all components included in the analysis. | M9: PDUs with STS | N9: TRUE | O9: UPS | P9: TRUE | Q9: Switchgear | R9: TRUE | S9: Mains Transformer | V9: Proposed annual energy use (kWh) | Y9: =IF(B13=1,G31*8760,G50*8760) -> 0
C11: User-provided data. Enter the efficiency values at 25%, 50%, 75%, and 100% of the design IT load. Make sure to include the efficiency for all components included in the analysis and provide supporting documentation for the efficiency values of all components. | M11: PDUs without STS | N11: TRUE | O11: Generator | P11: TRUE | Q11: Distribution Wiring | V11: Startup annual energy use (kWh) | Y11: =IF(B13=1,G33*8760,G52*8760) -> 0
L12: 1
B13: 1
B14: Total IT load (kW) | I14: ='Server Efficiency'!D9 -> 0 | L14: Total IT load (kW) | S14: =IFERROR('Server Efficiency'!S7/8760,"") -> 0 | V14: Annual energy savings (kWh) | Y14: =Y7-Y9 -> 0
B16: UPS type | D16: =N16 -> Double Conversion (VFI-S) | L16: UPS type | N16: Double Conversion (VFI-S) | V16: Annual energy savings (%) | Y16: =IFERROR((Y7-Y9)/Y7,0) -> 0
B18: UPS size range | D18: =N18 -> 10<20kVA | L18: UPS size range | N18: =IF(S14<40,Instructions!K66,IF(S14<80,Instructions!K67,IF(S14<400,Instructions!K68,Instructions!K69))) -> 10<20kVA
B20: UPS sizing (per unit of IT / total kW) | G20: =IFERROR(I20/$I$14,0) -> 0 | I20: =Instructions!$H$31 -> 0 | L20: UPS sizing (per unit of IT / total kW) | Q20: =M77 -> 2.4 | S20: =IFERROR($S$14*Q20*Q22,"") -> 0 | V20: Assumptions made:
B22: UPS Instances in System | G22: 1 | L22: UPS Instances in System | Q22: =Q77 -> 1
B24: PDU sizing (per unit of IT / total kW) | G24: =IFERROR(I24/$I$14,0) -> 0 | I24: =Instructions!$H$29 -> 0 | L24: PDU sizing (per unit of IT / total kW) | Q24: =M78 -> 2.2 | S24: =IFERROR($S$14*Q24*1,"") -> 0 | V24: 1. The IT load is assumed to be a constant 100% of IT load for the Proposed Design. 2. The Startup IT load is assumed to be a constant 100% of the Startup Load. 3. The calculated loss % when using USGBC-provided efficiency values assumes that only the percentage of electrical equipment influenced by the project uses the equipment selected with the remainder of the equipment at the baseline efficiency. 4. The calculated loss (kw) when using user-provided efficiency values assumes that the loss factors provided only apply to the percentage of electrical equipment influenced by the project with the remainder of the equipment at baseline efficiency. 5. To calculate the Startup efficiency for user-provided efficiency values, linear interpolation is assumed between entered values. This value can be overwritten. 6. The efficiency curves for the proposed case are based on the as-designed efficiency for the percentage of electrical equipment influenced by the project and are set to the Baseline value for the remaining portion.
B26: Default Efficiency Values
E27: Loss (Percent of IT Load) | G27: Loss (kW) | I27: Efficiency (%) | O27: Loss (Percent of IT Load) | Q27: Loss (kW) | S27: Efficiency (%)
C28: 25% load | D28: 0.25 | E28: =IF($B$13=1,((($V$98+0.25*$W$98+(0.25)^2*$X$98)/0.25)*Instructions!$H$33)+(($V$99+0.25*$W$99+0.25*0.25*$X$99)/0.25)*(1-Instructions!$H$33),0) -> 0.06985882717 | G28: =$I$14*E28*0.25 -> 0 | I28: =IF($B$13=1,1/(1+E28),0) -> 0.9347027613 | M28: 25% Load | O28: =($V$85+0.25*$W$85+0.25*0.25*$X$85)/0.25 -> 0.4786565773 | Q28: =$S$14*O28*0.25 -> 0 | S28: =1/(1+O28) -> 0.6762895559
C29: 50% load | D29: 0.5 | E29: =IF($B$13=1,((($V$98+0.5*$W$98+(0.5)^2*$X$98)/0.5)*Instructions!$H$33)+(($V$99+0.5*$W$99+0.5*0.5*$X$99)/0.5)*(1-Instructions!$H$33),0) -> 0.0531039252 | G29: =$I$14*E29*0.5 -> 0 | I29: =IF($B$13=1,1/(1+E29),0) -> 0.9495738987 | M29: 50% Load | O29: =($V$85+0.5*$W$85+0.5*0.5*$X$85)/0.5 -> 0.2674757301 | Q29: =$S$14*O29*0.5 -> 0 | S29: =1/(1+O29) -> 0.7889697422
C30: 75% load | D30: 0.75 | E30: =IF($B$13=1,((($V$98+0.75*$W$98+(0.75)^2*$X$98)/0.75)*Instructions!$H$33)+(($V$99+0.75*$W$99+0.75*0.75*$X$99)/0.75)*(1-Instructions!$H$33),0) -> 0.05001568991 | G30: =$I$14*E30*0.75 -> 0 | I30: =IF($B$13=1,1/(1+E30),0) -> 0.9523667214 | M30: 75% Load | O30: =($V$85+0.75*$W$85+0.75*0.75*$X$85)/0.75 -> 0.2040112596 | Q30: =$S$14*O30*0.75 -> 0 | S30: =1/(1+O30) -> 0.8305570168
C31: 100% Load | D31: 1 | E31: =IF($B$13=1,((($V$98+1*$W$98+(1)^2*$X$98)/1)*Instructions!$H$33)+(($V$99+1*$W$99+1*1*$X$99)/1)*(1-Instructions!$H$33),0) -> 0.05034412128 | G31: =$I$14*E31*1 -> 0 | I31: =IF($B$13=1,1/(1+E31),0) -> 0.9520689265 | M31: 100% Load | O31: =($V$85+1*$W$85+1*1*$X$85)/1 -> 0.1774758833 | Q31: =$S$14*O31*1 -> 0 | S31: =1/(1+O31) -> 0.8492742944
C33: Startup | D33: =IFERROR(Instructions!$H$27/Instructions!$H$23,1) -> 1 | E33: =IF($B$13=1,((($V$98+D33*$W$98+(D33)^2*$X$98)/D33)*Instructions!$H$33)+(($V$99+D33*$W$99+D33*D33*$X$99)/D33)*(1-Instructions!$H$33),0) -> 0.05034412128 | G33: =ROUND(I14*E33*D33,0) -> 0 | I33: =IF($B$13=1,1/(1+E33),0) -> 0.9520689265 | M33: Startup | N33: =IFERROR(('Startup Server Efficiency'!O27/8760)/S14,1) -> 1 | O33: =($V$85+(N33*1)*$W$85+((N33)^2*1*1)*$X$85)/(N33*1) -> 0.1774758833 | Q33: =ROUND(S14*O33*N33,0) -> 0 | S33: =1/(1+O33) -> 0.8492742944
B45: User-Provided Data
E46: Loss (Percent of IT Load) | G46: Loss (kW) | I46: Efficiency (%)
C47: 25% load | D47: 0.25 | G47: =IF(AND(NOT(ISBLANK(E47)),$B$13=2),(E47*Instructions!$H$33+(($V$99+0.25*$W$99+0.25*0.25*$X$99)/0.25)*(1-Instructions!$H$33))*$I$14*0.25,0) -> 0 | I47: =IF($B$13=2,1/(1+E47),0) -> 0
C48: 50% load | D48: 0.5 | G48: =IF(AND(NOT(ISBLANK(E48)),$B$13=2),(E48*Instructions!$H$33+(($V$99+0.5*$W$99+0.5*0.5*$X$99)/0.5)*(1-Instructions!$H$33))*$I$14*0.5,0) -> 0 | I48: =IF($B$13=2,1/(1+E48),0) -> 0
C49: 75% load | D49: 0.75 | G49: =IF(AND(NOT(ISBLANK(E49)),$B$13=2),(E49*Instructions!$H$33+(($V$99+0.75*$W$99+0.75*0.75*$X$99)/0.75)*(1-Instructions!$H$33))*$I$14*0.75,0) -> 0 | I49: =IF($B$13=2,1/(1+E49),0) -> 0
C50: 100% load | D50: 1 | G50: =IF(AND(NOT(ISBLANK(E50)),$B$13=2),ROUND((E50*Instructions!$H$33+(($V$99+1*$W$99+1*1*$X$99)/1)*(1-Instructions!$H$33))*$I$14*1,0),0) -> 0 | I50: =IF($B$13=2,1/(1+E50),0) -> 0
C52: Startup | D52: =IFERROR(Instructions!$H$27/Instructions!$H$23,1) -> 1 | E52: =IFERROR(IF(B13=2,FORECAST(D50*D52,OFFSET(E47:E49,MATCH(D50*D52,D47:D50,1)-1,0,2),OFFSET(D47:D50,MATCH(D50*D52,D47:D50,1)-1,0,2)),0),E47) -> 0 | F52: =E52*Instructions!$H$33+(($V$99+D52*$W$99+D52*D52*$X$99)/D52)*(1-Instructions!$H$33) -> 0.05034412128 | G52: =IF(AND(NOT(E52=0),B13=2),ROUND($I$14*F52*D52,0),0) -> 0 | I52: =IF($B$13=2,1/(1+E52),0) -> 0
C75: Baseline Case Device Parameters
E76: Fixed Loss PU Device Rating | G76: Prop Loss PU Device Rating | I76: Sq Loss PU Device Rating | M76: Default Sizing per PU IT | O76: Device Full Load Efficiency | Q76: Instances in system | S76: As configured PU IT | V76: Fixed Loss PU System | W76: Prop Loss PU System | X76: Sq Loss PU System | Y76: Full System Load Device Efficiency
C77: UPS | E77: ='Case Definition'!G23 -> 0.03831553441 | G77: ='Case Definition'!H23 -> 0.01611372913 | I77: ='Case Definition'!I23 -> 0.04462675073 | M77: =IF(Instructions!$K$21<2,1.05,IF(Instructions!$K$21<4,1.15*(3/2),1.2*(2/1))) -> 2.4 | O77: =1/(1+E77+G77+I77) -> 0.9098717327 | Q77: 1 | S77: =IF($Y$42="Yes",1.2,1)*Q77*M77 -> 2.4 | V77: =IF($N9=TRUE,S77*E77,0) -> 0.09195728257 | W77: =IF($N9=TRUE,IF(Q77=0,0,G77),0) -> 0.01611372913 | X77: =IF($N9=TRUE,IF(Q77=0,0,I77/S77),0) -> 0.01859447947 | Y77: =1/(1+V77+W77+X77) -> 0.8875748905
C78: PDU w/STS | E78: 0.0039 | G78: 0.009 | I78: 0.0176 | M78: =IF(Instructions!$K$21<2,1,IF(Instructions!$K$21<3,1.1,2.2)) -> 2.2 | O78: =1/(1+E78+G78+I78) -> 0.9704027171 | Q78: 1 | S78: =IF($Y$42="Yes",1.2,1)*Q78*M78 -> 2.2 | V78: =IF($L12=1,S78*E78,0) -> 0.00858 | W78: =IF($L12=1,IF(Q78=0,0,G78),0) -> 0.009 | X78: =IF($L12=1,IF(Q78=0,0,I78/S78),0) -> 0.008 | Y78: =1/(1+V78+W78+X78) -> 0.975058016
C79: PDU | E79: 0.0039 | G79: 0 | I79: 0.0176 | M79: =M78 -> 2.2 | O79: =1/(1+E79+G79+I79) -> 0.9789525208 | Q79: 1 | S79: 2.2 | V79: =IF($L12=2,S79*E79,0) -> 0 | W79: =IF($L12=2,IF(Q79=0,0,G79),0) -> 0 | X79: =IF($L12=2,IF(Q79=0,0,I79/S79),0) -> 0 | Y79: =1/(1+V79+W79+X79) -> 1
C80: Generator | E80: 0.003 | G80: - | I80: - | M80: 2 | O80: - | Q80: 1 | S80: 2 | V80: =IF($N11=TRUE,S80*E80,0) -> 0.006 | W80: =IF(Q80=0,0,G80) -> - | X80: - | Y80: =1/(1+V80) -> 0.9940357853
C81: Switchgear | E81: 0 | G81: 0 | I81: 0.01 | M81: 2 | O81: =1/(1+E81+G81+I81) -> 0.9900990099 | Q81: 1 | S81: 2 | V81: =IF($P9=TRUE,S81*E81,0) -> 0 | W81: =IF($P9=TRUE,IF(Q81=0,0,G81),0) -> 0 | X81: =IF($P9=TRUE,IF(Q81=0,0,I81/S81),0) -> 0.005 | Y81: =1/(1+V81+W81+X81) -> 0.9950248756
C82: Distribution Wiring | E82: - | G82: - | I82: 0.01 | M82: 3 | O82: =1/(1+I82) -> 0.9900990099 | Q82: 1 | S82: 3 | V82: - | W82: =IF(Q82=0,0,G82) -> - | X82: =IF($P11=TRUE,IF(Q82=0,0,I82/S82),0) -> 0.003333333333 | Y82: =1/(1+X82) -> 0.9966777409
C83: Mains Transformer | E83: 0.0025 | G83: 0 | I83: 0.0113 | M83: 1.7 | O83: =1/(1+E83+G83+I83) -> 0.9863878477 | Q83: 1 | S83: 1.7 | V83: =IF($R9=TRUE,S83*E83,0) -> 0.00425 | W83: =IF($R9=TRUE,IF(Q83=0,0,G83),0) -> 0 | X83: =IF($R9=TRUE,IF(Q83=0,0,I83/S83),0) -> 0.006647058824 | Y83: =1/(1+V83+W83+X83) -> 0.989220407
C85: Whole System | V85: =SUM(V77:V83) -> 0.1107872826 | W85: =SUM(W77:W83) -> 0.02511372913 | X85: =SUM(X77:X83) -> 0.04157487163
C87: Proposed Case Parameters
E88: Fixed Loss PU Device Rating | G88: Prop Loss PU Device Rating | I88: Sq Loss PU Device Rating | M88: Default Sizing per PU IT | O88: Device Full Load Efficiency | Q88: Instances in system | S88: As configured PU IT | V88: Fixed Loss PU System | W88: Prop Loss PU System | X88: Sq Loss PU System | Y88: Full System Load Device Efficiency
C89: UPS - Baseline | E89: =E77 -> 0.03831553441 | G89: =G77 -> 0.01611372913 | I89: =I77 -> 0.04462675073 | M89: =M90 -> 0 | O89: =1/(1+E89+G89+I89) -> 0.9098717327 | Q89: 1 | S89: =IF($Y$42="Yes",1.2,1)*Q89*M89 -> 0 | V89: =IF($N9=TRUE,S89*E89,0) -> 0 | W89: =IF($N9=TRUE,IF(Q89=0,0,G89),0) -> 0.01611372913 | X89: =IFERROR(IF($N9=TRUE,IF(Q89=0,0,I89/S89),0),0) -> 0 | Y89: =1/(1+V89+W89+X89) -> 0.9841418055
C90: UPS | E90: =IFERROR('Case Definition'!G43,0) -> 0.03831553441 | G90: =IFERROR('Case Definition'!H43,0) -> 0.01611372913 | I90: =IFERROR('Case Definition'!I43,0) -> 0.04462675073 | M90: =G20 -> 0 | O90: =1/(1+E90+G90+I90) -> 0.9098717327 | Q90: =G22 -> 1 | S90: =IF($Y$42="Yes",1.2,1)*Q90*M90 -> 0 | V90: =IF($N9=TRUE,S90*E90,0) -> 0 | W90: =IF($N9=TRUE,IF(Q90=0,0,G90),0) -> 0.01611372913 | X90: =IFERROR(IF($N9=TRUE,IF(Q90=0,0,I90/S90),0),0) -> 0 | Y90: =1/(1+V90+W90+X90) -> 0.9841418055
C91: PDU w/STS | E91: 0.0039 | G91: 0.009 | I91: 0.0176 | M91: =G24 -> 0 | O91: =1/(1+E91+G91+I91) -> 0.9704027171 | Q91: 1 | S91: 0 | V91: =IF($L12=1,S91*E91,0) -> 0 | W91: =IF($L12=1,IF(Q91=0,0,G91),0) -> 0.009 | X91: =IFERROR(IF($L12=1,IF(Q91=0,0,I91/S91),0),0) -> 0 | Y91: =1/(1+V91+W91+X91) -> 0.9910802775
C92: PDU | E92: 0.0039 | G92: 0 | I92: 0.0176 | M92: =G24 -> 0 | O92: =1/(1+E92+G92+I92) -> 0.9789525208 | Q92: 1 | S92: 0 | V92: =IF($L12=2,S92*E92,0) -> 0 | W92: =IF($L12=2,IF(Q92=0,0,G92),0) -> 0 | X92: =IFERROR(IF($L12=2,IF(Q92=0,0,I92/S92),0),0) -> 0 | Y92: =1/(1+V92+W92+X92) -> 1
C93: Generator | E93: 0.003 | G93: - | I93: - | M93: 2 | O93: - | Q93: 1 | S93: 2 | V93: =IF($N11=TRUE,S93*E93,0) -> 0.006 | W93: 0 | X93: - | Y93: =1/(1+V93) -> 0.9940357853
C94: Switchgear | E94: 0 | G94: 0 | I94: 0.01 | M94: 2 | O94: =1/(1+E94+G94+I94) -> 0.9900990099 | Q94: 1 | S94: 2 | V94: =IF($P9=TRUE,S94*E94,0) -> 0 | W94: =IF($P9=TRUE,IF(Q94=0,0,G94),0) -> 0 | X94: =IF($P9=TRUE,IF(Q94=0,0,I94/S94),0) -> 0.005 | Y94: =1/(1+V94+W94+X94) -> 0.9950248756
C95: Distribution Wiring | E95: - | G95: - | I95: 0.01 | M95: 3 | O95: =1/(1+I95) -> 0.9900990099 | Q95: 1 | S95: 3 | V95: - | W95: =IF(Q95=0,0,G95) -> - | X95: =IF($P11=TRUE,IF(Q95=0,0,I95/S95),0) -> 0.003333333333 | Y95: =1/(1+X95) -> 0.9966777409
C96: Mains Transformer | E96: 0.0025 | G96: 0 | I96: 0.0113 | M96: 1.7 | O96: =1/(1+E96+G96+I96) -> 0.9863878477 | Q96: 1 | S96: 1.7 | V96: =IF($R9=TRUE,S96*E96,0) -> 0.00425 | W96: =IF($R9=TRUE,IF(Q96=0,0,G96),0) -> 0 | X96: =IF($R9=TRUE,IF(Q96=0,0,I96/S96),0) -> 0.006647058824 | Y96: =1/(1+V96+W96+X96) -> 0.989220407
C98: Whole System | V98: =SUM(V90:V96) -> 0.01025 | W98: =SUM(W90:W96) -> 0.02511372913 | X98: =SUM(X90:X96) -> 0.01498039216
C99: Whole System - Baseline Efficiency for UPS Outside of Project Scope | V99: =V89+SUM(V91:V96) -> 0.01025 | W99: =W89+SUM(W91:W96) -> 0.02511372913 | X99: =X89+SUM(X91:X96) -> 0.01498039216

Sheet Qualified Product List
C2: ENERGY STAR Computer Server Qualified Product List
C3: List Current as of May 06, 2013 | F3: =RIGHT(C3,12) -> May 06, 2013
C5: Includes all ENERGY STAR qualified models submitted to the EPA, including models that may not be available in the U.S.
C6: Note: The ENERGY STAR Computer Server Qualified Product List includes a limited amount of information on qualified computer server configurations. For more information on qualified models / configurations, please refer to the ENERGY STAR Power and Performance
AS7: Pn = Pidle + (Pmax – Pidle) / 100 * n
B8: PD_ID | C8: Product (Unit) Type | D8: Partner Name | E8: Brand | F8: Model Name | G8: Model Number | H8: Product Type | I8: Product Form Factor | J8: Service Processor Installed | K8: Available Processor Sockets | L8: Number of Installed Processors | M8: Processor Brand | N8: Processor Name | O8: Processor Speed | P8: System Memory | Q8: Number of Hard Drives | R8: Total Installed Storage Capacity | S8: Power Supply Rated Output | T8: Power Supplies Installed | U8: Power Supplies Installed for Redundancy | V8: Operating System Name Used for Testing | W8: Available Power Saving Features | X8: Enabled Power Saving Features | Y8: Power Supply Efficiency @ 10% Load | Z8: Power Supply Efficiency @ 20% Load | AA8: Power Supply Efficiency @ 50% Load | AB8: Power Supply Efficiency @ 100% Load | AC8: Power Factor @ 10% Load | AD8: Power Factor @ 20% Load | AE8: Power Factor @ 50% Load | AF8: Power Factor @ 100% Load | AG8: Idle Power Draw @ 230V | AH8: Idle Power Draw @115V | AI8: Idle Power Draw @100V | AJ8: Idle Power Draw @+/-53V DC | AK8: Full Load Testing Voltage / Frequency | AL8: Full Power Load | AM8: Date Available on Market | AN8: Date Qualified | AO8: Min Energy | AP8: Max Energy | AQ8: Power Supply | AR8: Max Energy as a Percent of Power Supply | AS8: Power at % Utilization (n) - Base Case | AT8: Power at % Utilization (n) - Proposed Case
C9: Server | D9: Acer Incorporated | E9: Acer | F9: AR360 F2 | G9: AR360 F2_1 | H9: 3 or 4 Socket Server | I9: Other | J9: Yes | K9: 2 | L9: 2 | M9: Intel | N9: Xeon E5-2670 | Q9: 2 | S9: 750 | T9: 1 | V9: Windows Server 2008 R2 Standard | W9: Variable speed fan control based on power or thermal readings,Power capping,Low power memory states,Low power I/O states,Other,Processor or core reduced power states,Dynamic voltage and frequency scaling of processor(s) | X9: Variable speed fan control based on power or thermal readings,Power capping,Low power memory states,Low power I/O states,Other,Processor or core reduced power states,Dynamic voltage and frequency scaling of processor(s) | Y9: 0.81 | Z9: 0.86 | AA9: 0.89 | AB9: 0.87 | AC9: 0.8 | AD9: 0.89 | AE9: 0.95 | AF9: 0.98 | AG9: 67.6 | AK9: 230 Vac, 50 Hz | AL9: 104.2 | AM9: 2012-09-01 | AN9: 2012-09-18 | AO9: =VALUE(LEFT(AG9,3)) -> 67 | AP9: =VALUE(LEFT(AL9,4)) -> 104 | AQ9: =VALUE(LEFT(S9,4)) -> 750 | AR9: =AP9/AQ9 -> 0.1386666667 | AS9: =$AO9+($AP9-$AO9)/100*'Server Efficiency'!$O$7 -> 67.0444 | AT9: =$AO9+($AP9-$AO9)/100*'Server Efficiency'!$H$25 -> 67
C10: Server | D10: Acer Incorporated | E10: Acer | F10: AR360 F2 | G10: AR360 F2_2 | H10: 1 or 2 Socket Server | I10: Other | J10: Yes | K10: 2 | L10: 2 | M10: Intel | N10: Xeon E5-2650 | Q10: 2 | S10: 750 | T10: 1 | V10: Windows Server 2008 R2 Standard | W10: Variable speed fan control based on power or thermal readings,Power capping,Low power memory states,Low power I/O states,Other,Processor or core reduced power states,Dynamic voltage and frequency scaling of processor(s) | X10: Variable speed fan control based on power or thermal readings,Power capping,Low power memory states,Low power I/O states,Other,Processor or core reduced power states,Dynamic voltage and frequency scaling of processor(s) | Y10: 0.81 | Z10: 0.86 | AA10: 0.89 | AB10: 0.87 | AC10: 0.8 | AD10: 0.89 | AE10: 0.95 | AF10: 0.98 | AG10: 68.93 | AK10: 230 Vac, 50 Hz | AL10: 87.2 | AM10: 2012-09-01 | AN10: 2012-09-18 | AO10: =VALUE(LEFT(AG10,3)) -> 68 | AP10: =VALUE(LEFT(AL10,4)) -> 87.2 | AQ10: =VALUE(LEFT(S10,4)) -> 750 | AR10: =AP10/AQ10 -> 0.1162666667 | AS10: =$AO10+($AP10-$AO10)/100*'Server Efficiency'!$O$7 -> 68.02304 | AT10: =$AO10+($AP10-$AO10)/100*'Server Efficiency'!$H$25 -> 68
C11: Server | D11: Acer Incorporated | E11: Acer | F11: AR360 F2 | G11: AR360 F2_3 | H11: 1 or 2 Socket Server | I11: Other | J11: Yes | K11: 2 | L11: 2 | M11: Intel | N11: Xeon E5-2620 | Q11: 2 | S11: 750 | T11: 1 | V11: Windows Server 2008 R2 Standard | W11: Variable speed fan control based on power or thermal readings,Power capping,Low power memory states,Low power I/O states,Other,Processor or core reduced power states,Dynamic voltage and frequency scaling of processor(s) | X11: Variable speed fan control based on power or thermal readings,Power capping,Low power memory states,Low power I/O states,Other,Processor or core reduced power states,Dynamic voltage and frequency scaling of processor(s) | Y11: 0.81 | Z11: 0.86 | AA11: 0.89 | AB11: 0.87 | AC11: 0.8 | AD11: 0.89 | AE11: 0.95 | AF11: 0.98 | AG11: 72.34 | AK11: 230 Vac, 50 Hz | AL11: 90.18 | AM11: 2012-09-01 | AN11: 2012-09-18 | AO11: =VALUE(LEFT(AG11,3)) -> 72 | AP11: =VALUE(LEFT(AL11,4)) -> 90.1 | AQ11: =VALUE(LEFT(S11,4)) -> 750 | AR11: 0.1201333333 | AS11: =$AO11+($AP11-$AO11)/100*'Server Efficiency'!$O$7 -> 72.02172 | AT11: =$AO11+($AP11-$AO11)/100*'Server Efficiency'!$H$25 -> 72
C12: Server | D12: Acer Incorporated | E12: Acer | F12: AR380 F2 | G12: AR380 F2_1 | H12: 1 or 2 Socket Server | I12: Rackmount | J12: Yes | K12: 2 | L12: 2 | M12: Intel | N12: Xeon E5-2690 | Q12: 2 | S12: 920 | T12: 1 | V12: Windows Server 2008 R2 Standard | W12: Variable speed fan control based on power or thermal readings,Power capping,Low power memory states,Low power I/O states,Other,Processor or core reduced power states,Dynamic voltage and frequency scaling of processor(s) | X12: Variable speed fan control based on power or thermal readings,Power capping,Low power memory states,Low power I/O states,Other,Processor or core reduced power states,Dynamic voltage and frequency scaling of processor(s) | Y12: 0.8 | Z12: 0.88 | AA12: 0.91 | AB12: 0.88 | AC12: 0.93 | AD12: 0.96 | AE12: 0.98 | AF12: 0.99 | AG12: 133.3 | AK12: 230 Vac, 50 Hz | AL12: 170.0 | AM12: 2012-09-01 | AN12: 2012-09-19 | AO12: 133 | AP12: 170 | AQ12: 920 | AR12: 0.1847826087 | AS12: =$AO12+($AP12-$AO12)/100*'Server Efficiency'!$O$7 -> 133.0444 | AT12: =$AO12+($AP12-$AO12)/100*'Server Efficiency'!$H$25 -> 133
C13: Server | D13: Acer Incorporated | E13: Acer | F13: AR380 F2 | G13: AR380 F2_2 | H13: 1 or 2 Socket Server | I13: Rackmount | J13: Yes | K13: 2 | L13: 2 | M13: Intel | N13: Xeon E5-2650 | Q13: 2 | S13: 920 | T13: 1 | V13: Windows Server 2008 R2 Standard | W13: Variable speed fan control based on power or thermal readings,Power capping,Low power memory states,Low power I/O states,Other,Processor or core reduced power states,Dynamic voltage and frequency scaling of processor(s) | X13: Variable speed fan control based on power or thermal readings,Power capping,Low power memory states,Low power I/O states,Other,Processor or core reduced power states,Dynamic voltage and frequency scaling of processor(s) | Y13: 0.8 | Z13: 0.88 | AA13: 0.91 | AB13: 0.88 | AC13: 0.93 | AD13: 0.96 | AE13: 0.98 | AF13: 0.99 | AG13: 130.2 | AK13: 230 Vac, 50 Hz | AL13: 154.5 | AM13: 2012-09-01 | AN13: 2012-09-19 | AO13: 130 | AP13: 154 | AQ13: 920 | AR13: 0.1673913043 | AS13: =$AO13+($AP13-$AO13)/100*'Server Efficiency'!$O$7 -> 130.0288 | AT13: =$AO13+($AP13-$AO13)/100*'Server Efficiency'!$H$25 -> 130
C14: Server | D14: Acer Incorporated | E14: Acer | F14: AR380 F2 | G14: AR380 F2_3 | H14: 1 or 2 Socket Server | I14: Rackmount | J14: Yes | K14: 2 | L14: 2 | M14: Intel | N14: Xeon E5-2620 | Q14: 2 | S14: 920 | T14: 1 | V14: Windows Server 2008 R2 Standard | W14: Variable speed fan control based on power or thermal readings,Power capping,Low power memory states,Low power I/O states,Other,Processor or core reduced power states,Dynamic voltage and frequency scaling of processor(s) | X14: Variable speed fan control based on power or thermal readings,Power capping,Low power memory states,Low power I/O states,Other,Processor or core reduced power states,Dynamic voltage and frequency scaling of processor(s) | Y14: 0.8 | Z14: 0.88 | AA14: 0.91 | AB14: 0.88 | AC14: 0.93 | AD14: 0.96 | AE14: 0.98 | AF14: 0.99 | AG14: 134.7 | AK14: 230 Vac, 50 Hz | AL14: 155.7 | AM14: 2012-09-01 | AN14: 2012-09-19 | AO14: 134 | AP14: 155 | AQ14: 920 | AR14: 0.1684782609 | AS14: =$AO14+($AP14-$AO14)/100*'Server Efficiency'!$O$7 -> 134.0252 | AT14: =$AO14+($AP14-$AO14)/100*'Server Efficiency'!$H$25 -> 134
C15: Server | D15: Acer Incorporated | E15: Acer | F15: AT350 F2 | G15: AT350 F2_1 | H15: 1 or 2 Socket Server | I15: Tower/Pedestal | J15: Yes | K15: 2 | L15: 2 | M15: Intel | N15: Xeon E5-2690 | Q15: 2 | S15: 920 | T15: 1 | V15: Windows Server 2008 R2 Standard | W15: Variable speed fan control based on power or thermal readings,Power capping,Low power memory states,Low power I/O states,Other,Processor or core reduced power states,Dynamic voltage and frequency scaling of processor(s) | X15: Variable speed fan control based on power or thermal readings,Power capping,Low power memory states,Low power I/O states,Other,Processor or core reduced power states,Dynamic voltage and frequency scaling of processor(s) | Y15: 0.8 | Z15: 0.88 | AA15: 0.91 | AB15: 0.88 | AC15: 0.93 | AD15: 0.96 | AE15: 0.98 | AF15: 0.99 | AG15: 121.1 | AK15: 230 Vac, 50 Hz | AL15: 125.5 | AM15: 2012-07-01 | AN15: 2012-09-18 | AO15: 121 | AP15: 125 | AQ15: 920 | AR15: 0.1358695652 | AS15: =$AO15+($AP15-$AO15)/100*'Server Efficiency'!$O$7 -> 121.0048 | AT15: =$AO15+($AP15-$AO15)/100*'Server Efficiency'!$H$25 -> 121
C16: Server | D16: Acer Incorporated | E16: Acer | F16: AT350 F2 | G16: AT350 F2_2 | H16: 1 or 2 Socket Server | I16: Tower/Pedestal | J16: Yes | K16: 2 | L16: 2 | M16: Intel | N16: Xeon E5-2650 | Q16: 2 | S16: 920 | T16: 1 | V16: Windows Server 2008 R2 Standard | W16: Variable speed fan control based on power or thermal readings,Power capping,Low power memory states,Low power I/O states,Other,Processor or core reduced power states,Dynamic voltage and frequency scaling of processor(s) | X16: Variable speed fan control based on power or thermal readings,Power capping,Low power memory states,Low power I/O states,Other,Processor or core reduced power states,Dynamic voltage and frequency scaling of processor(s) | Y16: 0.8 | Z16: 0.88 | AA16: 0.91 | AB16: 0.88 | AC16: 0.93 | AD16: 0.96 | AE16: 0.98 | AF16: 0.99 | AG16: 120.5 | AK16: 230 Vac, 50 Hz | AL16: 124.8 | AM16: 2012-07-01 | AN16: 2012-09-18 | AO16: 120 | AP16: 124 | AQ16: 920 | AR16: 0.1347826087 | AS16: =$AO16+($AP16-$AO16)/100*'Server Efficiency'!$O$7 -> 120.0048 | AT16: =$AO16+($AP16-$AO16)/100*'Server Efficiency'!$H$25 -> 120
C17: Server | D17: Acer Incorporated | E17: Acer | F17: AT350 F2 | G17: AT350 F2_3 | H17: 1 or 2 Socket Server | I17: Tower/Pedestal | J17: Yes | K17: 2 | L17: 2 | M17: Intel | N17: Xeon E5-2620 | Q17: 2 | S17: 920 | T17: 1 | V17: Windows Server 2008 R2 Standard | W17: Variable speed fan control based on power or thermal readings,Power capping,Low power memory states,Low power I/O states,Other,Processor or core reduced power states,Dynamic voltage and frequency scaling of processor(s) | X17: Variable speed fan control based on power or thermal readings,Power capping,Low power memory states,Low power I/O states,Other,Processor or core reduced power states,Dynamic voltage and frequency scaling of processor(s) | Y17: 0.8 | Z17: 0.88 | AA17: 0.91 | AB17: 0.88 | AC17: 0.93 | AD17: 0.96 | AE17: 0.98 | AF17: 0.99 | AG17: 123.2 | AK17: 230 Vac, 50 Hz | AL17: 125.7 | AM17: 2012-07-01 | AN17: 2012-09-18 | AO17: 123 | AP17: 125 | AQ17: 920 | AR17: 0.1358695652 | AS17: =$AO17+($AP17-$AO17)/100*'Server Efficiency'!$O$7 -> 123.0024 | AT17: =$AO17+($AP17-$AO17)/100*'Server Efficiency'!$H$25 -> 123
C18: Server | D18: ASUSTeK Computer Inc. | E18: ASUS | F18: TS300-E7/PS4 | G18: 90S6IA25L2B120UTT | H18: 1 or 2 Socket Server | I18: Other | J18: No | K18: 1 | L18: 1 | M18: Intel | N18: Xeon E31230 | O18: 3.20 | P18: 4.00 | Q18: 2 | R18: 1000.00 | S18: 500 | T18: 1 | U18: 0 | V18: Windows Server 2008 R2 Enterprise | W18: None | X18: N/A | Y18: 0.78 | Z18: 0.84 | AA18: 0.87 | AB18: 0.83 | AC18: 0.82 | AD18: 0.88 | AE18: 0.96 | AF18: 0.98 | AG18: 44.89 | AH18: 45.60 | AI18: 0 | AJ18: 0 | AK18: 230 Vac, 50 Hz | AL18: 117.20 | AM18: 2011-04-01 | AN18: 2011-08-19 | AO18: 44 | AP18: 117 | AQ18: 500 | AR18: 0.234 | AS18: =$AO18+($AP18-$AO18)/100*'Server Efficiency'!$O$7 -> 44.0876 | AT18: =$AO18+($AP18-$AO18)/100*'Server Efficiency'!$H$25 -> 44
C19: Server | D19: ASUSTeK Computer Inc. | E19: ASUSTek COMPUTER INC. | F19: RS520-E6/ERS8 | G19: RS520-E6/ERS8 | H19: 1 or 2 Socket Server | I19: Rackmount | J19: No | K19: 2 | L19: 2 | M19: Intel | N19: X5650 | O19: 2.66 | Q19: 2 | R19: 292.0 | S19: 770 | T19: 2 | U19: 1 | V19: Win Server 2008 R2 | W19: Variable speed fan control based on power or thermal readings,Power capping,Low power memory states,Low power I/O states,Processor or core reduced power states,Dynamic voltage and frequency scaling of processor(s) | X19: Power capping,Low power memory states,Low power I/O states,Processor or core reduced power states,Variable speed fan control based on power or thermal readings ,Dynamic voltage and frequency scaling of processor(s) | Y19: 0.8 | Z19: 0.88 | AA19: 0.92 | AB19: 0.9 | AC19: 0.9 | AD19: 0.96 | AE19: 0.98 | AF19: 0.98 | AG19: 136.09 | AK19: 230 Vac, 60 Hz | AL19: 307.64 | AM19: 2009-04-30 | AN19: 2011-05-11 | AO19: 136 | AP19: 307 | AQ19: 770 | AR19: 0.3987012987 | AS19: =$AO19+($AP19-$AO19)/100*'Server Efficiency'!$O$7 -> 136.2052 | AT19: =$AO19+($AP19-$AO19)/100*'Server Efficiency'!$H$25 -> 136
C20: Server | D20: Cisco Systems | E20: CISCO | F20: Cisco UMC200-M2 | G20: Cisco UMC200-M2 | H20: 1 or 2 Socket Server | I20: Rackmount | J20: Yes | K20: 2 | L20: 2 | M20: Intel | N20: Xenon X5670 @2.93 Ghz | S20: 650 | T20: 1 | U20: 2 | V20: Windows Server 2008 | W20: Dynamic voltage and frequency scaling of processor(s) | X20: Dynamic voltage and frequency scaling of processor(s) | Y20: .82 | Z20: .89 | AA20: .93 | AB20: .91 | AC20: .66 | AD20: .95 | AE20: .83 | AF20: .98 | AG20: 124.7 | AK20: 230 Vac, 50 Hz | AL20: 294 | AM20: 2010-03-17 | AN20: 2012-07-16 | AO20: 124 | AP20: 294 | AQ20: 650 | AR20: 0.4523076923 | AS20: =$AO20+($AP20-$AO20)/100*'Server Efficiency'!$O$7 -> 124.204 | AT20: =$AO20+($AP20-$AO20)/100*'Server Efficiency'!$H$25 -> 124
C21: Server | D21: Cisco Systems | E21: Cisco Systems, Inc. | F21: Cisco UCS High-Performance Rack-Mount Server | G21: C460 M2 | H21: 3 or 4 Socket Server | I21: Rackmount | J21: Yes | K21: 4 | L21: 4 | M21: Intel | N21: Xeon | O21: 2.13 | P21: 16.0 | Q21: 1 | R21: 300.0 | S21: 850 | T21: 4 | U21: 4 | V21: 64-bit OS - Windows Server 2008 R2 Enterprise | W21: Variable speed fan control based on power or thermal readings,Power capping,Low power memory states,Processor or core reduced power states,Dynamic voltage and frequency scaling of processor(s) | X21: Variable speed fan control based on power or thermal readings,Power capping,Low power memory states,Processor or core reduced power states,Dynamic voltage and frequency scaling of processor(s) | Y21: 0.8 | Z21: 0.89 | AA21: 0.92 | AB21: 0.91 | AC21: 0.9 | AD21: 0.97 | AE21: 0.99 | AF21: 1.0 | AG21: 307.02 | AK21: 230 Vac, 50 Hz | AL21: 808.8 | AM21: 2011-06-01 | AN21: 2012-08-14 | AO21: 307 | AP21: 808 | AQ21: 850 | AR21: 0.9505882353 | AS21: =$AO21+($AP21-$AO21)/100*'Server Efficiency'!$O$7 -> 307.6012 | AT21: =$AO21+($AP21-$AO21)/100*'Server Efficiency'!$H$25 -> 307
C22: Server | D22: Dell Inc. | E22: DELL | F22: PowerEdge R715 | G22: E05S | H22: 1 or 2 Socket Server | I22: Rackmount | J22: Yes | K22: 2 | L22: 2 | M22: AMD | N22: Opteronâ¢ 6376, Opteronâ¢ 6378, Opteronâ¢ 6380 | O22: 2.3 | P22: 2.0 | Q22: 2 | R22: 292.0 | S22: 1100 | T22: 2 | U22: 1 | V22: Microsoft Windows Server 2008 SP2 | W22: Variable speed fan control based on power or thermal readings,Power capping,Low power I/O states,Processor or core reduced power states,Dynamic voltage and frequency scaling of processor(s) | X22: Low power memory states | Y22: 0.85 | Z22: 0.9 | AA22: 0.93 | AB22: 0.9 | AC22: 0.8 | AD22: 0.91 | AE22: 0.97 | AF22: 0.99 | AG22: 203.86 | AK22: 230 Vac, 50 Hz | AL22: 334.98 | AM22: 2012-12-18 | AN22: 2013-01-10 | AO22: 203 | AP22: 334 | AQ22: 1100 | AR22: 0.3036363636 | AS22: =$AO22+($AP22-$AO22)/100*'Server Efficiency'!$O$7 -> 203.1572 | AT22: =$AO22+($AP22-$AO22)/100*'Server Efficiency'!$H$25 -> 203
C23: Server | D23: Dell Inc. | E23: DELL | F23: PowerEdge R815 | G23: E05S | H23: 3 or 4 Socket Server | I23: Rackmount | J23: Yes | K23: 4 | L23: 4 | M23: AMD | N23: Optern 6376, Optern 6378, Optern 6380 | O23: 2.3 | P23: 4.0 | Q23: 1 | R23: 146.0 | S23: 1100 | T23: 2 | U23: 2 | V23: Microsoft WindowsÂ® Server 2008 SP2 | W23: Variable speed fan control based on power or thermal readings,Power capping,Low power I/O states,Processor or core reduced power states,Dynamic voltage and frequency scaling of processor(s) | X23: Low power memory states | Y23: 0.81 | Z23: 0.89 | AA23: 0.92 | AB23: 0.9 | AC23: 0.91 | AD23: 0.96 | AE23: 0.94 | AF23: 0.98 | AG23: 215.44 | AK23: 230 Vac, 50 Hz | AL23: 677.43 | AM23: 2012-12-18 | AN23: 2013-01-22 | AO23: 215 | AP23: 677 | AQ23: 1100 | AR23: 0.6154545455 | AS23: =$AO23+($AP23-$AO23)/100*'Server Efficiency'!$O$7 -> 215.5544 | AT23: =$AO23+($AP23-$AO23)/100*'Server Efficiency'!$H$25 -> 215
C24: Server | D24: Dell Inc. | E24: DELL | F24: PowerEdge R415 | G24: E07S | H24: 1 or 2 Socket Server | I24: Rackmount | J24: Yes | K24: 2 | L24: 2 | M24: AMD | N24: Opteronâ¢ 4386 | O24: 3.1 | P24: 4.0 | Q24: 1 | R24: 300.0 | S24: 500 | T24: 1 | U24: 0 | V24: Microsoft Windows Server 2008 R2 SP1, x64, Build 6001 | W24: Dynamic voltage and frequency scaling of processor(s) | X24: Dynamic voltage and frequency scaling of processor(s) | Y24: 0.8 | Z24: 0.88 | AA24: 0.91 | AB24: 0.9 | AC24: 0.91 | AD24: 0.96 | AE24: 0.99 | AF24: 1.0 | AG24: 81.44 | AK24: 230 Vac, 50 Hz | AL24: 219.02 | AM24: 2010-10-31 | AN24: 2012-12-25 | AO24: 81 | AP24: 219 | AQ24: 500 | AR24: 0.438 | AS24: =$AO24+($AP24-$AO24)/100*'Server Efficiency'!$O$7 -> 81.1656 | AT24: =$AO24+($AP24-$AO24)/100*'Server Efficiency'!$H$25 -> 81
C25: Server | D25: Dell Inc. | E25: DELL | F25: PowerEdge R515 | G25: E12S | H25: 1 or 2 Socket Server | I25: Rackmount | J25: Yes | K25: 2 | L25: 2 | M25: AMD | N25: Opteronâ¢ 4386 | O25: 3.1 | P25: 4.0 | Q25: 1 | R25: 300.0 | S25: 750 | T25: 1 | U25: 0 | V25: Microsoft Windows Server 2008 R2 SP1, x64, Build 6001 | W25: Dynamic voltage and frequency scaling of processor(s) | X25: Dynamic voltage and frequency scaling of processor(s) | Y25: 0.86 | Z25: 0.91 | AA25: 0.93 | AB25: 0.91 | AC25: 0.85 | AD25: 0.95 | AE25: 0.99 | AF25: 0.99 | AG25: 76.58 | AK25: 230 Vac, 50 Hz | AL25: 210.21 | AM25: 2010-10-31 | AN25: 2012-12-25 | AO25: 76 | AP25: 210 | AQ25: 750 | AR25: 0.28 | AS25: =$AO25+($AP25-$AO25)/100*'Server Efficiency'!$O$7 -> 76.1608 | AT25: =$AO25+($AP25-$AO25)/100*'Server Efficiency'!$H$25 -> 76
C26: Server | D26: Dell Inc. | E26: DELL | F26: PowerEdge R515 | G26: E13S | H26: 1 or 2 Socket Server | I26: Rackmount | J26: Yes | K26: 2 | L26: 2 | M26: AMD | N26: Opteronâ¢ 4386 | O26: 3.1 | P26: 4.0 | Q26: 1 | R26: 300.0 | S26: 750 | T26: 1 | U26: 0 | V26: Microsoft Windows Server 2008 R2 SP1, x64, Build 6001 | W26: Dynamic voltage and frequency scaling of processor(s) | X26: Dynamic voltage and frequency scaling of processor(s) | Y26: 0.86 | Z26: 0.91 | AA26: 0.93 | AB26: 0.91 | AC26: 0.85 | AD26: 0.95 | AE26: 0.99 | AF26: 0.99 | AG26: 76.58 | AK26: 230 Vac, 50 Hz | AL26: 210.21 | AM26: 2010-10-31 | AN26: 2012-12-25 | AO26: 76 | AP26: 210 | AQ26: 750 | AR26: 0.28 | AS26: =$AO26+($AP26-$AO26)/100*'Server Efficiency'!$O$7 -> 76.1608 | AT26: =$AO26+($AP26-$AO26)/100*'Server Efficiency'!$H$25 -> 76
C27: Server | D27: Dell Inc. | E27: DELL | F27: PowerEdge T620 | G27: E17S | H27: 1 or 2 Socket Server | I27: Tower/Pedestal | J27: Yes | K27: 2 | L27: 2 | M27: Intel | N27: Xeon | O27: 2.0 | P27: 4.0 | Q27: 1 | R27: 300.0 | S27: 750 | T27: 1 | U27: 1 | V27: Microsoft Windows Server 2008 | W27: Power capping,Processor or core reduced power states,Dynamic voltage and frequency scaling of processor(s) | X27: Dynamic voltage and frequency scaling of processor(s) | Y27: 0.88 | Z27: 0.92 | AA27: 0.94 | AB27: 0.93 | AC27: 0.71 | AD27: 0.86 | AE27: 0.96 | AF27: 0.99 | AG27: 80.08 | AH27: 81.91 | AK27: 115 Vac, 60 Hz | AL27: 172.77 | AM27: 2012-03-05 | AN27: 2012-02-02 | AO27: 80 | AP27: 172 | AQ27: 750 | AR27: 0.2293333333 | AS27: =$AO27+($AP27-$AO27)/100*'Server Efficiency'!$O$7 -> 80.1104 | AT27: =$AO27+($AP27-$AO27)/100*'Server Efficiency'!$H$25 -> 80
C28: Server | D28: Dell Inc. | E28: DELL | F28: PowerEdge R420 | G28: E18S | H28: 1 or 2 Socket Server | I28: Rackmount | J28: Yes | K28: 2 | L28: 2 | M28: Intel | N28: Xeon | O28: 1.9 | P28: 2.0 | Q28: 1 | R28: 300.0 | S28: 550 | T28: 1 | U28: 1 | V28: Microsoft Windows Server 2008 | W28: Power capping,Processor or core reduced power states,Dynamic voltage and frequency scaling of processor(s) | X28: Dynamic voltage and frequency scaling of processor(s) | Y28: 0.83 | Z28: 0.91 | AA28: 0.94 | AB28: 0.93 | AC28: 0.9 | AD28: 0.96 | AE28: 0.98 | AF28: 1.0 | AG28: 71.25 | AH28: 71.44 | AK28: 115 Vac, 60 Hz | AL28: 163.56 | AM28: 2012-06-05 | AN28: 2012-04-05 | AO28: 71 | AP28: 163 | AQ28: 550 | AR28: 0.2963636364 | AS28: =$AO28+($AP28-$AO28)/100*'Server Efficiency'!$O$7 -> 71.1104 | AT28: =$AO28+($AP28-$AO28)/100*'Server Efficiency'!$H$25 -> 71
C29: Server | D29: Dell Inc. | E29: DELL | F29: PowerEdge R520 | G29: E19S | H29: 1 or 2 Socket Server | I29: Rackmount | J29: Yes | K29: 2 | L29: 2 | M29: Intel | N29: Xeon | O29: 1.9 | P29: 2.0 | Q29: 1 | R29: 300.0 | S29: 750 | T29: 1 | U29: 1 | V29: Microsoft Windows Server 2008 | W29: Power capping,Processor or core reduced power states,Dynamic voltage and frequency scaling of processor(s) | X29: Dynamic voltage and frequency scaling of processor(s) | Y29: 0.88 | Z29: 0.92 | AA29: 0.94 | AB29: 0.93 | AC29: 0.71 | AD29: 0.86 | AE29: 0.96 | AF29: 0.99 | AG29: 73.75 | AH29: 75.44 | AK29: 115 Vac, 60 Hz | AL29: 167.33 | AM29: 2012-06-05 | AN29: 2012-04-05 | AO29: 73 | AP29: 167 | AQ29: 750 | AR29: 0.2226666667 | AS29: =$AO29+($AP29-$AO29)/100*'Server Efficiency'!$O$7 -> 73.1128 | AT29: =$AO29+($AP29-$AO29)/100*'Server Efficiency'!$H$25 -> 73
C30: Server | D30: Dell Inc. | E30: DELL | F30: PowerEdge R320 | G30: PowerEdge R320- E18S | H30: 1 or 2 Socket Server | I30: Rackmount | J30: Yes | K30: 1 | L30: 1 | M30: Intel | N30: Xeon | O30: 1.9 | P30: 2.0 | Q30: 1 | R30: 300.0 | S30: 350 | T30: 1 | U30: 1 | V30: Microsoft Windows Server 2008 | W30: Variable speed fan control based on power or thermal readings,Power capping,Processor or core reduced power states,Dynamic voltage and frequency scaling of processor(s) | X30: Dynamic voltage and frequency scaling of processor(s) | Y30: 0.83 | Z30: 0.9 | AA30: 0.94 | AB30: 0.94 | AC30: 0.76 | AD30: 0.94 | AE30: 0.96 | AF30: 0.99 | AG30: 54.63 | AH30: 55.37 | AK30: 115 Vac, 60 Hz | AL30: 101.62 | AM30: 2012-06-05 | AN30: 2012-04-05 | AO30: 54 | AP30: 101 | AQ30: 350 | AR30: 0.2885714286 | AS30: =$AO30+($AP30-$AO30)/100*'Server Efficiency'!$O$7 -> 54.0564 | AT30: =$AO30+($AP30-$AO30)/100*'Server Efficiency'!$H$25 -> 54
C31: Server | D31: Dell Inc. | E31: PowerEdge | F31: R210-II | G31: R210-II 1P E3-1220 250W | H31: Computer Server | I31: 1U | J31: Yes | K31: 1.0 | L31: 1.0 | M31: Intel | N31: Xeon E3-1220 | O31: 3.1 | P31: 4.0 | Q31: 2.0 | R31: 1000.0 | S31: 250.0 | T31: 1.0 | U31: 0.0 | V31: Windows Server 2008 | W31: Dynamic voltage and frequency scaling of processors, processor or core reduced power states, power capping, variable speed fan control, low power memory states, low power I/O states | X31: Dynamic voltage and frequency scaling of processors, processor or core reduced power states, power capping, variable speed fan control, low power memory states, low power I/O states | Y31: 72.39999999999999 | Z31: 82.6 | AA31: 86.0 | AB31: 85.8 | AC31: 0.96 | AD31: 0.98 | AE31: 0.99 | AF31: 0.99 | AG31: 41.58 | AH31: 42.41 | AI31: 42.43 | AJ31: N/A | AK31: 100V / 60Hz | AL31: 95.08 | AO31: 41 | AP31: 95 | AQ31: 250 | AR31: 0.38 | AS31: =$AO31+($AP31-$AO31)/100*'Server Efficiency'!$O$7 -> 41.0648 | AT31: =$AO31+($AP31-$AO31)/100*'Server Efficiency'!$H$25 -> 41
C32: Server | D32: Dell Inc. | E32: PowerEdge | F32: R210-II | G32: R210-II 1P E3-1240 250W | H32: Computer Server | I32: 1U | J32: Yes | K32: 1.0 | L32: 1.0 | M32: Intel | N32: Xeon E3-1240 | O32: 3.3 | P32: 8.0 | Q32: 4.0 | R32: 1000.0 | S32: 250.0 | T32: 1.0 | U32: 0.0 | V32: Windows Server 2008 | W32: Dynamic voltage and frequency scaling of processors, processor or core reduced power states, power capping, variable speed fan control, low power memory states, low power I/O states | X32: Dynamic voltage and frequency scaling of processors, processor or core reduced power states, power capping, variable speed fan control, low power memory states, low power I/O states | Y32: 72.39999999999999 | Z32: 82.6 | AA32: 86.0 | AB32: 85.8 | AC32: 0.96 | AD32: 0.98 | AE32: 0.99 | AF32: 0.99 | AG32: 41.39 | AH32: 42.69 | AI32: 42.16 | AJ32: N/A | AK32: 100V / 60Hz | AL32: 104.71 | AO32: 41 | AP32: 104 | AQ32: 250 | AR32: 0.416 | AS32: =$AO32+($AP32-$AO32)/100*'Server Efficiency'!$O$7 -> 41.0756 | AT32: =$AO32+($AP32-$AO32)/100*'Server Efficiency'!$H$25 -> 41
C33: Server | D33: Dell Inc. | E33: PowerEdge | F33: R210-II | G33: R210-II 1P E3-1260L 250W | H33: Computer Server | I33: 1U | J33: Yes | K33: 1.0 | L33: 1.0 | M33: Intel | N33: Xeon E3-1260L | O33: 2.4 | P33: 16.0 | Q33: 4.0 | R33: 584.0 | S33: 250.0 | T33: 1.0 | U33: 0.0 | V33: Windows Server 2008 | W33: Dynamic voltage and frequency scaling of processors, processor or core reduced power states, power capping, variable speed fan control, low power memory states, low power I/O states | X33: Dynamic voltage and frequency scaling of processors, processor or core reduced power states, power capping, variable speed fan control, low power memory states, low power I/O states | Y33: 72.39999999999999 | Z33: 82.6 | AA33: 86.0 | AB33: 85.8 | AC33: 0.96 | AD33: 0.98 | AE33: 0.99 | AF33: 0.99 | AG33: 56.54 | AH33: 56.73 | AI33: 57.49 | AJ33: N/A | AK33: 100V / 60Hz | AL33: 96.29 | AO33: 56 | AP33: 96.2 | AQ33: 250 | AR33: 0.3848 | AS33: =$AO33+($AP33-$AO33)/100*'Server Efficiency'!$O$7 -> 56.04824 | AT33: =$AO33+($AP33-$AO33)/100*'Server Efficiency'!$H$25 -> 56
C34: Server | D34: Dell Inc. | E34: PowerEdge | F34: R410 | G34: R410 2P X5560 500W | H34: Computer Server | I34: 1U | J34: Yes | K34: 2.0 | L34: 2.0 | M34: Intel | N34: Xeon X5560 | O34: 2.8 | P34: 64.0 | Q34: 2.0 | R34: 900.0 | S34: 500.0 | T34: 2.0 | U34: 1.0 | V34: Windows Server 2008 | W34: Dynamic voltage and frequency scaling of processors, processor or core reduced power states, power capping, variable speed fan control | X34: Dynamic voltage and frequency scaling of processors, processor or core reduced power states, power capping, variable speed fan control | Y34: 79.9 | Z34: 88.4 | AA34: 92.5 | AB34: 92.0 | AC34: 0.74 | AD34: 0.85 | AE34: 0.95 | AF34: 0.98 | AG34: 179.3 | AH34: 186.5 | AI34: 185.8 | AJ34: N/A | AK34: 100V / 60Hz | AL34: 288.2 | AO34: 179 | AP34: 288 | AQ34: 500 | AR34: 0.576 | AS34: =$AO34+($AP34-$AO34)/100*'Server Efficiency'!$O$7 -> 179.1308 | AT34: =$AO34+($AP34-$AO34)/100*'Server Efficiency'!$H$25 -> 179
C35: Server | D35: Dell Inc. | E35: PowerEdge | F35: R410 | G35: R410 2P X5670 500W | H35: Computer Server | I35: 1U | J35: Yes | K35: 2.0 | L35: 2.0 | M35: Intel | N35: Xeon X5670 | O35: 2.93 | P35: 128.0 | Q35: 4.0 | R35: 1800.0 | S35: 500.0 | T35: 2.0 | U35: 1.0 | V35: Windows Server 2008 | W35: Dynamic voltage and frequency scaling of processors, processor or core reduced power states, power capping, variable speed fan control | X35: Dynamic voltage and frequency scaling of processors, processor or core reduced power states, power capping, variable speed fan control | Y35: 79.9 | Z35: 88.4 | AA35: 92.5 | AB35: 92.0 | AC35: 0.74 | AD35: 0.85 | AE35: 0.95 | AF35: 0.98 | AG35: 197.6 | AH35: 198.2 | AI35: 198.5 | AJ35: N/A | AK35: 100V / 60Hz | AL35: 328.2 | AO35: 197 | AP35: 328 | AQ35: 500 | AR35: 0.656 | AS35: =$AO35+($AP35-$AO35)/100*'Server Efficiency'!$O$7 -> 197.1572 | AT35: =$AO35+($AP35-$AO35)/100*'Server Efficiency'!$H$25 -> 197
C36: Server | D36: Dell Inc. | E36: PowerEdge | F36: R415 | G36: R415 2 AMD 4122 2ea 500W PSU | H36: Computer Server | I36: 1U | J36: Yes | K36: 2.0 | L36: 2.0 | M36: AMD | N36: 4122.0 | O36: 2.2 | P36: 8.0 | Q36: 4.0 | R36: 292GB | S36: 500.0 | T36: 2.0 | U36: 1.0 | V36: Windows Server 2008 | W36: Dynamic voltage and frequency scaling of processors, processor or core reduced power states, power capping, low power I/O states | X36: Dynamic voltage and frequency scaling of processors, processor or core reduced power states, power capping, variable speed fan control, low power memory states, low power I/O states | Y36: 79.9 | Z36: 88.4 | AA36: 92.5 | AB36: 92.0 | AC36: 0.74 | AD36: 0.85 | AE36: 0.95 | AF36: 0.98 | AG36: 152.6 | AH36: 156.7 | AI36: 155.7 | AJ36: N/A | AK36: 115V / 60Hz | AL36: 289.8 | AO36: 152 | AP36: 289 | AQ36: 500 | AR36: 0.578 | AS36: =$AO36+($AP36-$AO36)/100*'Server Efficiency'!$O$7 -> 152.1644 | AT36: =$AO36+($AP36-$AO36)/100*'Server Efficiency'!$H$25 -> 152
C37: Server | D37: Dell Inc. | E37: PowerEdge | F37: R415 | G37: R415 2p AMD 4180 2ea. 500W PSU | H37: Computer Server | I37: 1U | J37: Yes | K37: 2.0 | L37: 2.0 | M37: AMD | N37: 4180.0 | O37: 2.6 | P37: 16.0 | Q37: 4.0 | R37: 1200.0 | S37: 500.0 | T37: 2.0 | U37: 1.0 | V37: Windows Server 2008 | W37: Dynamic voltage and frequency scaling of processors, processor or core reduced power states, power capping, low power I/O states | X37: Dynamic voltage and frequency scaling of processors, processor or core reduced power states, power capping, variable speed fan control, low power memory states, low power I/O states | Y37: 79.9 | Z37: 88.4 | AA37: 92.5 | AB37: 92.0 | AC37: 0.74 | AD37: 0.85 | AE37: 0.95 | AF37: 0.98 | AG37: 138.9 | AH37: 133.4 | AI37: 141.3 | AJ37: N/A | AK37: 115V / 60Hz | AL37: 229.3 | AO37: 138 | AP37: 229 | AQ37: 500 | AR37: 0.458 | AS37: =$AO37+($AP37-$AO37)/100*'Server Efficiency'!$O$7 -> 138.1092 | AT37: =$AO37+($AP37-$AO37)/100*'Server Efficiency'!$H$25 -> 138
C38: Server | D38: Dell Inc. | E38: PowerEdge | F38: R510 | G38: R510 2P X5570 1100W | H38: Computer Server | I38: 2U | J38: Yes | K38: 2.0 | L38: 2.0 | M38: Intel | N38: Xeon X5570 | O38: 2.93 | P38: 64.0 | Q38: 8.0 | R38: 4800.0 | S38: 1100.0 | T38: 2.0 | U38: 1.0 | V38: Windows Server 2008 | W38: Dynamic voltage and frequency scaling of processors, processor or core reduced power states, power capping, variable speed fan control | X38: Dynamic voltage and frequency scaling of processors, processor or core reduced power states, power capping, variable speed fan control | Y38: 84.89999999999999 | Z38: 90.3 | AA38: 92.60000000000001 | AB38: 90.3 | AC38: 0.8 | AD38: 0.91 | AE38: 0.97 | AF38: 0.99 | AG38: 258.6 | AH38: 262.1 | AI38: 264.8 | AJ38: N/A | AK38: 100V / 60Hz | AL38: 459.2 | AO38: 258 | AP38: 459 | AQ38: 1100 | AR38: 0.4172727273 | AS38: =$AO38+($AP38-$AO38)/100*'Server Efficiency'!$O$7 -> 258.2412 | AT38: =$AO38+($AP38-$AO38)/100*'Server Efficiency'!$H$25 -> 258
C39: Server | D39: Dell Inc. | E39: PowerEdge | F39: R510 | G39: R510 2P X5570 1100W | H39: Computer Server | I39: 2U | J39: Yes | K39: 2.0 | L39: 2.0 | M39: Intel | N39: Xeon X5570 | O39: 2.93 | P39: 64.0 | Q39: 8.0 | R39: 4800.0 | S39: 1100.0 | T39: 2.0 | U39: 1.0 | V39: Windows Server 2008 | W39: Dynamic voltage and frequency scaling of processors, processor or core reduced power states, power capping, variable speed fan control, low power memory states, low power I/O states | X39: Dynamic voltage and frequency scaling of processors, processor or core reduced power states, power capping, variable speed fan control, low power memory states, low power I/O states | Y39: 81.6 | Z39: 89.2 | AA39: 92.30000000000001 | AB39: 90.7 | AC39: 0.88 | AD39: 0.93 | AE39: 0.964 | AF39: 0.989 | AG39: 258.6 | AH39: 262.1 | AI39: 264.8 | AJ39: N/A | AK39: 100V / 60Hz | AL39: 459.2 | AO39: 258 | AP39: 459 | AQ39: 1100 | AR39: 0.4172727273 | AS39: =$AO39+($AP39-$AO39)/100*'Server Efficiency'!$O$7 -> 258.2412 | AT39: =$AO39+($AP39-$AO39)/100*'Server Efficiency'!$H$25 -> 258
C40: Server | D40: Dell Inc. | E40: PowerEdge | F40: R510 | G40: R510 2P X5570 750W | H40: Computer Server | I40: 2U | J40: Yes | K40: 2.0 | L40: 2.0 | M40: Intel | N40: Xeon X5570 | O40: 2.93 | P40: 64.0 | Q40: 14.0 | R40: 5992.0 | S40: 750.0 | T40: 2.0 | U40: 1.0 | V40: Windows Server 2008 | W40: Dynamic voltage and frequency scaling of processors, processor or core reduced power states, power capping, variable speed fan control | X40: Dynamic voltage and frequency scaling of processors, processor or core reduced power states, power capping, variable speed fan control | Y40: 82.3 | Z40: 90.0 | AA40: 92.4 | AB40: 91.10000000000001 | AC40: 0.82 | AD40: 0.9 | AE40: 0.95 | AF40: 0.98 | AG40: 324.2 | AH40: 329.7 | AI40: 333.7 | AJ40: N/A | AK40: 100V / 60Hz | AL40: 486.7 | AO40: 324 | AP40: 486 | AQ40: 750 | AR40: 0.648 | AS40: =$AO40+($AP40-$AO40)/100*'Server Efficiency'!$O$7 -> 324.1944 | AT40: =$AO40+($AP40-$AO40)/100*'Server Efficiency'!$H$25 -> 324
C41: Server | D41: Dell Inc. | E41: PowerEdge | F41: R510 | G41: R510 2P X5670 750W | H41: Computer Server | I41: 2U | J41: Yes | K41: 2.0 | L41: 2.0 | M41: Intel | N41: Xeon X5670 | O41: 2.93 | P41: 128.0 | Q41: 14.0 | R41: 8400.0 | S41: 750.0 | T41: 2.0 | U41: 1.0 | V41: Windows Server 2008 | W41: Dynamic voltage and frequency scaling of processors, processor or core reduced power states, power capping, variable speed fan control | X41: Dynamic voltage and frequency scaling of processors, processor or core reduced power states, power capping, variable speed fan control | Y41: 82.3 | Z41: 90.0 | AA41: 92.4 | AB41: 91.10000000000001 | AC41: 0.82 | AD41: 0.9 | AE41: 0.95 | AF41: 0.98 | AG41: 357.2 | AH41: 360.3 | AI41: 373.0 | AJ41: N/A | AK41: 100V / 60Hz | AL41: 482.6 | AO41: 357 | AP41: 482 | AQ41: 750 | AR41: 0.6426666667 | AS41: =$AO41+($AP41-$AO41)/100*'Server Efficiency'!$O$7 -> 357.15 | AT41: =$AO41+($AP41-$AO41)/100*'Server Efficiency'!$H$25 -> 357
C42: Server | D42: Dell Inc. | E42: PowerEdge | F42: R515 | G42: R515 2P AMD 4122 2ea 750W | H42: Computer Server | I42: 2U | J42: Yes | K42: 2.0 | L42: 2.0 | M42: AMD | N42: 4122.0 | O42: 2.2 | P42: 16.0 | Q42: 8.0 | R42: 16000.0 | S42: 750.0 | T42: 2.0 | U42: 1.0 | V42: Microsoft WindowsÂ® Server 2003, 2008, Redhat Linux 5.3, Citrix ZenServer 5.0, Oracle Enterprise Linux 5.0, Suse Linux Server 11 | W42: Dynamic voltage and frequency scaling of processors, processor or core reduced power states, power capping, variable speed fan control, low power memory states, low power I/O states | X42: Dynamic voltage and frequency scaling of processors, processor or core reduced power states, power capping, variable speed fan control, low power memory states, low power I/O states | Y42: 82.3 | Z42: 90.2 | AA42: 92.4 | AB42: 91.10000000000001 | AC42: 0.82 | AD42: 0.9 | AE42: 0.95 | AF42: 0.98 | AG42: 192.9 | AH42: 196.5 | AI42: 198.5 | AJ42: N/A | AK42: 100V / 60Hz | AL42: 298.9 | AO42: 192 | AP42: 298 | AQ42: 750 | AR42: 0.3973333333 | AS42: =$AO42+($AP42-$AO42)/100*'Server Efficiency'!$O$7 -> 192.1272 | AT42: =$AO42+($AP42-$AO42)/100*'Server Efficiency'!$H$25 -> 192
C43: Server | D43: Dell Inc. | E43: PowerEdge | F43: R515 | G43: R515 2P AMD 4174 2ea 750W | H43: Computer Server | I43: 2U | J43: Yes | K43: 2.0 | L43: 2.0 | M43: AMD | N43: 4174.0 | O43: 2.3 | P43: 8.0 | Q43: 12.0 | R43: 24000.0 | S43: 750.0 | T43: 2.0 | U43: 1.0 | V43: Microsoft WindowsÂ® Server 2003, 2008, Redhat Linux 5.3, Citrix ZenServer 5.0, Oracle Enterprise Linux 5.0, Suse Linux Server 11 | W43: Dynamic voltage and frequency scaling of processors, processor or core reduced power states, power capping, variable speed fan control, low power memory states, low power I/O states | X43: Dynamic voltage and frequency scaling of processors, processor or core reduced power states, power capping, variable speed fan control, low power memory states, low power I/O states | Y43: 82.3 | Z43: 90.2 | AA43: 92.4 | AB43: 91.10000000000001 | AC43: 0.82 | AD43: 0.9 | AE43: 0.95 | AF43: 0.98 | AG43: 201.0 | AH43: 201.8 | AI43: 205.6 | AJ43: N/A | AK43: 100V / 60Hz | AL43: 291.8 | AO43: 201 | AP43: 291 | AQ43: 750 | AR43: 0.388 | AS43: =$AO43+($AP43-$AO43)/100*'Server Efficiency'!$O$7 -> 201.108 | AT43: =$AO43+($AP43-$AO43)/100*'Server Efficiency'!$H$25 -> 201
C44: Server | D44: Dell Inc. | E44: PowerEdge | F44: R515 | G44: R515 2P AMD 4174 2ea 750W | H44: Computer Server | I44: 2U | J44: Yes | K44: 2.0 | L44: 2.0 | M44: AMD | N44: 4174.0 | O44: 2.3 | P44: 8.0 | Q44: 6.0 | R44: 3600.0 | S44: 750.0 | T44: 2.0 | U44: 1.0 | V44: Microsoft WindowsÂ® Server 2003, 2008, Redhat Linux 5.3, Citrix ZenServer 5.0, Oracle Enterprise Linux 5.0, Suse Linux Server 11 | W44: Dynamic voltage and frequency scaling of processors, processor or core reduced power states, power capping, variable speed fan control, low power memory states, low power I/O states | X44: Dynamic voltage and frequency scaling of processors, processor or core reduced power states, power capping, variable speed fan control, low power memory states, low power I/O states | Y44: 82.3 | Z44: 90.2 | AA44: 92.4 | AB44: 91.10000000000001 | AC44: 0.82 | AD44: 0.9 | AE44: 0.95 | AF44: 0.98 | AG44: 158.4 | AH44: 184.1 | AI44: 165.0 | AJ44: N/A | AK44: 100V / 60Hz | AL44: 245.1 | AO44: 158 | AP44: 245 | AQ44: 750 | AR44: 0.3266666667 | AS44: =$AO44+($AP44-$AO44)/100*'Server Efficiency'!$O$7 -> 158.1044 | AT44: =$AO44+($AP44-$AO44)/100*'Server Efficiency'!$H$25 -> 158
C45: Server | D45: Dell Inc. | E45: PowerEdge | F45: R515 | G45: R515 2P AMD 4180 2ea 750W | H45: Computer Server | I45: 2U | J45: Yes | K45: 2.0 | L45: 2.0 | M45: AMD | N45: 4180.0 | O45: 2.6 | P45: 16.0 | Q45: 8.0 | R45: 4800.0 | S45: 750.0 | T45: 2.0 | U45: 1.0 | V45: Microsoft WindowsÂ® Server 2003, 2008, Redhat Linux 5.3, Citrix ZenServer 5.0, Oracle Enterprise Linux 5.0, Suse Linux Server 11 | W45: Dynamic voltage and frequency scaling of processors, processor or core reduced power states, power capping, variable speed fan control, low power memory states, low power I/O states | X45: Dynamic voltage and frequency scaling of processors, processor or core reduced power states, power capping, variable speed fan control, low power memory states, low power I/O states | Y45: 82.3 | Z45: 90.2 | AA45: 92.4 | AB45: 91.10000000000001 | AC45: 0.82 | AD45: 0.9 | AE45: 0.95 | AF45: 0.98 | AG45: 213.6 | AH45: 215.5 | AI45: 216.7 | AJ45: N/A | AK45: 100V / 60Hz | AL45: 420.9 | AO45: 213 | AP45: 420 | AQ45: 750 | AR45: 0.56 | AS45: =$AO45+($AP45-$AO45)/100*'Server Efficiency'!$O$7 -> 213.2484 | AT45: =$AO45+($AP45-$AO45)/100*'Server Efficiency'!$H$25 -> 213
C46: Server | D46: Dell Inc. | E46: PowerEdge | F46: R515 | G46: R515 2P AMD 4180 2ea 750W | H46: Computer Server | I46: 2U | J46: Yes | K46: 2.0 | L46: 2.0 | M46: AMD | N46: 4180.0 | O46: 2.6 | P46: 8.0 | Q46: 6.0 | R46: 6000.0 | S46: 750.0 | T46: 2.0 | U46: 1.0 | V46: Microsoft WindowsÂ® Server 2003, 2008, Redhat Linux 5.3, Citrix ZenServer 5.0, Oracle Enterprise Linux 5.0, Suse Linux Server 11 | W46: Dynamic voltage and frequency scaling of processors, processor or core reduced power states, power capping, variable speed fan control, low power memory states, low power I/O states | X46: Dynamic voltage and frequency scaling of processors, processor or core reduced power states, power capping, variable speed fan control, low power memory states, low power I/O states | Y46: 82.3 | Z46: 90.2 | AA46: 92.4 | AB46: 91.10000000000001 | AC46: 0.82 | AD46: 0.9 | AE46: 0.95 | AF46: 0.98 | AG46: 152.4 | AH46: 154.2 | AI46: 155.6 | AJ46: N/A | AK46: 100V / 60Hz | AL46: 309.4 | AO46: 152 | AP46: 309 | AQ46: 750 | AR46: 0.412 | AS46: =$AO46+($AP46-$AO46)/100*'Server Efficiency'!$O$7 -> 152.1884 | AT46: =$AO46+($AP46-$AO46)/100*'Server Efficiency'!$H$25 -> 152
C47: Server | D47: Dell Inc. | E47: PowerEdge | F47: R610 | G47: R610 2P E5620 717W | H47: Computer Server | I47: 1U | J47: Yes | K47: 2.0 | L47: 2.0 | M47: Intel | N47: Xeon E5620 | O47: 2.4 | P47: 12.0 | Q47: 4.0 | R47: 584.0 | S47: 717.0 | T47: 2.0 | U47: 1.0 | V47: Windows Server 2008 | W47: Dynamic voltage and frequency scaling of processors, processor or core reduced power states, power capping, variable speed fan control | X47: Dynamic voltage and frequency scaling of processors, processor or core reduced power states, power capping, variable speed fan control | Y47: 77.2 | Z47: 85.6 | AA47: 90.60000000000001 | AB47: 90.0 | AC47: 0.8 | AD47: 0.94 | AE47: 0.98 | AF47: 0.99 | AG47: 107.8 | AH47: 111.6 | AI47: 111.7 | AJ47: N/A | AK47: 100V / 60Hz | AL47: 242.5 | AO47: 107 | AP47: 242 | AQ47: 717 | AR47: 0.3375174338 | AS47: =$AO47+($AP47-$AO47)/100*'Server Efficiency'!$O$7 -> 107.162 | AT47: =$AO47+($AP47-$AO47)/100*'Server Efficiency'!$H$25 -> 107
C48: Server | D48: Dell Inc. | E48: PowerEdge | F48: R710 | G48: R710 2P E5620 570W | H48: Computer Server | I48: 2U | J48: Yes | K48: 2.0 | L48: 2.0 | M48: Intel | N48: Xeon E5620 | O48: 2.4 | P48: 12.0 | Q48: 4.0 | R48: 584.0 | S48: 570.0 | T48: 2.0 | U48: 1.0 | V48: Windows Server 2008 | W48: Dynamic voltage and frequency scaling of processors, processor or core reduced power states, power capping, variable speed fan control | X48: Dynamic voltage and frequency scaling of processors, processor or core reduced power states, power capping, variable speed fan control | Y48: 81.5 | Z48: 88.1 | AA48: 92.0 | AB48: 91.5 | AC48: 0.72 | AD48: 0.92 | AE48: 0.98 | AF48: 0.99 | AG48: 112.2 | AH48: 113.9 | AI48: 114.4 | AJ48: N/A | AK48: 100V / 60Hz | AL48: 241.8 | AO48: 112 | AP48: 241 | AQ48: 570 | AR48: 0.4228070175 | AS48: =$AO48+($AP48-$AO48)/100*'Server Efficiency'!$O$7 -> 112.1548 | AT48: =$AO48+($AP48-$AO48)/100*'Server Efficiency'!$H$25 -> 112
C49: Server | D49: Dell Inc. | E49: PowerEdge | F49: R710 | G49: R710 2P E5620 870W | H49: Computer Server | I49: 2U | J49: Yes | K49: 2.0 | L49: 2.0 | M49: Intel | N49: Xeon E5620 | O49: 2.4 | P49: 12.0 | Q49: 4.0 | R49: 584.0 | S49: 870.0 | T49: 2.0 | U49: 1.0 | V49: Windows Server 2008 | W49: Dynamic voltage and frequency scaling of processors, processor or core reduced power states, power capping, variable speed fan control | X49: Dynamic voltage and frequency scaling of processors, processor or core reduced power states, power capping, variable speed fan control | Y49: 77.7 | Z49: 87.1 | AA49: 91.5 | AB49: 91.10000000000001 | AC49: 0.71 | AD49: 0.87 | AE49: 0.97 | AF49: 0.99 | AG49: 124.1 | AH49: 122.4 | AI49: 128.7 | AJ49: N/A | AK49: 100V / 60Hz | AL49: 252.2 | AO49: 124 | AP49: 252 | AQ49: 870 | AR49: 0.2896551724 | AS49: =$AO49+($AP49-$AO49)/100*'Server Efficiency'!$O$7 -> 124.1536 | AT49: =$AO49+($AP49-$AO49)/100*'Server Efficiency'!$H$25 -> 124
C50: Server | D50: Dell Inc. | E50: PowerEdge | F50: PowerEdge R715 | G50: R715 | H50: 1 or 2 Socket Server | I50: Other | J50: Yes | K50: 2 | L50: 2 | M50: AMD | N50: Opteron Processor 6274 | O50: 2.20 | P50: 32.00 | Q50: 2 | R50: 294.00 | S50: 1100 | T50: 2 | U50: 2 | V50: Microsoft Window Server 2008 | W50: Power capping,Processor or core reduced power states,Dynamic voltage and frequency scaling of processor(s) | X50: Power capping,Processor or core reduced power states,Dynamic voltage and frequency scaling of processor(s) | Y50: 0.90 | Z50: 0.93 | AA50: 0.95 | AB50: 0.93 | AC50: 0.90 | AD50: 0.96 | AE50: 0.99 | AF50: 0.99 | AG50: 201.53 | AH50: 215.77 | AI50: 218.51 | AJ50: 0 | AK50: 115 Vac, 60 Hz | AL50: 373.20 | AM50: 2011-11-16 | AN50: 2012-02-29 | AO50: 201 | AP50: 373 | AQ50: 1100 | AR50: 0.3390909091 | AS50: =$AO50+($AP50-$AO50)/100*'Server Efficiency'!$O$7 -> 201.2064 | AT50: =$AO50+($AP50-$AO50)/100*'Server Efficiency'!$H$25 -> 201
C51: Server | D51: Dell Inc. | E51: PowerEdge | F51: R910 | G51: R910 4P E7540 1100W | H51: Computer Server | I51: Other | J51: Yes | K51: 4.0 | L51: 4.0 | M51: Intel | N51: Xeon E7540 | O51: 2.0 | P51: 128.0 | Q51: 4.0 | R51: 588.0 | S51: 1100.0 | T51: 4.0 | U51: 2.0 | V51: Windows Server 2008 | W51: Dynamic voltage and frequency scaling of processors, processor or core reduced power states, power capping, variable speed fan control, low power memory states, low power I/O states | X51: Dynamic voltage and frequency scaling of processors, processor or core reduced power states, power capping, variable speed fan control, low power I/O states | Y51: 81.6 | Z51: 89.2 | AA51: 92.30000000000001 | AB51: 90.7 | AC51: 0.88 | AD51: 0.93 | AE51: 0.964 | AF51: 0.989 | AG51: 614.1 | AH51: 607.9 | AI51: 613.5 | AJ51: N/A | AK51: 115V / 60Hz | AL51: 829.1 | AO51: 614 | AP51: 829 | AQ51: 1100 | AR51: 0.7536363636 | AS51: =$AO51+($AP51-$AO51)/100*'Server Efficiency'!$O$7 -> 614.258 | AT51: =$AO51+($AP51-$AO51)/100*'Server Efficiency'!$H$25 -> 614
C52: Server | D52: Dell Inc. | E52: PowerEdge | F52: T310 | G52: T310 1P X3430 400W | H52: Computer Server | I52: Pedestal | J52: Yes | K52: 1.0 | L52: 1.0 | M52: Intel | N52: Xeon X3430 | O52: 2.4 | P52: 4.0 | Q52: 4.0 | R52: 500.0 | S52: 400.0 | T52: 2.0 | U52: 1.0 | V52: Windows Server 2008 | W52: Dynamic voltage and frequency scaling of processors, processor or core reduced power states, power capping | X52: Dynamic voltage and frequency scaling of processors, processor or core reduced power states, power capping, variable speed fan control, low power memory states, low power I/O states | Y52: 75.6 | Z52: 86.8 | AA52: 90.2 | AB52: 90.3 | AC52: 0.96 | AD52: 0.99 | AE52: 0.99 | AF52: 0.99 | AG52: 79.6 | AH52: 80.0 | AI52: 81.4 | AJ52: N/A | AK52: 100V / 60Hz | AL52: 131.9 | AO52: 79 | AP52: 131 | AQ52: 400 | AR52: 0.3275 | AS52: =$AO52+($AP52-$AO52)/100*'Server Efficiency'!$O$7 -> 79.0624 | AT52: =$AO52+($AP52-$AO52)/100*'Server Efficiency'!$H$25 -> 79
C53: Server | D53: Dell Inc. | E53: PowerEdge | F53: T410 | G53: T410 2P X5560 580W | H53: Computer Server | I53: Pedestal | J53: Yes | K53: 2.0 | L53: 2.0 | M53: Intel | N53: Xeon X5560 | O53: 2.8 | P53: 64.0 | Q53: 6.0 | R53: 3600.0 | S53: 580.0 | T53: 2.0 | U53: 1.0 | V53: Windows Server 2008 | W53: Dynamic voltage and frequency scaling of processors, processor or core reduced power states, power capping, variable speed fan control | X53: Dynamic voltage and frequency scaling of processors, processor or core reduced power states, power capping, variable speed fan control | Y53: 83.3 | Z53: 89.3 | AA53: 92.2 | AB53: 90.9 | AC53: 0.86 | AD53: 0.94 | AE53: 0.97 | AF53: 0.99 | AG53: 244.4 | AH53: 243.1 | AI53: 250.0 | AJ53: N/A | AK53: 100V / 60Hz | AL53: 442.7 | AO53: 244 | AP53: 442 | AQ53: 580 | AR53: 0.7620689655 | AS53: =$AO53+($AP53-$AO53)/100*'Server Efficiency'!$O$7 -> 244.2376 | AT53: =$AO53+($AP53-$AO53)/100*'Server Efficiency'!$H$25 -> 244
C54: Server | D54: Dell Inc. | E54: PowerEdge | F54: T410 | G54: T410 2P X5660 580W | H54: Computer Server | I54: Pedestal | J54: Yes | K54: 2.0 | L54: 2.0 | M54: Intel | N54: Intel X5660 | O54: 2.8 | P54: 128.0 | Q54: 6.0 | R54: 2700.0 | S54: 580.0 | T54: 2.0 | U54: 1.0 | V54: Windows Server 2008 | W54: Dynamic voltage and frequency scaling of processors, processor or core reduced power states, power capping, variable speed fan control | X54: Dynamic voltage and frequency scaling of processors, processor or core reduced power states, power capping, variable speed fan control | Y54: 83.3 | Z54: 89.3 | AA54: 92.2 | AB54: 90.9 | AC54: 0.86 | AD54: 0.94 | AE54: 0.97 | AF54: 0.99 | AG54: 247.8 | AH54: 247.5 | AI54: 248.2 | AJ54: N/A | AK54: 100V / 60Hz | AL54: 469.8 | AO54: 247 | AP54: 469 | AQ54: 580 | AR54: 0.8086206897 | AS54: =$AO54+($AP54-$AO54)/100*'Server Efficiency'!$O$7 -> 247.2664 | AT54: =$AO54+($AP54-$AO54)/100*'Server Efficiency'!$H$25 -> 247
C55: Server | D55: Dell Inc. | E55: PowerEdge | F55: T410 | G55: T410 580W | H55: Computer Server | I55: Pedestal | J55: Yes | K55: 2.0 | L55: 2.0 | M55: Intel | N55: Xeon E5620 | O55: 2.4 | P55: 4.0 | Q55: 2.0 | R55: 480.0 | S55: 580.0 | T55: 2.0 | U55: 1.0 | V55: Windows Server 2008 | W55: Dynamic voltage and frequency scaling of processors, processor or core reduced power states, power capping | X55: Dynamic voltage and frequency scaling of processors, processor or core reduced power states, power capping, variable speed fan control, low power memory states, low power I/O states | Y55: 83.3 | Z55: 89.3 | AA55: 92.2 | AB55: 90.9 | AC55: 0.86 | AD55: 0.94 | AE55: 0.97 | AF55: 0.99 | AG55: 107.8 | AH55: 106.9 | AI55: 107.8 | AJ55: N/A | AK55: 115V / 60Hz | AL55: 181.3 | AO55: 107 | AP55: 181 | AQ55: 580 | AR55: 0.3120689655 | AS55: =$AO55+($AP55-$AO55)/100*'Server Efficiency'!$O$7 -> 107.0888 | AT55: =$AO55+($AP55-$AO55)/100*'Server Efficiency'!$H$25 -> 107
C56: Server | D56: Dell Inc. | E56: PowerEdge | F56: T610 | G56: T610 2P E5540 570W | H56: Computer Server | I56: Pedestal | J56: Yes | K56: 2.0 | L56: 2.0 | M56: Intel | N56: Xeon E5540 | O56: 2.53 | P56: 12.0 | Q56: 4.0 | R56: 584.0 | S56: 570.0 | T56: 2.0 | U56: 1.0 | V56: Windows Server 2008 | W56: Dynamic voltage and frequency scaling of processors, processor or core reduced power states, power capping, variable speed fan control | X56: Dynamic voltage and frequency scaling of processors, processor or core reduced power states, power capping, variable speed fan control | Y56: 81.5 | Z56: 88.1 | AA56: 92.0 | AB56: 91.5 | AC56: 0.72 | AD56: 0.92 | AE56: 0.98 | AF56: 0.99 | AG56: 124.4 | AH56: 126.2 | AI56: 125.2 | AJ56: N/A | AK56: 100V / 60Hz | AL56: 259.8 | AO56: 124 | AP56: 259 | AQ56: 570 | AR56: 0.4543859649 | AS56: =$AO56+($AP56-$AO56)/100*'Server Efficiency'!$O$7 -> 124.162 | AT56: =$AO56+($AP56-$AO56)/100*'Server Efficiency'!$H$25 -> 124
C57: Server | D57: Dell Inc. | E57: PowerEdge | F57: T710 | G57: T710 2P E5520 1100W | H57: Computer Server | I57: Pedestal | J57: Yes | K57: 2.0 | L57: 2.0 | M57: Intel | N57: Xeon E5520 | O57: 2.26 | P57: 24.0 | Q57: 12.0 | R57: 1168.0 | S57: 1100.0 | T57: 2.0 | U57: 1.0 | V57: Windows Server 2003 | W57: Dynamic voltage and frequency scaling of processors, processor or core reduced power states, power capping | X57: Dynamic voltage and frequency scaling of processors, processor or core reduced power states, power capping, variable speed fan control, low power memory states, low power I/O states | Y57: 81.6 | Z57: 89.2 | AA57: 92.30000000000001 | AB57: 90.7 | AC57: 0.88 | AD57: 0.93 | AE57: 0.964 | AF57: 0.986 | AG57: 190.5 | AH57: 194.2 | AI57: 197.5 | AJ57: N/A | AK57: 115V / 60Hz | AL57: 322.3 | AO57: 190 | AP57: 322 | AQ57: 1100 | AR57: 0.2927272727 | AS57: =$AO57+($AP57-$AO57)/100*'Server Efficiency'!$O$7 -> 190.1584 | AT57: =$AO57+($AP57-$AO57)/100*'Server Efficiency'!$H$25 -> 190
C58: Server | D58: Dell Inc. | E58: PowerEdge | F58: T710 | G58: T710 2P E5620 1100W | H58: Computer Server | I58: Pedestal | J58: Yes | K58: 2.0 | L58: 2.0 | M58: Intel | N58: Xeon E5620 | O58: 2.4 | P58: 24.0 | Q58: 12.0 | R58: 1168.0 | S58: 1100.0 | T58: 2.0 | U58: 1.0 | V58: Windows Server 2003 | W58: Dynamic voltage and frequency scaling of processors, processor or core reduced power states, power capping, variable speed fan control, low power memory states, low power I/O states | X58: Dynamic voltage and frequency scaling of processors, processor or core reduced power states, power capping, variable speed fan control, low power memory states, low power I/O states | Y58: 85.0 | Z58: 90.3 | AA58: 92.60000000000001 | AB58: 90.3 | AC58: 0.8 | AD58: 0.91 | AE58: 0.97 | AF58: 0.99 | AG58: 179.3 | AH58: 182.1 | AI58: 183.8 | AJ58: N/A | AK58: 115V / 60Hz | AL58: 317.9 | AO58: 179 | AP58: 317 | AQ58: 1100 | AR58: 0.2881818182 | AS58: =$AO58+($AP58-$AO58)/100*'Server Efficiency'!$O$7 -> 179.1656 | AT58: =$AO58+($AP58-$AO58)/100*'Server Efficiency'!$H$25 -> 179
C59: Server | D59: Fujitsu Technology Solutions GmbH | E59: Fujitsu | F59: PRIMERGY RX200 S5 | G59: LKN:R2005S0010IN | H59: Computer Server | I59: 1U | J59: Yes | K59: 2.0 | L59: 2.0 | M59: Intel | N59: Xeon | O59: 2.7 | P59: 12.0 | Q59: 2.0 | R59: 146.0 | S59: 770.0 | T59: 2.0 | U59: 1.0 | V59: MS Windows Server 2008 Enterprise Edition, SP2 | W59: Dynamic voltage and frequency scaling of processors, processor or core reduced power states, variable speed fan control | X59: Dynamic voltage and frequency scaling of processors, processor or core reduced power states, variable speed fan control | Y59: 75.6 | Z59: 85.2 | AA59: 89.4 | AB59: 89.4 | AC59: 0.927 | AD59: 0.969 | AE59: 0.995 | AF59: 0.998 | AG59: 161.9 | AH59: N/A | AI59: N/A | AJ59: N/A | AK59: 230V / 50Hz | AL59: 309.4 | AO59: 161 | AP59: 309 | AQ59: 770 | AR59: 0.4012987013 | AS59: =$AO59+($AP59-$AO59)/100*'Server Efficiency'!$O$7 -> 161.1776 | AT59: =$AO59+($AP59-$AO59)/100*'Server Efficiency'!$H$25 -> 161
C60: Server | D60: Fujitsu Technology Solutions GmbH | E60: Fujitsu | F60: PRIMERGY RX300 S5 | G60: LKN:R3005S0021IN | H60: Computer Server | I60: 2U | J60: Yes | K60: 2.0 | L60: 2.0 | M60: Intel | N60: Xeon | O60: 2.7 | P60: 12.0 | Q60: 1.0 | R60: 120.0 | S60: 800.0 | T60: 2.0 | U60: 1.0 | V60: MS Windows Server 2008 Enterprise Edition, SP2 | W60: Dynamic voltage and frequency scaling of processors, processor or core reduced power states, variable speed fan control | X60: Dynamic voltage and frequency scaling of processors, processor or core reduced power states, variable speed fan control | Y60: 84.39999999999999 | Z60: 89.60000000000001 | AA60: 92.2 | AB60: 90.9 | AC60: 0.819 | AD60: 0.921 | AE60: 0.974 | AF60: 0.989 | AG60: 135.3 | AH60: N/A | AI60: N/A | AJ60: N/A | AK60: 230V / 50Hz | AL60: 262.2 | AO60: 135 | AP60: 262 | AQ60: 800 | AR60: 0.3275 | AS60: =$AO60+($AP60-$AO60)/100*'Server Efficiency'!$O$7 -> 135.1524 | AT60: =$AO60+($AP60-$AO60)/100*'Server Efficiency'!$H$25 -> 135
C61: Server | D61: Fujitsu Technology Solutions GmbH | E61: Fujitsu | F61: PRIMERGY TX200 S5 | G61: LKN:T2005S0003IN | H61: Computer Server | I61: Pedestal | J61: Yes | K61: 2.0 | L61: 2.0 | M61: Intel | N61: Xeon | O61: 2.3 | P61: 12.0 | Q61: 2.0 | R61: 600.0 | S61: 800.0 | T61: 2.0 | U61: 1.0 | V61: MS Windows Server 2008 Enterprise Edition, SP2 | W61: Dynamic voltage and frequency scaling of processors, processor or core reduced power states, variable speed fan control | X61: Dynamic voltage and frequency scaling of processors, processor or core reduced power states, variable speed fan control | Y61: 77.7 | Z61: 87.0 | AA61: 90.2 | AB61: 88.8 | AC61: 0.85 | AD61: 0.93 | AE61: 0.97 | AF61: 0.99 | AG61: 184.6 | AH61: N/A | AI61: N/A | AJ61: N/A | AK61: 230V / 50Hz | AL61: 284.5 | AO61: 184 | AP61: 284 | AQ61: 800 | AR61: 0.355 | AS61: =$AO61+($AP61-$AO61)/100*'Server Efficiency'!$O$7 -> 184.12 | AT61: =$AO61+($AP61-$AO61)/100*'Server Efficiency'!$H$25 -> 184
C62: Server | D62: Fujitsu Technology Solutions GmbH | E62: Fujitsu | F62: PRIMERGY TX300 S5 | G62: LKN:T3005S0002IN | H62: Computer Server | I62: Pedestal | J62: Yes | K62: 2.0 | L62: 2.0 | M62: Intel | N62: Xeon | O62: 2.7 | P62: 12.0 | Q62: 1.0 | R62: 250.0 | S62: 800.0 | T62: 2.0 | U62: 1.0 | V62: MS Windows Server 2008 Enterprise Edition, SP2 | W62: Dynamic voltage and frequency scaling of processors, processor or core reduced power states, variable speed fan control | X62: Dynamic voltage and frequency scaling of processors, processor or core reduced power states, variable speed fan control | Y62: 77.7 | Z62: 87.0 | AA62: 90.2 | AB62: 88.8 | AC62: 0.85 | AD62: 0.93 | AE62: 0.97 | AF62: 0.99 | AG62: 161.3 | AH62: N/A | AI62: N/A | AJ62: N/A | AK62: 230V / 50Hz | AL62: 302.2 | AO62: 161 | AP62: 302 | AQ62: 800 | AR62: 0.3775 | AS62: =$AO62+($AP62-$AO62)/100*'Server Efficiency'!$O$7 -> 161.1692 | AT62: =$AO62+($AP62-$AO62)/100*'Server Efficiency'!$H$25 -> 161
C63: Server | D63: Fujitsu Technology Solutions GmbH | E63: Fujitsu | F63: PRIMERGY RX100 S6 E-StarFam1 | G63: PRIMERGY RX100 S6 E-StarFam1 | H63: Computer Server | I63: 1U | J63: Yes | K63: 1.0 | L63: 1.0 | M63: Intel | N63: Core i3-540 | O63: 3.1 | P63: 2.0 | Q63: 0.0 | R63: 0.0 | S63: 350.0 | T63: 1.0 | U63: 0.0 | V63: MS Windows Server 2008 R2 Enterprise Edition, Vers. 6.1 (Build 7600) | W63: Dynamic voltage and frequency scaling of processors, processor/core reduced power states, variable speed fan control | X63: Dynamic voltage and frequency scaling of processors, processor/core reduced power states, variable speed fan control | Y63: 79.10000000000001 | Z63: 87.3 | AA63: 90.4 | AB63: 89.1 | AC63: 0.74 | AD63: 0.88 | AE63: 0.97 | AF63: 0.99 | AG63: 51.1 | AH63: 51.4 | AI63: N/A | AJ63: N/A | AK63: 230V / 50Hz | AL63: 76.6 | AO63: 51 | AP63: 76.6 | AQ63: 350 | AR63: 0.2188571429 | AS63: =$AO63+($AP63-$AO63)/100*'Server Efficiency'!$O$7 -> 51.03072 | AT63: =$AO63+($AP63-$AO63)/100*'Server Efficiency'!$H$25 -> 51
C64: Server | D64: Hewlett-Packard Company | E64: Hewlett-Packard | F64: DL380 G6 | G64: 491315-xx1 | H64: Computer Server | I64: 2U | J64: Yes | K64: 2.0 | L64: 2.0 | M64: Intel | N64: X5560 | O64: 2.8 | P64: 12.0 | Q64: 1.0 | R64: 120.0 | S64: 750.0 | T64: 1.0 | U64: 1.0 | V64: Windows Server 2008 Enterprise SP1 | W64: Dynamic voltage and frequency scaling of processors, processor or core reduced power states, variable speed fan control, low power memory states | X64: Dynamic voltage and frequency scaling of processors, power capping, variable speed fan control | Y64: 86.1 | Z64: 90.3 | AA64: 92.7 | AB64: 91.10000000000001 | AC64: 0.792 | AD64: 0.862 | AE64: 0.927 | AF64: 0.963 | AG64: 138.9 | AH64: N/A | AI64: N/A | AJ64: N/A | AK64: 230V / 50Hz | AL64: 270.8 | AO64: 138 | AP64: 270 | AQ64: 750 | AR64: 0.36 | AS64: =$AO64+($AP64-$AO64)/100*'Server Efficiency'!$O$7 -> 138.1584 | AT64: =$AO64+($AP64-$AO64)/100*'Server Efficiency'!$H$25 -> 138
C65: Server | D65: Hewlett-Packard Company | E65: Hewlett-Packard | F65: DL380 G6 | G65: 491316-xx1 | H65: Computer Server | I65: 2U | J65: Yes | K65: 2.0 | L65: 2.0 | M65: Intel | N65: X5550 | O65: 2.7 | P65: 12.0 | Q65: 1.0 | R65: 120.0 | S65: 750.0 | T65: 1.0 | U65: 1.0 | V65: Windows Server 2008 Enterprise SP1 | W65: Dynamic voltage and frequency scaling of processors, processor or core reduced power states, variable speed fan control, low power memory states | X65: Dynamic voltage and frequency scaling of processors, power capping, variable speed fan control | Y65: 86.1 | Z65: 90.3 | AA65: 92.7 | AB65: 91.10000000000001 | AC65: 0.792 | AD65: 0.862 | AE65: 0.927 | AF65: 0.963 | AG65: 139.0 | AH65: N/A | AI65: N/A | AJ65: N/A | AK65: 230V / 50Hz | AL65: 260.6 | AO65: 139 | AP65: 260 | AQ65: 750 | AR65: 0.3466666667 | AS65: =$AO65+($AP65-$AO65)/100*'Server Efficiency'!$O$7 -> 139.1452 | AT65: =$AO65+($AP65-$AO65)/100*'Server Efficiency'!$H$25 -> 139
C66: Server | D66: Hewlett-Packard Company | E66: Hewlett-Packard | F66: DL380 G6 | G66: 491335-xx1 | H66: Computer Server | I66: 2U | J66: Yes | K66: 2.0 | L66: 1.0 | M66: Intel | N66: L5520 | O66: 2.26 | P66: 4.0 | Q66: 1.0 | R66: 120.0 | S66: 750.0 | T66: 1.0 | U66: 0.0 | V66: Windows Server 2008 Enterprise SP1 | W66: Dynamic voltage and frequency scaling of processors, processor or core reduced power states, variable speed fan control, low power memory states | X66: Dynamic voltage and frequency scaling of processors, power capping, variable speed fan control | Y66: 85.5 | Z66: 90.10000000000001 | AA66: 92.2 | AB66: 91.60000000000001 | AC66: 0.816 | AD66: 0.923 | AE66: 0.956 | AF66: 0.982 | AG66: 68.7 | AH66: N/A | AI66: N/A | AJ66: N/A | AK66: 230V / 50Hz | AL66: 106.2 | AO66: 68 | AP66: 106 | AQ66: 750 | AR66: 0.1413333333 | AS66: =$AO66+($AP66-$AO66)/100*'Server Efficiency'!$O$7 -> 68.0456 | AT66: =$AO66+($AP66-$AO66)/100*'Server Efficiency'!$H$25 -> 68
C67: Server | D67: Hewlett-Packard Company | E67: Hewlett-Packard | F67: DL360 G6 | G67: 504633-xx1 | H67: Computer Server | I67: 1U | J67: Yes | K67: 2.0 | L67: 2.0 | M67: Intel | N67: X5550 | O67: 2.7 | P67: 12.0 | Q67: 1.0 | R67: 120.0 | S67: 750.0 | T67: 1.0 | U67: 1.0 | V67: Windows Server 2008 Enterprise SP1 | W67: Dynamic voltage and frequency scaling of processors, processor or core reduced power states, variable speed fan control, low power memory states | X67: Dynamic voltage and frequency scaling of processors, power capping, variable speed fan control | Y67: 85.5 | Z67: 90.10000000000001 | AA67: 92.2 | AB67: 91.60000000000001 | AC67: 0.816 | AD67: 0.923 | AE67: 0.956 | AF67: 0.982 | AG67: 130.3 | AH67: N/A | AI67: N/A | AJ67: N/A | AK67: 230V / 50Hz | AL67: 233.0 | AO67: 130 | AP67: 233 | AQ67: 750 | AR67: 0.3106666667 | AS67: =$AO67+($AP67-$AO67)/100*'Server Efficiency'!$O$7 -> 130.1236 | AT67: =$AO67+($AP67-$AO67)/100*'Server Efficiency'!$H$25 -> 130
C68: Server | D68: Hewlett-Packard Company | E68: Hewlett-Packard | F68: DL385 G7 | G68: 573087-xx1 ( 573087-001 in US) | H68: Computer Server | I68: 2U | J68: Yes | K68: 2.0 | L68: 2.0 | M68: AMD | N68: 6174.0 | O68: 2.2 | P68: 16.0 | Q68: 1.0 | R68: 72.0 | S68: 750.0 | T68: 2.0 | U68: 1.0 | V68: Window Advanced/Enterprise 2008 Server 6.00.6002 (SP2) | W68: Dynamic voltage and frequency scaling of processors, processor or core reduced power states, power capping, variable speed fan control, low power memory states | X68: Dynamic voltage and frequency scaling of processors, processor or core reduced power states, variable speed fan control | Y68: 86.1 | Z68: 90.3 | AA68: 92.7 | AB68: 91.10000000000001 | AC68: 0.792 | AD68: 0.862 | AE68: 0.927 | AF68: 0.963 | AG68: 133.4 | AH68: N/A | AI68: N/A | AJ68: N/A | AK68: 230V / 50Hz | AL68: 270.8 | AO68: 133 | AP68: 270 | AQ68: 750 | AR68: 0.36 | AS68: =$AO68+($AP68-$AO68)/100*'Server Efficiency'!$O$7 -> 133.1644 | AT68: =$AO68+($AP68-$AO68)/100*'Server Efficiency'!$H$25 -> 133
C69: Server | D69: Hewlett-Packard Company | E69: Hewlett-Packard | F69: DL360 G7 | G69: 579239-xx1 (579239-001 in US) | H69: Computer Server | I69: 1U | J69: Yes | K69: 2.0 | L69: 2.0 | M69: Intel | N69: X5650 | O69: 2.66 | P69: 12.0 | Q69: 1.0 | R69: 72.0 | S69: 460.0 | T69: 2.0 | U69: 1.0 | V69: Window Advanced/Enterprise 2008 Server 6.00.6002 (SP2) | W69: Dynamic voltage and frequency scaling of processors, processor or core reduced power states, power capping, variable speed fan control, low power memory states | X69: Dynamic voltage and frequency scaling of processors, processor or core reduced power states, variable speed fan control | Y69: 85.5 | Z69: 90.10000000000001 | AA69: 92.2 | AB69: 91.60000000000001 | AC69: 0.816 | AD69: 0.923 | AE69: 0.956 | AF69: 0.982 | AG69: 103.0 | AH69: N/A | AI69: N/A | AJ69: N/A | AK69: 230V / 50Hz | AL69: 270.9 | AO69: 103 | AP69: 270 | AQ69: 460 | AR69: 0.5869565217 | AS69: =$AO69+($AP69-$AO69)/100*'Server Efficiency'!$O$7 -> 103.2004 | AT69: =$AO69+($AP69-$AO69)/100*'Server Efficiency'!$H$25 -> 103
C70: Server | D70: Hewlett-Packard Company | E70: Hewlett-Packard | F70: DL380 G7 | G70: 583966-xx1 (583966-001 in US) | H70: Computer Server | I70: 2U | J70: Yes | K70: 2.0 | L70: 2.0 | M70: Intel | N70: X5650 | O70: 2.7 | P70: 12.0 | Q70: 1.0 | R70: 72.0 | S70: 750.0 | T70: 2.0 | U70: 1.0 | V70: Window Advanced/Enterprise 2008 Server 6.00.6002 (SP2) | W70: Dynamic voltage and frequency scaling of processors, processor or core reduced power states, power capping, variable speed fan control, low power memory states | X70: Dynamic voltage and frequency scaling of processors, processor or core reduced power states, variable speed fan control | Y70: 86.1 | Z70: 90.3 | AA70: 92.7 | AB70: 91.10000000000001 | AC70: 0.792 | AD70: 0.862 | AE70: 0.927 | AF70: 0.963 | AG70: 113.5 | AH70: N/A | AI70: N/A | AJ70: N/A | AK70: 230V / 50Hz | AL70: 269.8 | AO70: 113 | AP70: 269 | AQ70: 750 | AR70: 0.3586666667 | AS70: =$AO70+($AP70-$AO70)/100*'Server Efficiency'!$O$7 -> 113.1872 | AT70: =$AO70+($AP70-$AO70)/100*'Server Efficiency'!$H$25 -> 113
C71: Server | D71: Hewlett-Packard Company | E71: Hewlett-Packard | F71: DL380 G7 | G71: 583970-xx1 (583970-001 in US) | H71: Computer Server | I71: 2U | J71: Yes | K71: 2.0 | L71: 2.0 | M71: Intel | N71: X5660 | O71: 2.7 | P71: 12.0 | Q71: 1.0 | R71: 72.0 | S71: 750.0 | T71: 2.0 | U71: 1.0 | V71: Window Advanced/Enterprise 2008 Server 6.00.6002 (SP2) | W71: Dynamic voltage and frequency scaling of processors, processor or core reduced power states, power capping, variable speed fan control, low power memory states | X71: Dynamic voltage and frequency scaling of processors, processor or core reduced power states, variable speed fan control | Y71: 86.1 | Z71: 90.3 | AA71: 92.7 | AB71: 91.10000000000001 | AC71: 0.792 | AD71: 0.862 | AE71: 0.927 | AF71: 0.963 | AG71: 112.8 | AH71: N/A | AI71: N/A | AJ71: N/A | AK71: 230V / 50Hz | AL71: 274.3 | AO71: 112 | AP71: 274 | AQ71: 750 | AR71: 0.3653333333 | AS71: =$AO71+($AP71-$AO71)/100*'Server Efficiency'!$O$7 -> 112.1944 | AT71: =$AO71+($AP71-$AO71)/100*'Server Efficiency'!$H$25 -> 112
C72: Server | D72: Hewlett-Packard Company | E72: Hewlett-Packard | F72: DL385pGen8 | G72: 642135-xx1 | H72: 1 or 2 Socket Server | I72: Rackmount | J72: Yes | K72: 2 | L72: 2 | M72: AMD | N72: Opteron 6272 | O72: 2.100 | P72: 32.0000 | Q72: 1 | R72: 146.0000 | S72: 750 | T72: 2 | U72: 1 | V72: Windows 2008 Server R2 | W72: Variable speed fan control based on power or thermal readings,Power capping,Low power memory states,Processor or core reduced power states,Dynamic voltage and frequency scaling of processor(s) | X72: Variable speed fan control based on power or thermal readings,Processor or core reduced power states,Dynamic voltage and frequency scaling of processor(s) | Y72: 0.89 | Z72: 0.93 | AA72: 0.94 | AB72: 0.92 | AC72: 0.96 | AD72: 0.97 | AE72: 0.99 | AF72: 1.00 | AG72: 150.6000 | AK72: 230 Vac, 50 Hz | AL72: 280.0000 | AM72: 2012-07-26 | AN72: 2012-07-12 | AO72: 150 | AP72: 280 | AQ72: 750 | AR72: 0.3733333333 | AS72: =$AO72+($AP72-$AO72)/100*'Server Efficiency'!$O$7 -> 150.156 | AT72: =$AO72+($AP72-$AO72)/100*'Server Efficiency'!$H$25 -> 150
C73: Server | D73: Hewlett-Packard Company | E73: Hewlett-Packard | F73: DL385pGen8 | G73: 642136-xx1 | H73: 1 or 2 Socket Server | I73: Rackmount | J73: Yes | K73: 2 | L73: 2 | M73: AMD | N73: Opteron 6238 | O73: 2.600 | P73: 32.0000 | Q73: 1 | R73: 300.0000 | S73: 750 | T73: 2 | U73: 1 | V73: Windows 2008 Server R2 | W73: Variable speed fan control based on power or thermal readings,Power capping,Low power memory states,Processor or core reduced power states,Dynamic voltage and frequency scaling of processor(s) | X73: Variable speed fan control based on power or thermal readings,Processor or core reduced power states,Dynamic voltage and frequency scaling of processor(s) | Y73: 0.89 | Z73: 0.92 | AA73: 0.95 | AB73: 0.93 | AC73: 0.91 | AD73: 0.97 | AE73: 0.99 | AF73: 1.00 | AG73: 100.1000 | AK73: 230 Vac, 50 Hz | AL73: 237.5000 | AM73: 2012-07-26 | AN73: 2012-07-12 | AO73: 100 | AP73: 237 | AQ73: 750 | AR73: 0.316 | AS73: =$AO73+($AP73-$AO73)/100*'Server Efficiency'!$O$7 -> 100.1644 | AT73: =$AO73+($AP73-$AO73)/100*'Server Efficiency'!$H$25 -> 100
C74: Server | D74: Hewlett-Packard Company | E74: Hewlett-Packard | F74: DL380eGen8 | G74: 668669-xx1 | H74: 1 or 2 Socket Server | I74: Rackmount | J74: Yes | K74: 2 | L74: 2 | M74: Intel | N74: E5-2450 | O74: 2.100 | P74: 24.0000 | Q74: 1 | R74: 600.0000 | S74: 750 | T74: 2 | U74: 1 | V74: Windows 2008 Server R2 | W74: Variable speed fan control based on power or thermal readings,Power capping,Low power memory states,Processor or core reduced power states,Dynamic voltage and frequency scaling of processor(s) | X74: Variable speed fan control based on power or thermal readings,Processor or core reduced power states,Dynamic voltage and frequency scaling of processor(s) | Y74: 0.89 | Z74: 0.93 | AA74: 0.94 | AB74: 0.92 | AC74: 0.96 | AD74: 0.99 | AE74: 0.97 | AF74: 1.00 | AG74: 93.6000 | AK74: 230 Vac, 50 Hz | AL74: 203.7000 | AM74: 2012-07-13 | AN74: 2012-07-11 | AO74: 93 | AP74: 203 | AQ74: 750 | AR74: =AP74/AQ74 -> 0.2706666667 | AS74: =$AO74+($AP74-$AO74)/100*'Server Efficiency'!$O$7 -> 93.132 | AT74: =$AO74+($AP74-$AO74)/100*'Server Efficiency'!$H$25 -> 93
C75: Server | D75: Hewlett-Packard Company | E75: Hewlett-Packard | F75: DL360eGen8 | G75: 668815-xx1 | H75: 1 or 2 Socket Server | I75: Rackmount | J75: Yes | K75: 2 | L75: 2 | M75: Intel | N75: E5-2430 | O75: 2.200 | P75: 24.0000 | Q75: 1 | R75: 300.0000 | S75: 460 | T75: 2 | U75: 1 | V75: Windows 2008 Server R2 | W75: Variable speed fan control based on power or thermal readings,Power capping,Low power memory states,Processor or core reduced power states,Dynamic voltage and frequency scaling of processor(s) | X75: Variable speed fan control based on power or thermal readings,Processor or core reduced power states,Dynamic voltage and frequency scaling of processor(s) | Y75: 0.85 | Z75: 0.90 | AA75: 0.92 | AB75: 0.92 | AC75: 0.81 | AD75: 0.96 | AE75: 0.94 | AF75: 0.98 | AG75: 84.0000 | AK75: 230 Vac, 50 Hz | AL75: 173.9000 | AM75: 2012-07-13 | AN75: 2012-07-12 | AO75: =VALUE(LEFT(AG75,3)) -> 84 | AP75: =VALUE(LEFT(AL75,4)) -> 173 | AQ75: =VALUE(LEFT(S75,4)) -> 460 | AR75: 0.3760869565 | AS75: =$AO75+($AP75-$AO75)/100*'Server Efficiency'!$O$7 -> 84.1068 | AT75: =$AO75+($AP75-$AO75)/100*'Server Efficiency'!$H$25 -> 84
C76: Server | D76: Hewlett-Packard Company | E76: Hewlett-Packard | F76: DL360eGen8 | G76: 686212-S01 | H76: 1 or 2 Socket Server | I76: Rackmount | J76: Yes | K76: 2 | L76: 2 | M76: Intel | N76: E5-2440 | O76: 2.400 | P76: 32.0000 | Q76: 1 | R76: 300.0000 | S76: 460 | T76: 2 | U76: 1 | V76: Windows 2008 Server R2 | W76: Variable speed fan control based on power or thermal readings,Power capping,Low power memory states,Processor or core reduced power states,Dynamic voltage and frequency scaling of processor(s) | X76: Variable speed fan control based on power or thermal readings,Processor or core reduced power states,Dynamic voltage and frequency scaling of processor(s) | Y76: 0.85 | Z76: 0.90 | AA76: 0.92 | AB76: 0.92 | AC76: 0.81 | AD76: 0.94 | AE76: 0.96 | AF76: 0.98 | AG76: 87.2500 | AK76: 230 Vac, 50 Hz | AL76: 190.4400 | AM76: 2012-07-13 | AN76: 2012-07-12 | AO76: 87 | AP76: 190 | AQ76: 460 | AR76: 0.4130434783 | AS76: =$AO76+($AP76-$AO76)/100*'Server Efficiency'!$O$7 -> 87.1236 | AT76: =$AO76+($AP76-$AO76)/100*'Server Efficiency'!$H$25 -> 87
C77: Server | D77: Hewlett-Packard Company | E77: Hewlett-Packard | F77: DL385pGen8 | G77: 703931-xx1 | H77: 1 or 2 Socket Server | I77: Rackmount | J77: Yes | K77: 2 | L77: 2 | M77: AMD | N77: Opteron 6344 | O77: 2.60 | P77: 32.0 | Q77: 1 | R77: 300.0 | S77: 750 | T77: 2 | U77: 1 | V77: Windows 2008 Server R2 | W77: Variable speed fan control based on power or thermal readings,Power capping,Low power memory states,Processor or core reduced power states,Dynamic voltage and frequency scaling of processor(s) | X77: Variable speed fan control based on power or thermal readings,Processor or core reduced power states,Dynamic voltage and frequency scaling of processor(s) | Y77: 0.89 | Z77: 0.92 | AA77: 0.95 | AB77: 0.93 | AC77: 0.91 | AD77: 0.97 | AE77: 0.99 | AF77: 1.00 | AG77: 100.6 | AK77: 230 Vac, 50 Hz | AL77: 233.9 | AM77: 2012-12-04 | AN77: 2012-12-19 | AO77: 100 | AP77: 233 | AQ77: 750 | AR77: 0.3106666667 | AS77: =$AO77+($AP77-$AO77)/100*'Server Efficiency'!$O$7 -> 100.1596 | AT77: =$AO77+($AP77-$AO77)/100*'Server Efficiency'!$H$25 -> 100
C78: Server | D78: Hewlett-Packard Company | E78: Hewlett-Packard | F78: DL385pGen8 | G78: 703932-xx1 | H78: 1 or 2 Socket Server | I78: Rackmount | J78: Yes | K78: 2 | L78: 2 | M78: AMD | N78: Opteron 6376 | O78: 2.30 | P78: 32.0 | Q78: 1 | R78: 300.0 | S78: 750 | T78: 2 | U78: 1 | V78: Windows 2008 Server R2 | W78: Variable speed fan control based on power or thermal readings,Power capping,Low power memory states,Processor or core reduced power states,Dynamic voltage and frequency scaling of processor(s) | X78: Variable speed fan control based on power or thermal readings,Processor or core reduced power states,Dynamic voltage and frequency scaling of processor(s) | Y78: 0.89 | Z78: 0.92 | AA78: 0.95 | AB78: 0.93 | AC78: 0.91 | AD78: 0.97 | AE78: 0.99 | AF78: 1.00 | AG78: 112.2 | AK78: 230 Vac, 50 Hz | AL78: 253.0 | AM78: 2012-12-04 | AN78: 2012-12-18 | AO78: 112 | AP78: 253 | AQ78: 750 | AR78: 0.3373333333 | AS78: =$AO78+($AP78-$AO78)/100*'Server Efficiency'!$O$7 -> 112.1692 | AT78: =$AO78+($AP78-$AO78)/100*'Server Efficiency'!$H$25 -> 112
C79: Server | D79: Hewlett-Packard Company | E79: Hewlett-Packard | F79: DL380pGen8 (BTO 642105-xx1) | G79: BTO 642105-xx1 | H79: 1 or 2 Socket Server | I79: Rackmount | J79: Yes | K79: 2 | L79: 2 | M79: Intel | N79: Xeon E5-2665 | O79: 2.40 | P79: 32.0 | Q79: 1 | R79: 1000.0 | S79: 750 | T79: 2 | U79: 1 | V79: Windows 2008 Server R2 | W79: Variable speed fan control based on power or thermal readings,Power capping,Low power memory states,Processor or core reduced power states,Dynamic voltage and frequency scaling of processor(s) | X79: Variable speed fan control based on power or thermal readings,Processor or core reduced power states,Dynamic voltage and frequency scaling of processor(s) | Y79: 0.89 | Z79: 0.93 | AA79: 0.94 | AB79: 0.92 | AC79: 0.96 | AD79: 0.97 | AE79: 0.99 | AF79: 1.00 | AG79: 107.4 | AK79: 230 Vac, 50 Hz | AL79: 239.5 | AM79: 2012-03-15 | AN79: 2012-03-05 | AO79: 107 | AP79: 239 | AQ79: 750 | AR79: 0.3186666667 | AS79: =$AO79+($AP79-$AO79)/100*'Server Efficiency'!$O$7 -> 107.1584 | AT79: =$AO79+($AP79-$AO79)/100*'Server Efficiency'!$H$25 -> 107
C80: Server | D80: Hewlett-Packard Company | E80: Hewlett-Packard | F80: DL380pGen8 (BTO 642106-xx1) | G80: BTO 642106-xx1 | H80: 1 or 2 Socket Server | I80: Rackmount | J80: Yes | K80: 2 | L80: 2 | M80: Intel | N80: Xeon E5-2650 | O80: 2.00 | P80: 32.0 | Q80: 1 | R80: 1000.0 | S80: 750 | T80: 2 | U80: 1 | V80: Windows 2008 Server R2 | W80: Variable speed fan control based on power or thermal readings,Power capping,Low power memory states,Processor or core reduced power states,Dynamic voltage and frequency scaling of processor(s) | X80: Variable speed fan control based on power or thermal readings,Processor or core reduced power states,Dynamic voltage and frequency scaling of processor(s) | Y80: 0.89 | Z80: 0.93 | AA80: 0.94 | AB80: 0.92 | AC80: 0.96 | AD80: 0.97 | AE80: 0.99 | AF80: 1.00 | AG80: 103.0 | AK80: 230 Vac, 50 Hz | AL80: 205.0 | AM80: 2012-03-15 | AN80: 2012-03-05 | AO80: 103 | AP80: 205 | AQ80: 750 | AR80: 0.2733333333 | AS80: =$AO80+($AP80-$AO80)/100*'Server Efficiency'!$O$7 -> 103.1224 | AT80: =$AO80+($AP80-$AO80)/100*'Server Efficiency'!$H$25 -> 103
C81: Server | D81: Hewlett-Packard Company | E81: Hewlett-Packard | F81: ML350pGen8 (BTO 646678-xx1) | G81: BTO 646678-xx1 | H81: 1 or 2 Socket Server | I81: Tower/Pedestal | J81: Yes | K81: 2 | L81: 2 | M81: Intel | N81: Xeon E5-2640 | O81: 2.50 | P81: 16.0 | Q81: 1 | R81: 1000.0 | S81: 750 | T81: 2 | U81: 1 | V81: Windows 2008 Server R2 | W81: Variable speed fan control based on power or thermal readings,Power capping,Low power memory states,Processor or core reduced power states,Dynamic voltage and frequency scaling of processor(s) | X81: Variable speed fan control based on power or thermal readings,Processor or core reduced power states,Dynamic voltage and frequency scaling of processor(s) | Y81: 0.89 | Z81: 0.93 | AA81: 0.94 | AB81: 0.92 | AC81: 0.96 | AD81: 0.97 | AE81: 0.99 | AF81: 1.00 | AG81: 142.2 | AK81: 230 Vac, 50 Hz | AL81: 252.8 | AM81: 2012-03-15 | AN81: 2012-03-02 | AO81: 142 | AP81: 252 | AQ81: 750 | AR81: 0.336 | AS81: =$AO81+($AP81-$AO81)/100*'Server Efficiency'!$O$7 -> 142.132 | AT81: =$AO81+($AP81-$AO81)/100*'Server Efficiency'!$H$25 -> 142
C82: Server | D82: Hewlett-Packard Company | E82: Hewlett-Packard | F82: ML350pGen8 (BTO 646678-xx1) | G82: BTO 646678-xx1 | H82: Computer Server | I82: 5U | J82: Yes | K82: 2.0 | L82: 2.0 | M82: Intel | N82: E5-2640 | O82: 2.5 | P82: 16.0 | Q82: 1.0 | R82: 1000.0 | S82: 750.0 | T82: 2.0 | U82: 1.0 | V82: Windows 2008 Server R2 | W82: Dynamic voltage and frequency scaling of processors, processor or core reduced power states, power capping, variable speed fan control, low power memory states | X82: Dynamic voltage and frequency scaling of processors, processor or core reduced power states, variable speed fan control | Y82: 88.68 | Z82: 92.81 | AA82: 94.12 | AB82: 92.33 | AC82: 0.96 | AD82: 0.97 | AE82: 0.99 | AF82: 1.0 | AG82: 142.2 | AH82: N/A | AI82: N/A | AJ82: N/A | AK82: 230V / 50Hz | AL82: 252.8 | AO82: 142 | AP82: 252 | AQ82: 750 | AR82: 0.336 | AS82: =$AO82+($AP82-$AO82)/100*'Server Efficiency'!$O$7 -> 142.132 | AT82: =$AO82+($AP82-$AO82)/100*'Server Efficiency'!$H$25 -> 142
C83: Server | D83: Hewlett-Packard Company | E83: Hewlett-Packard | F83: DL360pGen8 (BTO 646904-xx1) | G83: BTO 646904-xx1 | H83: 1 or 2 Socket Server | I83: Rackmount | J83: Yes | K83: 2 | L83: 2 | M83: Intel | N83: Xeon E5-2650 | O83: 2.00 | P83: 32.0 | Q83: 1 | R83: 300.0 | S83: 460 | T83: 2 | U83: 1 | V83: Windows 2008 Server R2 | W83: Variable speed fan control based on power or thermal readings,Power capping,Low power memory states,Processor or core reduced power states,Dynamic voltage and frequency scaling of processor(s) | X83: Variable speed fan control based on power or thermal readings,Processor or core reduced power states,Dynamic voltage and frequency scaling of processor(s) | Y83: 0.88 | Z83: 0.92 | AA83: 0.94 | AB83: 0.93 | AC83: 0.97 | AD83: 0.98 | AE83: 1.00 | AF83: 1.00 | AG83: 87.4 | AK83: 230 Vac, 50 Hz | AL83: 190.9 | AM83: 2012-03-15 | AN83: 2012-03-09 | AO83: 87 | AP83: 190 | AQ83: 460 | AR83: 0.4130434783 | AS83: =$AO83+($AP83-$AO83)/100*'Server Efficiency'!$O$7 -> 87.1236 | AT83: =$AO83+($AP83-$AO83)/100*'Server Efficiency'!$H$25 -> 87
C84: Server | D84: Hewlett-Packard Company | E84: Hewlett-Packard | F84: DL360pGen8 (BTO 646905-xx1) | G84: BTO 646905-xx1 | H84: 1 or 2 Socket Server | I84: Rackmount | J84: Yes | K84: 2 | L84: 2 | M84: Intel | N84: Xeon E5-2690 | O84: 2.90 | P84: 32.0 | Q84: 1 | R84: 300.0 | S84: 750 | T84: 2 | U84: 1 | V84: Windows 2008 Server R2 | W84: Variable speed fan control based on power or thermal readings,Power capping,Low power memory states,Processor or core reduced power states,Dynamic voltage and frequency scaling of processor(s) | X84: Variable speed fan control based on power or thermal readings,Processor or core reduced power states,Dynamic voltage and frequency scaling of processor(s) | Y84: 0.89 | Z84: 0.93 | AA84: 0.94 | AB84: 0.92 | AC84: 0.96 | AD84: 0.97 | AE84: 0.99 | AF84: 1.00 | AG84: 93.7 | AK84: 230 Vac, 50 Hz | AL84: 282.2 | AM84: 2012-03-15 | AN84: 2012-03-09 | AO84: 93 | AP84: 282 | AQ84: 750 | AR84: 0.376 | AS84: =$AO84+($AP84-$AO84)/100*'Server Efficiency'!$O$7 -> 93.2268 | AT84: =$AO84+($AP84-$AO84)/100*'Server Efficiency'!$H$25 -> 93
C85: Server | D85: Hewlett-Packard Company | E85: Hewlett-Packard | F85: DL160Gen8 (BTO 662084-xx1) | G85: BTO 662084-xx1 | H85: 1 or 2 Socket Server | I85: Rackmount | J85: Yes | K85: 2 | L85: 2 | M85: Intel | N85: Xeon E5-2650 | O85: 2.00 | P85: 16.0 | Q85: 1 | R85: 72.0 | S85: 500 | T85: 1 | U85: 0 | V85: Windows 2008 Server R2 | W85: Variable speed fan control based on power or thermal readings,Power capping,Low power memory states,Processor or core reduced power states,Dynamic voltage and frequency scaling of processor(s) | X85: Variable speed fan control based on power or thermal readings,Processor or core reduced power states,Dynamic voltage and frequency scaling of processor(s) | Y85: 0.87 | Z85: 0.90 | AA85: 0.92 | AB85: 0.89 | AC85: 0.99 | AD85: 1.00 | AE85: 1.00 | AF85: 1.00 | AG85: 92.2 | AK85: 230 Vac, 50 Hz | AL85: 180.6 | AM85: 2012-03-15 | AN85: 2012-03-07 | AO85: 92 | AP85: 180 | AQ85: 500 | AR85: 0.36 | AS85: =$AO85+($AP85-$AO85)/100*'Server Efficiency'!$O$7 -> 92.1056 | AT85: =$AO85+($AP85-$AO85)/100*'Server Efficiency'!$H$25 -> 92
C86: Server | D86: Hewlett-Packard Company | E86: Hewlett-Packard | F86: DL380pGen8 (BTO 662257-xx1) | G86: BTO 662257-xx1 | H86: 1 or 2 Socket Server | I86: Rackmount | J86: Yes | K86: 2 | L86: 2 | M86: Intel | N86: Xeon E5-2690 | O86: 2.90 | P86: 32.0 | Q86: 1 | R86: 1000.0 | S86: 750 | T86: 2 | U86: 1 | V86: Windows 2008 Server R2 | W86: Variable speed fan control based on power or thermal readings,Power capping,Low power memory states,Processor or core reduced power states,Dynamic voltage and frequency scaling of processor(s) | X86: Variable speed fan control based on power or thermal readings,Processor or core reduced power states,Dynamic voltage and frequency scaling of processor(s) | Y86: 0.89 | Z86: 0.93 | AA86: 0.94 | AB86: 0.92 | AC86: 0.96 | AD86: 0.97 | AE86: 0.99 | AF86: 1.00 | AG86: 109.0 | AK86: 230 Vac, 50 Hz | AL86: 276.2 | AM86: 2012-03-15 | AN86: 2012-03-05 | AO86: 109 | AP86: 276 | AQ86: 750 | AR86: 0.368 | AS86: =$AO86+($AP86-$AO86)/100*'Server Efficiency'!$O$7 -> 109.2004 | AT86: =$AO86+($AP86-$AO86)/100*'Server Efficiency'!$H$25 -> 109
C87: Server | D87: Hewlett-Packard Company | E87: Hewlett-Packard | F87: ML310eGen8 | G87: BTO 674787-xx1 | H87: 1 or 2 Socket Server | I87: Tower/Pedestal | J87: Yes | K87: 1 | L87: 1 | M87: Intel | N87: E3-1240v2 | O87: 3.40 | P87: 4.0 | Q87: 1 | R87: 2000.0 | S87: 460 | T87: 1 | U87: 0 | V87: Windows 2008 Server R2 | W87: Variable speed fan control based on power or thermal readings,Power capping,Low power memory states,Processor or core reduced power states,Dynamic voltage and frequency scaling of processor(s) | X87: Variable speed fan control based on power or thermal readings,Processor or core reduced power states,Dynamic voltage and frequency scaling of processor(s) | Y87: 0.85 | Z87: 0.90 | AA87: 0.92 | AB87: 0.92 | AC87: 0.81 | AD87: 0.96 | AE87: 0.94 | AF87: 0.98 | AG87: 43.4 | AK87: 230 Vac, 50 Hz | AL87: 76.3 | AM87: 2012-09-24 | AN87: 2012-09-26 | AO87: 43 | AP87: 76.3 | AQ87: 460 | AR87: 0.1658695652 | AS87: =$AO87+($AP87-$AO87)/100*'Server Efficiency'!$O$7 -> 43.03996 | AT87: =$AO87+($AP87-$AO87)/100*'Server Efficiency'!$H$25 -> 43
C88: Server | D88: Hewlett-Packard Company | E88: Hewlett-Packard | F88: DL360pGen8 (BTO 677198-xx1) | G88: BTO 677198-xx1 | H88: 1 or 2 Socket Server | I88: Rackmount | J88: Yes | K88: 2 | L88: 2 | M88: Intel | N88: Xeon E5-2603 | O88: 1.80 | P88: 8.0 | Q88: 1 | R88: 300.0 | S88: 460 | T88: 1 | U88: 0 | V88: Windows 2008 Server R2 | W88: Variable speed fan control based on power or thermal readings,Power capping,Low power memory states,Processor or core reduced power states,Dynamic voltage and frequency scaling of processor(s) | X88: Variable speed fan control based on power or thermal readings,Processor or core reduced power states,Dynamic voltage and frequency scaling of processor(s) | Y88: 0.88 | Z88: 0.92 | AA88: 0.94 | AB88: 0.93 | AC88: 0.97 | AD88: 0.98 | AE88: 1.00 | AF88: 1.00 | AG88: 76.9 | AK88: 230 Vac, 50 Hz | AL88: 102.0 | AM88: 2012-03-15 | AN88: 2012-03-09 | AO88: 76 | AP88: 102 | AQ88: 460 | AR88: 0.2217391304 | AS88: =$AO88+($AP88-$AO88)/100*'Server Efficiency'!$O$7 -> 76.0312 | AT88: =$AO88+($AP88-$AO88)/100*'Server Efficiency'!$H$25 -> 76
C89: Server | D89: Hewlett-Packard Company | E89: Hewlett-Packard | F89: DL360pGen8 (BTO 677199-xx1) | G89: BTO 677199-xx1 | H89: 1 or 2 Socket Server | I89: Rackmount | J89: Yes | K89: 2 | L89: 2 | M89: Intel | N89: Xeon E5-2630 | O89: 2.30 | P89: 16.0 | Q89: 1 | R89: 300.0 | S89: 460 | T89: 1 | U89: 0 | V89: Windows 2008 Server R2 | W89: Variable speed fan control based on power or thermal readings,Power capping,Low power memory states,Processor or core reduced power states,Dynamic voltage and frequency scaling of processor(s) | X89: Variable speed fan control based on power or thermal readings,Processor or core reduced power states,Dynamic voltage and frequency scaling of processor(s) | Y89: 0.88 | Z89: 0.92 | AA89: 0.94 | AB89: 0.93 | AC89: 0.97 | AD89: 0.98 | AE89: 1.00 | AF89: 1.00 | AG89: 86.2 | AK89: 230 Vac, 50 Hz | AL89: 193.9 | AM89: 2012-03-15 | AN89: 2012-03-09 | AO89: 86 | AP89: 193 | AQ89: 460 | AR89: 0.4195652174 | AS89: =$AO89+($AP89-$AO89)/100*'Server Efficiency'!$O$7 -> 86.1284 | AT89: =$AO89+($AP89-$AO89)/100*'Server Efficiency'!$H$25 -> 86
C90: Server | D90: Hewlett-Packard Company | E90: Hewlett-Packard | F90: DL380pGen8 (BTO 677278-xx1) | G90: BTO 677278-xx1 | H90: 1 or 2 Socket Server | I90: Rackmount | J90: Yes | K90: 2 | L90: 2 | M90: Intel | N90: Xeon E5-2630 | O90: 2.30 | P90: 32.0 | Q90: 1 | R90: 1000.0 | S90: 460 | T90: 1 | U90: 0 | V90: Windows 2008 Server R2 | W90: Variable speed fan control based on power or thermal readings,Power capping,Low power memory states,Processor or core reduced power states,Dynamic voltage and frequency scaling of processor(s) | X90: Variable speed fan control based on power or thermal readings,Processor or core reduced power states,Dynamic voltage and frequency scaling of processor(s) | Y90: 0.88 | Z90: 0.92 | AA90: 0.94 | AB90: 0.93 | AC90: 0.97 | AD90: 0.98 | AE90: 1.00 | AF90: 1.00 | AG90: 89.8 | AK90: 230 Vac, 50 Hz | AL90: 198.9 | AM90: 2012-03-15 | AN90: 2012-03-02 | AO90: 89 | AP90: 198 | AQ90: 460 | AR90: 0.4304347826 | AS90: =$AO90+($AP90-$AO90)/100*'Server Efficiency'!$O$7 -> 89.1308 | AT90: =$AO90+($AP90-$AO90)/100*'Server Efficiency'!$H$25 -> 89
C91: Server | D91: Hewlett-Packard Company | E91: Hewlett-Packard | F91: DL380pGen8 (BTO 677278-xx1) | G91: BTO 677278-xx1 | H91: Computer Server | I91: 2U | J91: Yes | K91: 2.0 | L91: 2.0 | M91: Intel | N91: E5-2630 | O91: 2.3 | P91: 16.0 | Q91: 1.0 | R91: 1000.0 | S91: 460.0 | T91: 1.0 | U91: 0.0 | V91: Windows 2008 Server R2 | W91: Dynamic voltage and frequency scaling of processors, processor or core reduced power states, power capping, variable speed fan control, low power memory states | X91: Dynamic voltage and frequency scaling of processors, processor or core reduced power states, variable speed fan control | Y91: 88.47 | Z91: 91.84 | AA91: 94.16 | AB91: 92.96 | AC91: 0.97 | AD91: 0.98 | AE91: 1.0 | AF91: 1.0 | AG91: 89.8 | AH91: N/A | AI91: N/A | AJ91: N/A | AK91: 230V / 50Hz | AL91: 198.9 | AO91: 89 | AP91: 198 | AQ91: 460 | AR91: 0.4304347826 | AS91: =$AO91+($AP91-$AO91)/100*'Server Efficiency'!$O$7 -> 89.1308 | AT91: =$AO91+($AP91-$AO91)/100*'Server Efficiency'!$H$25 -> 89
C92: Server | D92: Hewlett-Packard Company | E92: Hewlett-Packard | F92: ML350pGen8 (BTO 678237-xx1) | G92: BTO 678237-xx1 | H92: 1 or 2 Socket Server | I92: Tower/Pedestal | J92: Yes | K92: 2 | L92: 2 | M92: Intel | N92: Xeon E5-2650 | O92: 2.00 | P92: 16.0 | Q92: 1 | R92: 1000.0 | S92: 750 | T92: 2 | U92: 1 | V92: Windows 2008 Server R2 | W92: Variable speed fan control based on power or thermal readings,Power capping,Low power memory states,Processor or core reduced power states,Dynamic voltage and frequency scaling of processor(s) | X92: Variable speed fan control based on power or thermal readings,Processor or core reduced power states,Dynamic voltage and frequency scaling of processor(s) | Y92: 0.89 | Z92: 0.93 | AA92: 0.94 | AB92: 0.92 | AC92: 0.96 | AD92: 0.97 | AE92: 0.99 | AF92: 1.00 | AG92: 99.6 | AK92: 230 Vac, 50 Hz | AL92: 209.2 | AM92: 2012-03-15 | AN92: 2012-03-05 | AO92: 99 | AP92: 209 | AQ92: 750 | AR92: 0.2786666667 | AS92: =$AO92+($AP92-$AO92)/100*'Server Efficiency'!$O$7 -> 99.132 | AT92: =$AO92+($AP92-$AO92)/100*'Server Efficiency'!$H$25 -> 99
C93: Server | D93: Hewlett-Packard Company | E93: Hewlett-Packard | F93: DL360 G7 | G93: DL360 G7 | H93: 1 or 2 Socket Server | I93: Rackmount | J93: Yes | K93: 2 | L93: 2 | M93: Intel | N93: X5650 | O93: 2.66 | P93: 96.0 | Q93: 0 | R93: 0.0 | S93: 460 | T93: 1 | U93: 0 | V93: Windows 2008 Server | W93: Variable speed fan control based on power or thermal readings,Power capping,Low power memory states,Processor or core reduced power states,Dynamic voltage and frequency scaling of processor(s) | X93: Variable speed fan control based on power or thermal readings,Processor or core reduced power states,Dynamic voltage and frequency scaling of processor(s) | Y93: 0.82 | Z93: 0.89 | AA93: .93 | AB93: .92 | AC93: 0.8 | AD93: 0.97 | AE93: 0.9 | AF93: 0.98 | AG93: 204.4 | AH93: 208.55 | AI93: 0.0 | AJ93: 0.0 | AK93: 115 Vac, 60 Hz | AL93: 301.0 | AM93: 2010-03-01 | AN93: 2011-07-25 | AO93: 204 | AP93: 301 | AQ93: 460 | AR93: 0.6543478261 | AS93: =$AO93+($AP93-$AO93)/100*'Server Efficiency'!$O$7 -> 204.1164 | AT93: =$AO93+($AP93-$AO93)/100*'Server Efficiency'!$H$25 -> 204
C94: Server | D94: Hewlett-Packard Company | E94: Hewlett-Packard | F94: DL585 G7 | G94: DL585 G7 | H94: 3 or 4 Socket Server | I94: Rackmount | J94: Yes | K94: 4 | L94: 4 | M94: AMD | N94: Opteron 6168 | O94: 1.9 | P94: 64.0 | Q94: 0 | R94: 0.0 | S94: 1200 | T94: 1 | U94: 0 | V94: Windows 2008 Server | W94: Variable speed fan control based on power or thermal readings,Power capping,Low power memory states,Processor or core reduced power states,Dynamic voltage and frequency scaling of processor(s) | X94: Variable speed fan control based on power or thermal readings,Processor or core reduced power states,Dynamic voltage and frequency scaling of processor(s) | Y94: 0.89 | Z94: .93 | AA94: .94 | AB94: .93 | AC94: 0.91 | AD94: 0.99 | AE94: 0.96 | AF94: 1.0 | AG94: 257.63 | AH94: 265.72 | AI94: 0.0 | AJ94: 0.0 | AK94: 115 Vac, 60 Hz | AL94: 396.0 | AM94: 2010-07-14 | AN94: 2011-07-14 | AO94: 257 | AP94: 396 | AQ94: 1200 | AR94: 0.33 | AS94: =$AO94+($AP94-$AO94)/100*'Server Efficiency'!$O$7 -> 257.1668 | AT94: =$AO94+($AP94-$AO94)/100*'Server Efficiency'!$H$25 -> 257
C95: Server | D95: Lenovo Group Limited | E95: Lenovo | F95: TD330 | G95: 0442XXXX | H95: 1 or 2 Socket Server | I95: Tower/Pedestal | J95: No | K95: 2 | L95: 1 | M95: Intel | N95: Xeon E5-2470 | O95: 2.3 | P95: 4.0 | Q95: 1 | R95: 1024.0 | S95: 800 | T95: 1 | U95: 0 | V95: Windows Server 2008 R2 | W95: Variable speed fan control based on power or thermal readings,Low power I/O states,Processor or core reduced power states,Dynamic voltage and frequency scaling of processor(s) | X95: Variable speed fan control based on power or thermal readings,Low power I/O states,Processor or core reduced power states,Dynamic voltage and frequency scaling of processor(s) | Y95: 0.87 | Z95: 0.91 | AA95: 0.93 | AB95: 0.92 | AC95: 0.75 | AD95: 0.9 | AE95: 0.98 | AF95: 1.0 | AG95: 53.9 | AH95: 54.9 | AI95: 54.3 | AK95: 115 Vac, 60 Hz | AL95: 96.5 | AM95: 2012-09-26 | AN95: 2012-10-15 | AO95: 53 | AP95: 96.5 | AQ95: 800 | AR95: 0.120625 | AS95: =$AO95+($AP95-$AO95)/100*'Server Efficiency'!$O$7 -> 53.0522 | AT95: =$AO95+($AP95-$AO95)/100*'Server Efficiency'!$H$25 -> 53
C96: Server | D96: Lenovo Group Limited | E96: Lenovo | F96: TD330 | G96: 0442XXXX. | H96: 1 or 2 Socket Server | I96: Tower/Pedestal | J96: No | K96: 2 | L96: 2 | M96: Intel | N96: Xeon E5-2470 | O96: 2.3 | P96: 4.0 | Q96: 1 | R96: 1024.0 | S96: 800 | T96: 1 | U96: 0 | V96: Windows Server 2008 R2 | W96: Variable speed fan control based on power or thermal readings,Low power I/O states,Processor or core reduced power states,Dynamic voltage and frequency scaling of processor(s) | X96: Variable speed fan control based on power or thermal readings,Low power I/O states,Processor or core reduced power states,Dynamic voltage and frequency scaling of processor(s) | Y96: 0.87 | Z96: 0.91 | AA96: 0.93 | AB96: 0.92 | AC96: 0.75 | AD96: 0.9 | AE96: 0.98 | AF96: 1.0 | AG96: 70.3 | AH96: 70.5 | AI96: 72.3 | AK96: 115 Vac, 60 Hz | AL96: 118.0 | AM96: 2012-09-26 | AN96: 2012-10-15 | AO96: 70 | AP96: 118 | AQ96: 800 | AR96: 0.1475 | AS96: =$AO96+($AP96-$AO96)/100*'Server Efficiency'!$O$7 -> 70.0576 | AT96: =$AO96+($AP96-$AO96)/100*'Server Efficiency'!$H$25 -> 70
C97: Server | D97: Lenovo Group Limited | E97: Lenovo | F97: TD330 | G97: 0443XXXX | H97: 1 or 2 Socket Server | I97: Tower/Pedestal | J97: No | K97: 2 | L97: 1 | M97: Intel | N97: Xeon E5-2470 | O97: 2.3 | P97: 4.0 | Q97: 1 | R97: 1024.0 | S97: 800 | T97: 1 | U97: 0 | V97: Windows Server 2008 R2 | W97: Variable speed fan control based on power or thermal readings,Low power I/O states,Processor or core reduced power states,Dynamic voltage and frequency scaling of processor(s) | X97: Variable speed fan control based on power or thermal readings,Low power I/O states,Processor or core reduced power states,Dynamic voltage and frequency scaling of processor(s) | Y97: 0.87 | Z97: 0.91 | AA97: 0.93 | AB97: 0.92 | AC97: 0.75 | AD97: 0.9 | AE97: 0.98 | AF97: 1.0 | AG97: 53.9 | AH97: 54.9 | AI97: 54.3 | AK97: 115 Vac, 60 Hz | AL97: 96.5 | AM97: 2012-09-26 | AN97: 2012-10-15 | AO97: 53 | AP97: 96.5 | AQ97: 800 | AR97: 0.120625 | AS97: =$AO97+($AP97-$AO97)/100*'Server Efficiency'!$O$7 -> 53.0522 | AT97: =$AO97+($AP97-$AO97)/100*'Server Efficiency'!$H$25 -> 53
C98: Server | D98: Lenovo Group Limited | E98: Lenovo | F98: TD330 | G98: 0443XXXX. | H98: 1 or 2 Socket Server | I98: Tower/Pedestal | J98: No | K98: 2 | L98: 2 | M98: Intel | N98: Xeon E5-2470 | O98: 2.3 | P98: 4.0 | Q98: 1 | R98: 1024.0 | S98: 800 | T98: 1 | U98: 0 | V98: Windows Server 2008 R2 | W98: Variable speed fan control based on power or thermal readings,Low power I/O states,Processor or core reduced power states,Dynamic voltage and frequency scaling of processor(s) | X98: Variable speed fan control based on power or thermal readings,Low power I/O states,Processor or core reduced power states,Dynamic voltage and frequency scaling of processor(s) | Y98: 0.87 | Z98: 0.91 | AA98: 0.93 | AB98: 0.92 | AC98: 0.75 | AD98: 0.9 | AE98: 0.98 | AF98: 1.0 | AG98: 70.3 | AH98: 70.5 | AI98: 72.3 | AK98: 115 Vac, 60 Hz | AL98: 118.0 | AM98: 2012-09-26 | AN98: 2012-10-15 | AO98: 70 | AP98: 118 | AQ98: 800 | AR98: 0.1475 | AS98: =$AO98+($AP98-$AO98)/100*'Server Efficiency'!$O$7 -> 70.0576 | AT98: =$AO98+($AP98-$AO98)/100*'Server Efficiency'!$H$25 -> 70
C99: Server | D99: Lenovo Group Limited | E99: Lenovo | F99: TD330 | G99: 1256XXXX | H99: 1 or 2 Socket Server | I99: Tower/Pedestal | J99: No | K99: 2 | L99: 1 | M99: Intel | N99: Xeon E5-2470 | O99: 2.3 | P99: 4.0 | Q99: 1 | R99: 1024.0 | S99: 800 | T99: 1 | U99: 0 | V99: Windows Server 2008 R2 | W99: Variable speed fan control based on power or thermal readings,Low power I/O states,Processor or core reduced power states,Dynamic voltage and frequency scaling of processor(s) | X99: Variable speed fan control based on power or thermal readings,Low power I/O states,Processor or core reduced power states,Dynamic voltage and frequency scaling of processor(s) | Y99: 0.87 | Z99: 0.91 | AA99: 0.93 | AB99: 0.92 | AC99: 0.75 | AD99: 0.9 | AE99: 0.98 | AF99: 1.0 | AG99: 53.9 | AH99: 54.9 | AI99: 54.3 | AK99: 115 Vac, 60 Hz | AL99: 96.5 | AM99: 2012-09-26 | AN99: 2012-10-15 | AO99: 53 | AP99: 96.5 | AQ99: 800 | AR99: 0.120625 | AS99: =$AO99+($AP99-$AO99)/100*'Server Efficiency'!$O$7 -> 53.0522 | AT99: =$AO99+($AP99-$AO99)/100*'Server Efficiency'!$H$25 -> 53
C100: Server | D100: Lenovo Group Limited | E100: Lenovo | F100: TD330 | G100: 1256XXXX. | H100: 1 or 2 Socket Server | I100: Tower/Pedestal | J100: No | K100: 2 | L100: 2 | M100: Intel | N100: Xeon E5-2470 | O100: 2.3 | P100: 4.0 | Q100: 1 | R100: 1024.0 | S100: 800 | T100: 1 | U100: 0 | V100: Windows Server 2008 R2 | W100: Variable speed fan control based on power or thermal readings,Low power I/O states,Processor or core reduced power states,Dynamic voltage and frequency scaling of processor(s) | X100: Variable speed fan control based on power or thermal readings,Low power I/O states,Processor or core reduced power states,Dynamic voltage and frequency scaling of processor(s) | Y100: 0.87 | Z100: 0.91 | AA100: 0.93 | AB100: 0.92 | AC100: 0.75 | AD100: 0.9 | AE100: 0.98 | AF100: 1.0 | AG100: 70.3 | AH100: 70.5 | AI100: 72.3 | AK100: 115 Vac, 60 Hz | AL100: 118.0 | AM100: 2012-09-26 | AN100: 2012-10-15 | AO100: 70 | AP100: 118 | AQ100: 800 | AR100: 0.1475 | AS100: =$AO100+($AP100-$AO100)/100*'Server Efficiency'!$O$7 -> 70.0576 | AT100: =$AO100+($AP100-$AO100)/100*'Server Efficiency'!$H$25 -> 70
C101: Server | D101: Lenovo Group Limited | E101: Lenovo | F101: TD330 | G101: 1261XXXX | H101: 1 or 2 Socket Server | I101: Tower/Pedestal | J101: No | K101: 2 | L101: 1 | M101: Intel | N101: Xeon E5-2470 | O101: 2.3 | P101: 4.0 | Q101: 1 | R101: 1024.0 | S101: 800 | T101: 1 | U101: 0 | V101: Windows Server 2008 R2 | W101: Variable speed fan control based on power or thermal readings,Low power I/O states,Processor or core reduced power states,Dynamic voltage and frequency scaling of processor(s) | X101: Variable speed fan control based on power or thermal readings,Low power I/O states,Processor or core reduced power states,Dynamic voltage and frequency scaling of processor(s) | Y101: 0.87 | Z101: 0.91 | AA101: 0.93 | AB101: 0.92 | AC101: 0.75 | AD101: 0.9 | AE101: 0.98 | AF101: 1.0 | AG101: 53.9 | AH101: 54.9 | AI101: 54.3 | AK101: 115 Vac, 60 Hz | AL101: 96.5 | AM101: 2012-09-26 | AN101: 2012-10-15 | AO101: 53 | AP101: 96.5 | AQ101: 800 | AR101: 0.120625 | AS101: =$AO101+($AP101-$AO101)/100*'Server Efficiency'!$O$7 -> 53.0522 | AT101: =$AO101+($AP101-$AO101)/100*'Server Efficiency'!$H$25 -> 53
C102: Server | D102: Lenovo Group Limited | E102: Lenovo | F102: TD330 | G102: 1261XXXX. | H102: 1 or 2 Socket Server | I102: Tower/Pedestal | J102: No | K102: 2 | L102: 2 | M102: Intel | N102: Xeon E5-2470 | O102: 2.3 | P102: 4.0 | Q102: 1 | R102: 1024.0 | S102: 800 | T102: 1 | U102: 0 | V102: Windows Server 2008 R2 | W102: Variable speed fan control based on power or thermal readings,Low power I/O states,Processor or core reduced power states,Dynamic voltage and frequency scaling of processor(s) | X102: Variable speed fan control based on power or thermal readings,Low power I/O states,Processor or core reduced power states,Dynamic voltage and frequency scaling of processor(s) | Y102: 0.87 | Z102: 0.91 | AA102: 0.93 | AB102: 0.92 | AC102: 0.75 | AD102: 0.9 | AE102: 0.98 | AF102: 1.0 | AG102: 70.3 | AH102: 70.5 | AI102: 72.3 | AK102: 115 Vac, 60 Hz | AL102: 118.0 | AM102: 2012-09-26 | AN102: 2012-10-15 | AO102: 70 | AP102: 118 | AQ102: 800 | AR102: 0.1475 | AS102: =$AO102+($AP102-$AO102)/100*'Server Efficiency'!$O$7 -> 70.0576 | AT102: =$AO102+($AP102-$AO102)/100*'Server Efficiency'!$H$25 -> 70
C103: Server | D103: Lenovo Group Limited | E103: Lenovo | F103: TD330 | G103: 1276XXXX | H103: 1 or 2 Socket Server | I103: Tower/Pedestal | J103: No | K103: 2 | L103: 1 | M103: Intel | N103: Xeon E5-2470 | O103: 2.3 | P103: 4.0 | Q103: 1 | R103: 1024.0 | S103: 800 | T103: 1 | U103: 0 | V103: Windows Server 2008 R2 | W103: Variable speed fan control based on power or thermal readings,Low power I/O states,Processor or core reduced power states,Dynamic voltage and frequency scaling of processor(s) | X103: Variable speed fan control based on power or thermal readings,Low power I/O states,Processor or core reduced power states,Dynamic voltage and frequency scaling of processor(s) | Y103: 0.87 | Z103: 0.91 | AA103: 0.93 | AB103: 0.92 | AC103: 0.75 | AD103: 0.9 | AE103: 0.98 | AF103: 1.0 | AG103: 53.9 | AH103: 54.9 | AI103: 54.3 | AK103: 115 Vac, 60 Hz | AL103: 96.5 | AM103: 2012-09-26 | AN103: 2012-10-15 | AO103: 53 | AP103: 96.5 | AQ103: 800 | AR103: 0.120625 | AS103: =$AO103+($AP103-$AO103)/100*'Server Efficiency'!$O$7 -> 53.0522 | AT103: =$AO103+($AP103-$AO103)/100*'Server Efficiency'!$H$25 -> 53
C104: Server | D104: Lenovo Group Limited | E104: Lenovo | F104: TD330 | G104: 1276XXXX. | H104: 1 or 2 Socket Server | I104: Tower/Pedestal | J104: No | K104: 2 | L104: 2 | M104: Intel | N104: Xeon E5-2470 | O104: 2.3 | P104: 4.0 | Q104: 1 | R104: 1024.0 | S104: 800 | T104: 1 | U104: 0 | V104: Windows Server 2008 R2 | W104: Variable speed fan control based on power or thermal readings,Low power I/O states,Processor or core reduced power states,Dynamic voltage and frequency scaling of processor(s) | X104: Variable speed fan control based on power or thermal readings,Low power I/O states,Processor or core reduced power states,Dynamic voltage and frequency scaling of processor(s) | Y104: 0.87 | Z104: 0.91 | AA104: 0.93 | AB104: 0.92 | AC104: 0.75 | AD104: 0.9 | AE104: 0.98 | AF104: 1.0 | AG104: 70.3 | AH104: 70.5 | AI104: 72.3 | AK104: 115 Vac, 60 Hz | AL104: 118.0 | AM104: 2012-09-26 | AN104: 2012-10-15 | AO104: 70 | AP104: 118 | AQ104: 800 | AR104: 0.1475 | AS104: =$AO104+($AP104-$AO104)/100*'Server Efficiency'!$O$7 -> 70.0576 | AT104: =$AO104+($AP104-$AO104)/100*'Server Efficiency'!$H$25 -> 70
C105: Server | D105: Lenovo Group Limited | E105: Lenovo | F105: TD330 | G105: 1283XXXX | H105: 1 or 2 Socket Server | I105: Tower/Pedestal | J105: No | K105: 2 | L105: 1 | M105: Intel | N105: Xeon E5-2470 | O105: 2.3 | P105: 4.0 | Q105: 1 | R105: 1024.0 | S105: 800 | T105: 1 | U105: 0 | V105: Windows Server 2008 R2 | W105: Variable speed fan control based on power or thermal readings,Low power I/O states,Processor or core reduced power states,Dynamic voltage and frequency scaling of processor(s) | X105: Variable speed fan control based on power or thermal readings,Low power I/O states,Processor or core reduced power states,Dynamic voltage and frequency scaling of processor(s) | Y105: 0.87 | Z105: 0.91 | AA105: 0.93 | AB105: 0.92 | AC105: 0.75 | AD105: 0.9 | AE105: 0.98 | AF105: 1.0 | AG105: 53.9 | AH105: 54.9 | AI105: 54.3 | AK105: 115 Vac, 60 Hz | AL105: 96.5 | AM105: 2012-09-26 | AN105: 2012-10-15 | AO105: 53 | AP105: 96.5 | AQ105: 800 | AR105: 0.120625 | AS105: =$AO105+($AP105-$AO105)/100*'Server Efficiency'!$O$7 -> 53.0522 | AT105: =$AO105+($AP105-$AO105)/100*'Server Efficiency'!$H$25 -> 53
C106: Server | D106: Lenovo Group Limited | E106: Lenovo | F106: TD330 | G106: 1283XXXX. | H106: 1 or 2 Socket Server | I106: Tower/Pedestal | J106: No | K106: 2 | L106: 2 | M106: Intel | N106: Xeon E5-2470 | O106: 2.3 | P106: 4.0 | Q106: 1 | R106: 1024.0 | S106: 800 | T106: 1 | U106: 0 | V106: Windows Server 2008 R2 | W106: Variable speed fan control based on power or thermal readings,Low power I/O states,Processor or core reduced power states,Dynamic voltage and frequency scaling of processor(s) | X106: Variable speed fan control based on power or thermal readings,Low power I/O states,Processor or core reduced power states,Dynamic voltage and frequency scaling of processor(s) | Y106: 0.87 | Z106: 0.91 | AA106: 0.93 | AB106: 0.92 | AC106: 0.75 | AD106: 0.9 | AE106: 0.98 | AF106: 1.0 | AG106: 70.3 | AH106: 70.5 | AI106: 72.3 | AK106: 115 Vac, 60 Hz | AL106: 118.0 | AM106: 2012-09-26 | AN106: 2012-10-15 | AO106: 70 | AP106: 118 | AQ106: 800 | AR106: 0.1475 | AS106: =$AO106+($AP106-$AO106)/100*'Server Efficiency'!$O$7 -> 70.0576 | AT106: =$AO106+($AP106-$AO106)/100*'Server Efficiency'!$H$25 -> 70
C107: Server | D107: Lenovo Group Limited | E107: Lenovo | F107: TD330 | G107: 1806XXXX | H107: 1 or 2 Socket Server | I107: Tower/Pedestal | J107: No | K107: 2 | L107: 1 | M107: Intel | N107: Xeon E5-2470 | O107: 2.3 | P107: 4.0 | Q107: 1 | R107: 1024.0 | S107: 800 | T107: 1 | U107: 0 | V107: Windows Server 2008 R2 | W107: Variable speed fan control based on power or thermal readings,Low power I/O states,Processor or core reduced power states,Dynamic voltage and frequency scaling of processor(s) | X107: Variable speed fan control based on power or thermal readings,Low power I/O states,Processor or core reduced power states,Dynamic voltage and frequency scaling of processor(s) | Y107: 0.87 | Z107: 0.91 | AA107: 0.93 | AB107: 0.92 | AC107: 0.75 | AD107: 0.9 | AE107: 0.98 | AF107: 1.0 | AG107: 53.9 | AH107: 54.9 | AI107: 54.3 | AK107: 115 Vac, 60 Hz | AL107: 96.5 | AM107: 2012-09-26 | AN107: 2012-10-15 | AO107: 53 | AP107: 96.5 | AQ107: 800 | AR107: 0.120625 | AS107: =$AO107+($AP107-$AO107)/100*'Server Efficiency'!$O$7 -> 53.0522 | AT107: =$AO107+($AP107-$AO107)/100*'Server Efficiency'!$H$25 -> 53
C108: Server | D108: Lenovo Group Limited | E108: Lenovo | F108: TD330 | G108: 1806XXXX. | H108: 1 or 2 Socket Server | I108: Tower/Pedestal | J108: No | K108: 2 | L108: 2 | M108: Intel | N108: Xeon E5-2470 | O108: 2.3 | P108: 4.0 | Q108: 1 | R108: 1024.0 | S108: 800 | T108: 1 | U108: 0 | V108: Windows Server 2008 R2 | W108: Variable speed fan control based on power or thermal readings,Low power I/O states,Processor or core reduced power states,Dynamic voltage and frequency scaling of processor(s) | X108: Variable speed fan control based on power or thermal readings,Low power I/O states,Processor or core reduced power states,Dynamic voltage and frequency scaling of processor(s) | Y108: 0.87 | Z108: 0.91 | AA108: 0.93 | AB108: 0.92 | AC108: 0.75 | AD108: 0.9 | AE108: 0.98 | AF108: 1.0 | AG108: 70.3 | AH108: 70.5 | AI108: 72.3 | AK108: 115 Vac, 60 Hz | AL108: 118.0 | AM108: 2012-09-26 | AN108: 2012-10-15 | AO108: 70 | AP108: 118 | AQ108: 800 | AR108: 0.1475 | AS108: =$AO108+($AP108-$AO108)/100*'Server Efficiency'!$O$7 -> 70.0576 | AT108: =$AO108+($AP108-$AO108)/100*'Server Efficiency'!$H$25 -> 70
C109: Server | D109: Lenovo Group Limited | E109: Lenovo | F109: TD330 | G109: 1807XXXX | H109: 1 or 2 Socket Server | I109: Tower/Pedestal | J109: No | K109: 2 | L109: 1 | M109: Intel | N109: Xeon E5-2470 | O109: 2.3 | P109: 4.0 | Q109: 1 | R109: 1024.0 | S109: 800 | T109: 1 | U109: 0 | V109: Windows Server 2008 R2 | W109: Variable speed fan control based on power or thermal readings,Low power I/O states,Processor or core reduced power states,Dynamic voltage and frequency scaling of processor(s) | X109: Variable speed fan control based on power or thermal readings,Low power I/O states,Processor or core reduced power states,Dynamic voltage and frequency scaling of processor(s) | Y109: 0.87 | Z109: 0.91 | AA109: 0.93 | AB109: 0.92 | AC109: 0.75 | AD109: 0.9 | AE109: 0.98 | AF109: 1.0 | AG109: 53.9 | AH109: 54.9 | AI109: 54.3 | AK109: 115 Vac, 60 Hz | AL109: 96.5 | AM109: 2012-09-26 | AN109: 2012-10-15 | AO109: 53 | AP109: 96.5 | AQ109: 800 | AR109: 0.120625 | AS109: =$AO109+($AP109-$AO109)/100*'Server Efficiency'!$O$7 -> 53.0522 | AT109: =$AO109+($AP109-$AO109)/100*'Server Efficiency'!$H$25 -> 53
C110: Server | D110: Lenovo Group Limited | E110: Lenovo | F110: TD330 | G110: 1807XXXX. | H110: 1 or 2 Socket Server | I110: Tower/Pedestal | J110: No | K110: 2 | L110: 2 | M110: Intel | N110: Xeon E5-2470 | O110: 2.3 | P110: 4.0 | Q110: 1 | R110: 1024.0 | S110: 800 | T110: 1 | U110: 0 | V110: Windows Server 2008 R2 | W110: Variable speed fan control based on power or thermal readings,Low power I/O states,Processor or core reduced power states,Dynamic voltage and frequency scaling of processor(s) | X110: Variable speed fan control based on power or thermal readings,Low power I/O states,Processor or core reduced power states,Dynamic voltage and frequency scaling of processor(s) | Y110: 0.87 | Z110: 0.91 | AA110: 0.93 | AB110: 0.92 | AC110: 0.75 | AD110: 0.9 | AE110: 0.98 | AF110: 1.0 | AG110: 70.3 | AH110: 70.5 | AI110: 72.3 | AK110: 115 Vac, 60 Hz | AL110: 118.0 | AM110: 2012-09-26 | AN110: 2012-10-15 | AO110: 70 | AP110: 118 | AQ110: 800 | AR110: 0.1475 | AS110: =$AO110+($AP110-$AO110)/100*'Server Efficiency'!$O$7 -> 70.0576 | AT110: =$AO110+($AP110-$AO110)/100*'Server Efficiency'!$H$25 -> 70
C111: Server | D111: Lenovo Group Limited | E111: Lenovo | F111: RD430 | G111: 3057xxxx | H111: 1 or 2 Socket Server | I111: Rackmount | J111: No | K111: 2 | L111: 2 | M111: Intel | N111: Xeon E5-2470 | O111: 2.3 | P111: 4.0 | Q111: 1 | R111: 300.0 | S111: 800 | T111: 1 | U111: 0 | V111: Windows Server 2008 R2 | W111: Variable speed fan control based on power or thermal readings,Low power I/O states,Processor or core reduced power states,Dynamic voltage and frequency scaling of processor(s) | X111: Variable speed fan control based on power or thermal readings,Low power I/O states,Processor or core reduced power states,Dynamic voltage and frequency scaling of processor(s) | Y111: 0.87 | Z111: 0.91 | AA111: 0.93 | AB111: 0.92 | AC111: 0.75 | AD111: 0.9 | AE111: 0.98 | AF111: 1.0 | AG111: 68.4 | AH111: 69.3 | AI111: 70.5 | AK111: 100 Vac, 60 Hz | AL111: 105.0 | AM111: 2012-07-12 | AN111: 2012-07-20 | AO111: 68 | AP111: 105 | AQ111: 800 | AR111: 0.13125 | AS111: =$AO111+($AP111-$AO111)/100*'Server Efficiency'!$O$7 -> 68.0444 | AT111: =$AO111+($AP111-$AO111)/100*'Server Efficiency'!$H$25 -> 68
C112: Server | D112: Lenovo Group Limited | E112: Lenovo | F112: RD430 | G112: 3059xxxx | H112: 1 or 2 Socket Server | I112: Rackmount | J112: No | K112: 2 | L112: 2 | M112: Intel | N112: Xeon E5-2470 | O112: 2.3 | P112: 4.0 | Q112: 1 | R112: 300.0 | S112: 800 | T112: 1 | U112: 0 | V112: Windows Server 2008 R2 | W112: Variable speed fan control based on power or thermal readings,Low power I/O states,Processor or core reduced power states,Dynamic voltage and frequency scaling of processor(s) | X112: Variable speed fan control based on power or thermal readings,Low power I/O states,Processor or core reduced power states,Dynamic voltage and frequency scaling of processor(s) | Y112: 0.87 | Z112: 0.91 | AA112: 0.93 | AB112: 0.92 | AC112: 0.75 | AD112: 0.9 | AE112: 0.98 | AF112: 1.0 | AG112: 68.4 | AH112: 69.3 | AI112: 70.5 | AK112: 100 Vac, 60 Hz | AL112: 105.0 | AM112: 2012-07-12 | AN112: 2012-07-20 | AO112: 68 | AP112: 105 | AQ112: 800 | AR112: 0.13125 | AS112: =$AO112+($AP112-$AO112)/100*'Server Efficiency'!$O$7 -> 68.0444 | AT112: =$AO112+($AP112-$AO112)/100*'Server Efficiency'!$H$25 -> 68
C113: Server | D113: Lenovo Group Limited | E113: Lenovo | F113: RD430 | G113: 3061xxxx | H113: 1 or 2 Socket Server | I113: Rackmount | J113: No | K113: 2 | L113: 2 | M113: Intel | N113: Xeon E5-2470 | O113: 2.3 | P113: 4.0 | Q113: 1 | R113: 300.0 | S113: 800 | T113: 1 | U113: 0 | V113: Windows Server 2008 R2 | W113: Variable speed fan control based on power or thermal readings,Low power I/O states,Processor or core reduced power states,Dynamic voltage and frequency scaling of processor(s) | X113: Variable speed fan control based on power or thermal readings,Low power I/O states,Processor or core reduced power states,Dynamic voltage and frequency scaling of processor(s) | Y113: 0.87 | Z113: 0.91 | AA113: 0.93 | AB113: 0.92 | AC113: 0.75 | AD113: 0.9 | AE113: 0.98 | AF113: 1.0 | AG113: 68.4 | AH113: 69.3 | AI113: 70.5 | AK113: 100 Vac, 60 Hz | AL113: 105.0 | AM113: 2012-07-12 | AN113: 2012-07-20 | AO113: 68 | AP113: 105 | AQ113: 800 | AR113: 0.13125 | AS113: =$AO113+($AP113-$AO113)/100*'Server Efficiency'!$O$7 -> 68.0444 | AT113: =$AO113+($AP113-$AO113)/100*'Server Efficiency'!$H$25 -> 68
C114: Server | D114: Lenovo Group Limited | E114: Lenovo | F114: RD430 | G114: 3064xxxx | H114: 1 or 2 Socket Server | I114: Rackmount | J114: No | K114: 2 | L114: 2 | M114: Intel | N114: Xeon E5-2470 | O114: 2.3 | P114: 4.0 | Q114: 1 | R114: 300.0 | S114: 800 | T114: 1 | U114: 0 | V114: Windows Server 2008 R2 | W114: Variable speed fan control based on power or thermal readings,Low power I/O states,Processor or core reduced power states,Dynamic voltage and frequency scaling of processor(s) | X114: Variable speed fan control based on power or thermal readings,Low power I/O states,Processor or core reduced power states,Dynamic voltage and frequency scaling of processor(s) | Y114: 0.87 | Z114: 0.91 | AA114: 0.93 | AB114: 0.92 | AC114: 0.75 | AD114: 0.9 | AE114: 0.98 | AF114: 1.0 | AG114: 68.4 | AH114: 69.3 | AI114: 70.5 | AK114: 100 Vac, 60 Hz | AL114: 105.0 | AM114: 2012-07-12 | AN114: 2012-07-20 | AO114: 68 | AP114: 105 | AQ114: 800 | AR114: 0.13125 | AS114: =$AO114+($AP114-$AO114)/100*'Server Efficiency'!$O$7 -> 68.0444 | AT114: =$AO114+($AP114-$AO114)/100*'Server Efficiency'!$H$25 -> 68
C115: Server | D115: Lenovo Group Limited | E115: Lenovo | F115: RD430 | G115: 3065xxxx | H115: 1 or 2 Socket Server | I115: Rackmount | J115: No | K115: 2 | L115: 2 | M115: Intel | N115: Xeon E5-2470 | O115: 2.3 | P115: 4.0 | Q115: 1 | R115: 300.0 | S115: 800 | T115: 1 | U115: 0 | V115: Windows Server 2008 R2 | W115: Variable speed fan control based on power or thermal readings,Low power I/O states,Processor or core reduced power states,Dynamic voltage and frequency scaling of processor(s) | X115: Variable speed fan control based on power or thermal readings,Low power I/O states,Processor or core reduced power states,Dynamic voltage and frequency scaling of processor(s) | Y115: 0.87 | Z115: 0.91 | AA115: 0.93 | AB115: 0.92 | AC115: 0.75 | AD115: 0.9 | AE115: 0.98 | AF115: 1.0 | AG115: 68.4 | AH115: 69.3 | AI115: 70.5 | AK115: 100 Vac, 60 Hz | AL115: 105.0 | AM115: 2012-07-12 | AN115: 2012-07-20 | AO115: 68 | AP115: 105 | AQ115: 800 | AR115: 0.13125 | AS115: =$AO115+($AP115-$AO115)/100*'Server Efficiency'!$O$7 -> 68.0444 | AT115: =$AO115+($AP115-$AO115)/100*'Server Efficiency'!$H$25 -> 68
C116: Server | D116: Lenovo Group Limited | E116: Lenovo | F116: RD430 | G116: 3069xxxx | H116: 1 or 2 Socket Server | I116: Rackmount | J116: No | K116: 2 | L116: 2 | M116: Intel | N116: Xeon E5-2470 | O116: 2.3 | P116: 4.0 | Q116: 1 | R116: 300.0 | S116: 800 | T116: 1 | U116: 0 | V116: Windows Server 2008 R2 | W116: Variable speed fan control based on power or thermal readings,Low power I/O states,Processor or core reduced power states,Dynamic voltage and frequency scaling of processor(s) | X116: Variable speed fan control based on power or thermal readings,Low power I/O states,Processor or core reduced power states,Dynamic voltage and frequency scaling of processor(s) | Y116: 0.87 | Z116: 0.91 | AA116: 0.93 | AB116: 0.92 | AC116: 0.75 | AD116: 0.9 | AE116: 0.98 | AF116: 1.0 | AG116: 68.4 | AH116: 69.3 | AI116: 70.5 | AK116: 100 Vac, 60 Hz | AL116: 105.0 | AM116: 2012-07-12 | AN116: 2012-07-20 | AO116: 68 | AP116: 105 | AQ116: 800 | AR116: 0.13125 | AS116: =$AO116+($AP116-$AO116)/100*'Server Efficiency'!$O$7 -> 68.0444 | AT116: =$AO116+($AP116-$AO116)/100*'Server Efficiency'!$H$25 -> 68
C117: Server | D117: Lenovo Group Limited | E117: Lenovo | F117: RD430 | G117: 3070xxxx | H117: 1 or 2 Socket Server | I117: Rackmount | J117: No | K117: 2 | L117: 2 | M117: Intel | N117: Xeon E5-2470 | O117: 2.3 | P117: 4.0 | Q117: 1 | R117: 300.0 | S117: 800 | T117: 1 | U117: 0 | V117: Windows Server 2008 R2 | W117: Variable speed fan control based on power or thermal readings,Low power I/O states,Processor or core reduced power states,Dynamic voltage and frequency scaling of processor(s) | X117: Variable speed fan control based on power or thermal readings,Low power I/O states,Processor or core reduced power states,Dynamic voltage and frequency scaling of processor(s) | Y117: 0.87 | Z117: 0.91 | AA117: 0.93 | AB117: 0.92 | AC117: 0.75 | AD117: 0.9 | AE117: 0.98 | AF117: 1.0 | AG117: 68.4 | AH117: 69.3 | AI117: 70.5 | AK117: 100 Vac, 60 Hz | AL117: 105.0 | AM117: 2012-07-12 | AN117: 2012-07-20 | AO117: 68 | AP117: 105 | AQ117: 800 | AR117: 0.13125 | AS117: =$AO117+($AP117-$AO117)/100*'Server Efficiency'!$O$7 -> 68.0444 | AT117: =$AO117+($AP117-$AO117)/100*'Server Efficiency'!$H$25 -> 68
C118: Server | D118: Lenovo Group Limited | E118: Lenovo | F118: RD430 | G118: 3071xxxx | H118: 1 or 2 Socket Server | I118: Rackmount | J118: No | K118: 2 | L118: 2 | M118: Intel | N118: Xeon E5-2470 | O118: 2.3 | P118: 4.0 | Q118: 1 | R118: 300.0 | S118: 800 | T118: 1 | U118: 0 | V118: Windows Server 2008 R2 | W118: Variable speed fan control based on power or thermal readings,Low power I/O states,Processor or core reduced power states,Dynamic voltage and frequency scaling of processor(s) | X118: Variable speed fan control based on power or thermal readings,Low power I/O states,Processor or core reduced power states,Dynamic voltage and frequency scaling of processor(s) | Y118: 0.87 | Z118: 0.91 | AA118: 0.93 | AB118: 0.92 | AC118: 0.75 | AD118: 0.9 | AE118: 0.98 | AF118: 1.0 | AG118: 68.4 | AH118: 69.3 | AI118: 70.5 | AK118: 100 Vac, 60 Hz | AL118: 105.0 | AM118: 2012-07-12 | AN118: 2012-07-20 | AO118: 68 | AP118: 105 | AQ118: 800 | AR118: 0.13125 | AS118: =$AO118+($AP118-$AO118)/100*'Server Efficiency'!$O$7 -> 68.0444 | AT118: =$AO118+($AP118-$AO118)/100*'Server Efficiency'!$H$25 -> 68
C119: Server | D119: Lenovo Group Limited | E119: Lenovo | F119: RD330 | G119: 3072xxxx | H119: 1 or 2 Socket Server | I119: Rackmount | J119: No | K119: 2 | L119: 2 | M119: Intel | N119: Xeon E5-2470 | O119: 2.3 | P119: 4.0 | Q119: 1 | R119: 300.0 | S119: 550 | T119: 1 | U119: 0 | V119: Windows Server 2008 R2 | W119: Variable speed fan control based on power or thermal readings,Low power I/O states,Processor or core reduced power states,Dynamic voltage and frequency scaling of processor(s) | X119: Variable speed fan control based on power or thermal readings,Low power I/O states,Processor or core reduced power states,Dynamic voltage and frequency scaling of processor(s) | Y119: 0.82 | Z119: 0.9 | AA119: 0.92 | AB119: 0.9 | AC119: 0.78 | AD119: 0.98 | AE119: 0.92 | AF119: 0.99 | AG119: 63.3 | AH119: 61.9 | AI119: 62.5 | AK119: 100 Vac, 50 Hz | AL119: 106.0 | AM119: 2012-07-12 | AN119: 2012-07-20 | AO119: 63 | AP119: 106 | AQ119: 550 | AR119: 0.1927272727 | AS119: =$AO119+($AP119-$AO119)/100*'Server Efficiency'!$O$7 -> 63.0516 | AT119: =$AO119+($AP119-$AO119)/100*'Server Efficiency'!$H$25 -> 63
C120: Server | D120: Lenovo Group Limited | E120: Lenovo | F120: RD330 | G120: 3073xxxx | H120: 1 or 2 Socket Server | I120: Rackmount | J120: No | K120: 2 | L120: 2 | M120: Intel | N120: Xeon E5-2470 | O120: 2.3 | P120: 4.0 | Q120: 1 | R120: 300.0 | S120: 550 | T120: 1 | U120: 0 | V120: Windows Server 2008 R2 | W120: Variable speed fan control based on power or thermal readings,Low power I/O states,Processor or core reduced power states,Dynamic voltage and frequency scaling of processor(s) | X120: Variable speed fan control based on power or thermal readings,Low power I/O states,Processor or core reduced power states,Dynamic voltage and frequency scaling of processor(s) | Y120: 0.82 | Z120: 0.9 | AA120: 0.92 | AB120: 0.9 | AC120: 0.78 | AD120: 0.98 | AE120: 0.92 | AF120: 0.99 | AG120: 63.3 | AH120: 61.9 | AI120: 62.5 | AK120: 100 Vac, 50 Hz | AL120: 106.0 | AM120: 2012-07-12 | AN120: 2012-07-20 | AO120: 63 | AP120: 106 | AQ120: 550 | AR120: 0.1927272727 | AS120: =$AO120+($AP120-$AO120)/100*'Server Efficiency'!$O$7 -> 63.0516 | AT120: =$AO120+($AP120-$AO120)/100*'Server Efficiency'!$H$25 -> 63
C121: Server | D121: Lenovo Group Limited | E121: Lenovo | F121: RD330 | G121: 3074xxxx | H121: 1 or 2 Socket Server | I121: Rackmount | J121: No | K121: 2 | L121: 2 | M121: Intel | N121: Xeon E5-2470 | O121: 2.3 | P121: 4.0 | Q121: 1 | R121: 300.0 | S121: 550 | T121: 1 | U121: 0 | V121: Windows Server 2008 R2 | W121: Variable speed fan control based on power or thermal readings,Low power I/O states,Processor or core reduced power states,Dynamic voltage and frequency scaling of processor(s) | X121: Variable speed fan control based on power or thermal readings,Low power I/O states,Processor or core reduced power states,Dynamic voltage and frequency scaling of processor(s) | Y121: 0.82 | Z121: 0.9 | AA121: 0.92 | AB121: 0.9 | AC121: 0.78 | AD121: 0.98 | AE121: 0.92 | AF121: 0.99 | AG121: 63.3 | AH121: 61.9 | AI121: 62.5 | AK121: 100 Vac, 50 Hz | AL121: 106.0 | AM121: 2012-07-12 | AN121: 2012-07-20 | AO121: 63 | AP121: 106 | AQ121: 550 | AR121: 0.1927272727 | AS121: =$AO121+($AP121-$AO121)/100*'Server Efficiency'!$O$7 -> 63.0516 | AT121: =$AO121+($AP121-$AO121)/100*'Server Efficiency'!$H$25 -> 63
C122: Server | D122: Lenovo Group Limited | E122: Lenovo | F122: RD330 | G122: 4302xxxx | H122: 1 or 2 Socket Server | I122: Rackmount | J122: No | K122: 2 | L122: 2 | M122: Intel | N122: Xeon E5-2470 | O122: 2.3 | P122: 4.0 | Q122: 1 | R122: 300.0 | S122: 550 | T122: 1 | U122: 0 | V122: Windows Server 2008 R2 | W122: Variable speed fan control based on power or thermal readings,Low power I/O states,Processor or core reduced power states,Dynamic voltage and frequency scaling of processor(s) | X122: Variable speed fan control based on power or thermal readings,Low power I/O states,Processor or core reduced power states,Dynamic voltage and frequency scaling of processor(s) | Y122: 0.82 | Z122: 0.9 | AA122: 0.92 | AB122: 0.9 | AC122: 0.78 | AD122: 0.98 | AE122: 0.92 | AF122: 0.99 | AG122: 63.3 | AH122: 61.9 | AI122: 62.5 | AK122: 100 Vac, 50 Hz | AL122: 106.0 | AM122: 2012-07-12 | AN122: 2012-07-20 | AO122: 63 | AP122: 106 | AQ122: 550 | AR122: 0.1927272727 | AS122: =$AO122+($AP122-$AO122)/100*'Server Efficiency'!$O$7 -> 63.0516 | AT122: =$AO122+($AP122-$AO122)/100*'Server Efficiency'!$H$25 -> 63
C123: Server | D123: Lenovo Group Limited | E123: Lenovo | F123: RD330 | G123: 4304xxxx | H123: 1 or 2 Socket Server | I123: Rackmount | J123: No | K123: 2 | L123: 2 | M123: Intel | N123: Xeon E5-2470 | O123: 2.3 | P123: 4.0 | Q123: 1 | R123: 300.0 | S123: 550 | T123: 1 | U123: 0 | V123: Windows Server 2008 R2 | W123: Variable speed fan control based on power or thermal readings,Low power I/O states,Processor or core reduced power states,Dynamic voltage and frequency scaling of processor(s) | X123: Variable speed fan control based on power or thermal readings,Low power I/O states,Processor or core reduced power states,Dynamic voltage and frequency scaling of processor(s) | Y123: 0.82 | Z123: 0.9 | AA123: 0.92 | AB123: 0.9 | AC123: 0.78 | AD123: 0.98 | AE123: 0.92 | AF123: 0.99 | AG123: 63.3 | AH123: 61.9 | AI123: 62.5 | AK123: 100 Vac, 50 Hz | AL123: 106.0 | AM123: 2012-07-12 | AN123: 2012-07-20 | AO123: 63 | AP123: 106 | AQ123: 550 | AR123: 0.1927272727 | AS123: =$AO123+($AP123-$AO123)/100*'Server Efficiency'!$O$7 -> 63.0516 | AT123: =$AO123+($AP123-$AO123)/100*'Server Efficiency'!$H$25 -> 63
C124: Server | D124: Lenovo Group Limited | E124: Lenovo | F124: RD330 | G124: 4305xxxx | H124: 1 or 2 Socket Server | I124: Rackmount | J124: No | K124: 2 | L124: 2 | M124: Intel | N124: Xeon E5-2470 | O124: 2.3 | P124: 4.0 | Q124: 1 | R124: 300.0 | S124: 550 | T124: 1 | U124: 0 | V124: Windows Server 2008 R2 | W124: Variable speed fan control based on power or thermal readings,Low power I/O states,Processor or core reduced power states,Dynamic voltage and frequency scaling of processor(s) | X124: Variable speed fan control based on power or thermal readings,Low power I/O states,Processor or core reduced power states,Dynamic voltage and frequency scaling of processor(s) | Y124: 0.82 | Z124: 0.9 | AA124: 0.92 | AB124: 0.9 | AC124: 0.78 | AD124: 0.98 | AE124: 0.92 | AF124: 0.99 | AG124: 63.3 | AH124: 61.9 | AI124: 62.5 | AK124: 100 Vac, 50 Hz | AL124: 106.0 | AM124: 2012-07-12 | AN124: 2012-07-20 | AO124: 63 | AP124: 106 | AQ124: 550 | AR124: 0.1927272727 | AS124: =$AO124+($AP124-$AO124)/100*'Server Efficiency'!$O$7 -> 63.0516 | AT124: =$AO124+($AP124-$AO124)/100*'Server Efficiency'!$H$25 -> 63
C125: Server | D125: Lenovo Group Limited | E125: Lenovo | F125: RD430 | G125: 4306xxxx | H125: 1 or 2 Socket Server | I125: Rackmount | J125: No | K125: 2 | L125: 2 | M125: Intel | N125: Xeon E5-2470 | O125: 2.3 | P125: 4.0 | Q125: 1 | R125: 300.0 | S125: 800 | T125: 1 | U125: 0 | V125: Windows Server 2008 R2 | W125: Variable speed fan control based on power or thermal readings,Low power I/O states,Processor or core reduced power states,Dynamic voltage and frequency scaling of processor(s) | X125: Variable speed fan control based on power or thermal readings,Low power I/O states,Processor or core reduced power states,Dynamic voltage and frequency scaling of processor(s) | Y125: 0.87 | Z125: 0.91 | AA125: 0.93 | AB125: 0.92 | AC125: 0.75 | AD125: 0.9 | AE125: 0.98 | AF125: 1.0 | AG125: 68.4 | AH125: 69.3 | AI125: 70.5 | AK125: 100 Vac, 60 Hz | AL125: 105.0 | AM125: 2012-07-12 | AN125: 2012-07-20 | AO125: 68 | AP125: 105 | AQ125: 800 | AR125: 0.13125 | AS125: =$AO125+($AP125-$AO125)/100*'Server Efficiency'!$O$7 -> 68.0444 | AT125: =$AO125+($AP125-$AO125)/100*'Server Efficiency'!$H$25 -> 68
C126: Server | D126: Lenovo Group Limited | E126: Lenovo | F126: RD330 | G126: RD330XXX | H126: 1 or 2 Socket Server | I126: Rackmount | J126: No | K126: 2 | L126: 2 | M126: Intel | N126: Xeon E5-2470 | O126: 2.3 | P126: 4.0 | Q126: 1 | R126: 300.0 | S126: 550 | T126: 1 | U126: 0 | V126: Windows Server 2008 R2 | W126: Variable speed fan control based on power or thermal readings,Low power I/O states,Processor or core reduced power states,Dynamic voltage and frequency scaling of processor(s) | X126: Variable speed fan control based on power or thermal readings,Low power I/O states,Processor or core reduced power states,Dynamic voltage and frequency scaling of processor(s) | Y126: 0.82 | Z126: 0.9 | AA126: 0.92 | AB126: 0.9 | AC126: 0.78 | AD126: 0.98 | AE126: 0.92 | AF126: 0.99 | AG126: 63.3 | AH126: 61.9 | AI126: 62.5 | AK126: 100 Vac, 50 Hz | AL126: 106.0 | AM126: 2012-07-12 | AN126: 2012-07-20 | AO126: 63 | AP126: 106 | AQ126: 550 | AR126: 0.1927272727 | AS126: =$AO126+($AP126-$AO126)/100*'Server Efficiency'!$O$7 -> 63.0516 | AT126: =$AO126+($AP126-$AO126)/100*'Server Efficiency'!$H$25 -> 63
C127: Server | D127: Lenovo Group Limited | E127: Lenovo | F127: RD430 | G127: RD430XXX | H127: 1 or 2 Socket Server | I127: Rackmount | J127: No | K127: 2 | L127: 2 | M127: Intel | N127: Xeon E5-2470 | O127: 2.3 | P127: 4.0 | Q127: 1 | R127: 300.0 | S127: 800 | T127: 1 | U127: 0 | V127: Windows Server 2008 R2 | W127: Variable speed fan control based on power or thermal readings,Low power I/O states,Processor or core reduced power states,Dynamic voltage and frequency scaling of processor(s) | X127: Variable speed fan control based on power or thermal readings,Low power I/O states,Processor or core reduced power states,Dynamic voltage and frequency scaling of processor(s) | Y127: 0.87 | Z127: 0.91 | AA127: 0.93 | AB127: 0.92 | AC127: 0.75 | AD127: 0.9 | AE127: 0.98 | AF127: 1.0 | AG127: 68.4 | AH127: 69.3 | AI127: 70.5 | AK127: 100 Vac, 60 Hz | AL127: 105.0 | AM127: 2012-07-12 | AN127: 2012-07-20 | AO127: 68 | AP127: 105 | AQ127: 800 | AR127: 0.13125 | AS127: =$AO127+($AP127-$AO127)/100*'Server Efficiency'!$O$7 -> 68.0444 | AT127: =$AO127+($AP127-$AO127)/100*'Server Efficiency'!$H$25 -> 68
C128: Server | D128: Lenovo Group Limited | E128: Lenovo | F128: TD330 | G128: TD330XXX | H128: 1 or 2 Socket Server | I128: Tower/Pedestal | J128: No | K128: 2 | L128: 1 | M128: Intel | N128: Xeon E5-2470 | O128: 2.3 | P128: 4.0 | Q128: 1 | R128: 1024.0 | S128: 800 | T128: 1 | U128: 0 | V128: Windows Server 2008 R2 | W128: Variable speed fan control based on power or thermal readings,Low power I/O states,Processor or core reduced power states,Dynamic voltage and frequency scaling of processor(s) | X128: Variable speed fan control based on power or thermal readings,Low power I/O states,Processor or core reduced power states,Dynamic voltage and frequency scaling of processor(s) | Y128: 0.87 | Z128: 0.91 | AA128: 0.93 | AB128: 0.92 | AC128: 0.75 | AD128: 0.9 | AE128: 0.98 | AF128: 1.0 | AG128: 53.9 | AH128: 54.9 | AI128: 54.3 | AK128: 115 Vac, 60 Hz | AL128: 96.5 | AM128: 2012-09-26 | AN128: 2012-10-15 | AO128: 53 | AP128: 96.5 | AQ128: 800 | AR128: 0.120625 | AS128: =$AO128+($AP128-$AO128)/100*'Server Efficiency'!$O$7 -> 53.0522 | AT128: =$AO128+($AP128-$AO128)/100*'Server Efficiency'!$H$25 -> 53
C129: Server | D129: Lenovo Group Limited | E129: Lenovo | F129: TD330 | G129: TD330XXX. | H129: 1 or 2 Socket Server | I129: Tower/Pedestal | J129: No | K129: 2 | L129: 2 | M129: Intel | N129: Xeon E5-2470 | O129: 2.3 | P129: 4.0 | Q129: 1 | R129: 1024.0 | S129: 800 | T129: 1 | U129: 0 | V129: Windows Server 2008 R2 | W129: Variable speed fan control based on power or thermal readings,Low power I/O states,Processor or core reduced power states,Dynamic voltage and frequency scaling of processor(s) | X129: Variable speed fan control based on power or thermal readings,Low power I/O states,Processor or core reduced power states,Dynamic voltage and frequency scaling of processor(s) | Y129: 0.87 | Z129: 0.91 | AA129: 0.93 | AB129: 0.92 | AC129: 0.75 | AD129: 0.9 | AE129: 0.98 | AF129: 1.0 | AG129: 70.3 | AH129: 70.5 | AI129: 72.3 | AK129: 115 Vac, 60 Hz | AL129: 118.0 | AM129: 2012-09-26 | AN129: 2012-10-15 | AO129: 70 | AP129: 118 | AQ129: 800 | AR129: 0.1475 | AS129: =$AO129+($AP129-$AO129)/100*'Server Efficiency'!$O$7 -> 70.0576 | AT129: =$AO129+($AP129-$AO129)/100*'Server Efficiency'!$H$25 -> 70
C130: Server | D130: Lenovo Group Limited | E130: Lenovo | F130: TS130 | G130: TS130XXX | H130: 1 or 2 Socket Server | I130: Tower/Pedestal | J130: No | K130: 1 | L130: 1 | M130: Intel | N130: Xeon E3-1275 | O130: 3.4 | P130: 4.0 | Q130: 1 | R130: 500.0 | S130: 280 | T130: 1 | U130: 0 | V130: Windows Server 2008 R2 | W130: Variable speed fan control based on power or thermal readings,Low power I/O states,Processor or core reduced power states,Dynamic voltage and frequency scaling of processor(s) | X130: Variable speed fan control based on power or thermal readings,Low power I/O states,Processor or core reduced power states,Dynamic voltage and frequency scaling of processor(s) | Z130: 0.84 | AA130: 0.86 | AB130: 0.83 | AD130: 0.98 | AE130: 0.99 | AF130: 0.99 | AG130: 26.58 | AH130: 27.0 | AI130: 26.66 | AK130: 115 Vac, 60 Hz | AL130: 82.6 | AM130: 2011-06-13 | AN130: 2012-10-25 | AO130: 26 | AP130: 82.6 | AQ130: 280 | AR130: 0.295 | AS130: =$AO130+($AP130-$AO130)/100*'Server Efficiency'!$O$7 -> 26.06792 | AT130: =$AO130+($AP130-$AO130)/100*'Server Efficiency'!$H$25 -> 26
C131: Server | D131: Lenovo Group Limited | E131: Lenovo | F131: TS230 | G131: TS230XXX | H131: 1 or 2 Socket Server | I131: Tower/Pedestal | J131: No | K131: 1 | L131: 1 | M131: Intel | N131: Xeon E3-1275 | O131: 3.4 | P131: 4.0 | Q131: 1 | R131: 500.0 | S131: 280 | T131: 1 | U131: 0 | V131: Windows Server 2008 R2 | W131: Variable speed fan control based on power or thermal readings,Low power I/O states,Processor or core reduced power states,Dynamic voltage and frequency scaling of processor(s) | X131: Variable speed fan control based on power or thermal readings,Low power I/O states,Processor or core reduced power states,Dynamic voltage and frequency scaling of processor(s) | Z131: 0.84 | AA131: 0.86 | AB131: 0.83 | AD131: 0.98 | AE131: 0.99 | AF131: 0.99 | AG131: 26.58 | AH131: 27.0 | AI131: 26.66 | AK131: 115 Vac, 60 Hz | AL131: 82.6 | AM131: 2011-06-13 | AN131: 2012-10-25 | AO131: 26 | AP131: 82.6 | AQ131: 280 | AR131: 0.295 | AS131: =$AO131+($AP131-$AO131)/100*'Server Efficiency'!$O$7 -> 26.06792 | AT131: =$AO131+($AP131-$AO131)/100*'Server Efficiency'!$H$25 -> 26
C132: Server | D132: Lenovo Group Limited | E132: Lenovo | F132: TS430 | G132: TS430XXX | H132: 1 or 2 Socket Server | I132: Tower/Pedestal | J132: No | K132: 1 | L132: 1 | M132: Intel | N132: Xeon E3-1270 | O132: 3.4 | P132: 4.0 | Q132: 1 | R132: 1000.0 | S132: 400 | T132: 1 | U132: 0 | V132: Windows Server 2008 R2 | W132: Variable speed fan control based on power or thermal readings,Low power I/O states,Processor or core reduced power states,Dynamic voltage and frequency scaling of processor(s) | X132: Variable speed fan control based on power or thermal readings,Low power I/O states,Processor or core reduced power states,Dynamic voltage and frequency scaling of processor(s) | Z132: 0.84 | AA132: 0.86 | AB132: 0.83 | AD132: 0.98 | AE132: 0.99 | AF132: 0.99 | AG132: 37.88 | AH132: 38.03 | AI132: 45.54 | AK132: 115 Vac, 60 Hz | AL132: 61.2 | AM132: 2011-06-20 | AN132: 2012-10-25 | AO132: 37 | AP132: 61.2 | AQ132: 400 | AR132: 0.153 | AS132: =$AO132+($AP132-$AO132)/100*'Server Efficiency'!$O$7 -> 37.02904 | AT132: =$AO132+($AP132-$AO132)/100*'Server Efficiency'!$H$25 -> 37
C133: Server | D133: Lenovo Group Limited | E133: Lenovo | F133: TS530 | G133: TS530XXX | H133: 1 or 2 Socket Server | I133: Tower/Pedestal | J133: No | K133: 1 | L133: 1 | M133: Intel | N133: Xeon E3-1270 | O133: 3.4 | P133: 4.0 | Q133: 1 | R133: 1000.0 | S133: 400 | T133: 1 | U133: 0 | V133: Windows Server 2008 R2 | W133: Variable speed fan control based on power or thermal readings,Low power I/O states,Processor or core reduced power states,Dynamic voltage and frequency scaling of processor(s) | X133: Variable speed fan control based on power or thermal readings,Low power I/O states,Processor or core reduced power states,Dynamic voltage and frequency scaling of processor(s) | Z133: 0.84 | AA133: 0.86 | AB133: 0.83 | AD133: 0.98 | AE133: 0.99 | AF133: 0.99 | AG133: 37.88 | AH133: 38.03 | AI133: 45.54 | AK133: 115 Vac, 60 Hz | AL133: 61.2 | AM133: 2011-06-20 | AN133: 2012-10-25 | AO133: 37 | AP133: 61.2 | AQ133: 400 | AR133: 0.153 | AS133: =$AO133+($AP133-$AO133)/100*'Server Efficiency'!$O$7 -> 37.02904 | AT133: =$AO133+($AP133-$AO133)/100*'Server Efficiency'!$H$25 -> 37
C134: Server | D134: Lenovo Group Limited | E134: ThinkServer RD210 | F134: 3796 | G134: 2DX | H134: Computer Server | I134: 1U | J134: Yes | K134: 2.0 | L134: 2.0 | M134: Intel | N134: Xeon | O134: 2.53 | P134: 4.0 | Q134: 1.0 | R134: 73.0 | S134: 675.0 | T134: 2.0 | U134: 1.0 | V134: Windows Server 2008 Enterprise SP1 | W134: Dynamic voltage and frequency scaling of processors, processor or core reduced power states, power capping, variable speed fan control | X134: Dynamic voltage and frequency scaling of processors, processor or core reduced power states, power capping, variable speed fan control | Y134: 85.2 | Z134: 90.4 | AA134: 92.7 | AB134: 91.0 | AC134: 0.697 | AD134: 0.866 | AE134: 0.967 | AF134: 0.986 | AG134: 140.6 | AH134: 137.4 | AI134: 138.1 | AJ134: N/A | AK134: 230V / 60Hz | AL134: 284.8 | AO134: 140 | AP134: 284 | AQ134: 675 | AR134: 0.4207407407 | AS134: =$AO134+($AP134-$AO134)/100*'Server Efficiency'!$O$7 -> 140.1728 | AT134: =$AO134+($AP134-$AO134)/100*'Server Efficiency'!$H$25 -> 140
C135: Server | D135: Lenovo Group Limited | E135: ThinkServer RD220 | F135: 3798 | G135: 1LX | H135: Computer Server | I135: 2U | J135: Yes | K135: 2.0 | L135: 2.0 | M135: Intel | N135: Xeon | O135: 2.53 | P135: 2.0 | Q135: 1.0 | R135: 73.0 | S135: 675.0 | T135: 2.0 | U135: 1.0 | V135: Windows Server 2008 Enterprise SP1 | W135: Dynamic voltage and frequency scaling of processors, processor or core reduced power states, power capping, variable speed fan control | X135: Dynamic voltage and frequency scaling of processors, processor or core reduced power states, power capping, variable speed fan control | Y135: 85.2 | Z135: 90.4 | AA135: 92.7 | AB135: 91.0 | AC135: 0.697 | AD135: 0.866 | AE135: 0.967 | AF135: 0.986 | AG135: 121.8 | AH135: 121.2 | AI135: 121.9 | AJ135: N/A | AK135: 230V / 60Hz | AL135: 250.2 | AO135: 121 | AP135: 250 | AQ135: 675 | AR135: 0.3703703704 | AS135: =$AO135+($AP135-$AO135)/100*'Server Efficiency'!$O$7 -> 121.1548 | AT135: =$AO135+($AP135-$AO135)/100*'Server Efficiency'!$H$25 -> 121
C136: Server | D136: Lenovo Group Limited | E136: ThinkServer RS210 | F136: 6534 | G136: 11X | H136: Computer Server | I136: 1U | J136: Yes | K136: 1.0 | L136: 1.0 | M136: Intel | N136: Xeon | O136: 2.4 | P136: 2.0 | Q136: 2.0 | R136: 146.0 | S136: 351.0 | T136: 1.0 | U136: 1.0 | V136: Windows Server 2008 Eneterprise SP1 | W136: Dynamic voltage and frequency scaling of processors, processor or core reduced power states, power capping, variable speed fan control | X136: Dynamic voltage and frequency scaling of processors, processor or core reduced power states, power capping, variable speed fan control | Y136: 74.0 | Z136: 82.6 | AA136: 87.1 | AB136: 85.7 | AC136: 0.7 | AD136: 0.84 | AE136: 0.95 | AF136: 0.98 | AG136: 60.2 | AH136: 60.6 | AI136: 60.6 | AJ136: N/A | AK136: 230V / 60Hz | AL136: 127.7 | AO136: 60 | AP136: 127 | AQ136: 351 | AR136: 0.3618233618 | AS136: =$AO136+($AP136-$AO136)/100*'Server Efficiency'!$O$7 -> 60.0804 | AT136: =$AO136+($AP136-$AO136)/100*'Server Efficiency'!$H$25 -> 60
C137: Server | D137: Lenovo Group Limited | E137: ThinkServer TD200x | F137: 3822 | G137: 43X | H137: Computer Server | I137: 5U | J137: Yes | K137: 2.0 | L137: 2.0 | M137: Intel | N137: Xeon | O137: 2.4 | P137: 12.0 | Q137: 1.0 | R137: 73.0 | S137: 920.0 | T137: 2.0 | U137: 1.0 | V137: Windows Server 2008 Enterprise SP1 | W137: Dynamic voltage and frequency scaling of processors, processor or core reduced power states, power capping, variable speed fan control | X137: Dynamic voltage and frequency scaling of processors, processor or core reduced power states, power capping, variable speed fan control | Y137: 74.4 | Z137: 85.0 | AA137: 88.6 | AB137: 86.8 | AC137: 0.845 | AD137: 0.903 | AE137: 0.959 | AF137: 0.975 | AG137: 157.8 | AH137: 157.3 | AI137: 157.8 | AJ137: N/A | AK137: 230V / 60Hz | AL137: 290.2 | AO137: 157 | AP137: 290 | AQ137: 920 | AR137: 0.3152173913 | AS137: =$AO137+($AP137-$AO137)/100*'Server Efficiency'!$O$7 -> 157.1596 | AT137: =$AO137+($AP137-$AO137)/100*'Server Efficiency'!$H$25 -> 157
C138: Server | D138: Lenovo Group Limited | E138: ThinkServer TS200 | F138: 6530 | G138: 15X | H138: Computer Server | I138: Tower | J138: Yes | K138: 1.0 | L138: 1.0 | M138: Intel | N138: Xeon X3450 | O138: 2.66 | P138: 4.0 | Q138: 1.0 | R138: 250.0 | S138: 430.0 | T138: 2.0 | U138: 1.0 | V138: Windows Server 2008 Eneterprise SP1 | W138: Dynamic voltage and frequency scaling of processors, processor or core reduced power states, power capping, variable speed fan control | X138: Dynamic voltage and frequency scaling of processors, processor or core reduced power states, power capping, variable speed fan control | Y138: 79.5 | Z138: 87.6 | AA138: 91.5 | AB138: 90.8 | AC138: 0.822 | AD138: 0.929 | AE138: 0.982 | AF138: 0.993 | AG138: 64.0 | AH138: 64.8 | AI138: 65.1 | AJ138: N/A | AK138: 230V / 60Hz | AL138: 15.7 | AO138: 64 | AP138: 15.7 | AQ138: 430 | AR138: =AP138/AQ138 -> 0.03651162791 | AS138: =$AO138+($AP138-$AO138)/100*'Server Efficiency'!$O$7 -> 63.94204 | AT138: =$AO138+($AP138-$AO138)/100*'Server Efficiency'!$H$25 -> 64
C139: Server | D139: Quanta Computer Inc. | E139: Quanta | F139: QSSC-S4R | G139: QSSC-S4R | H139: Computer Server | I139: 4U | J139: No | K139: 4.0 | L139: 2.0 | M139: Intel | N139: E7540 | O139: 2.0 | P139: 8.0 | Q139: 1.0 | R139: 80.0 | S139: 850.0 | T139: 2.0 | U139: 1.0 | V139: Microsoft Windows Server 2008 EM64T | W139: Dynamic voltage and frequency scaling of processors, processor or core reduced power states, variable speed fan control | X139: N/A | Y139: 80.2 | Z139: 89.2 | AA139: 92.30000000000001 | AB139: 90.60000000000001 | AC139: 0.899 | AD139: 0.965 | AE139: 0.995 | AF139: 0.999 | AG139: 271.8 | AH139: 278.7 | AI139: N/A | AJ139: N/A | AK139: 115V / 60Hz | AL139: 408.6 | AO139: =VALUE(LEFT(AG139,3)) -> 271 | AP139: =VALUE(LEFT(AL139,4)) -> 408 | AQ139: =VALUE(LEFT(S139,4)) -> 850 | AR139: 0.48 | AS139: =$AO139+($AP139-$AO139)/100*'Server Efficiency'!$O$7 -> 271.1644 | AT139: =$AO139+($AP139-$AO139)/100*'Server Efficiency'!$H$25 -> 271
AO140: =AVERAGE(AO9:AO139) -> 115.2061069 | AP140: 210.2152672 | AQ140: 703.7251908 | AR140: 0.304675777 | AS140: 115.3201179 | AT140: 115.2061069
E142: Percent of Time at Workload | H142: Reduction in Nameplate Power
E143: Server Workload | F143: Percent of Time | G143: Hours Annually | H143: PM Disabled | I143: PM Enabled
E144: 1 | F144: 0 | G144: =F144*8760 -> 0 | H144: =(-0.435*$E144) + 0.435 -> 0 | I144: =-(24.82*($E144^6))+(80.71*($E144^5))-(95.72*($E144^4)) +( 49.96*($E144^3)) -(11.12*($E144^2)) + (0.5371*($E144))+ 0.4548 -> 0.0019
E145: 0.9 | F145: 0 | G145: 0 | H145: 0.0435 | I145: 0.01802028
E146: 0.8 | F146: 0 | G146: 0 | H146: 0.087 | I146: 0.08092672
E147: 0.7 | F147: 0 | G147: 0 | H147: 0.1305 | I147: 0.18075952
E148: 0.6 | F148: 0 | G148: 0 | H148: 0.174 | I148: 0.27791568
E149: 0.5 | F149: 0 | G149: 0 | H149: 0.2175 | I149: 0.340225
E150: 0.4 | F150: 0 | G150: 0 | H150: 0.261 | I150: 0.36225568
E151: 0.3 | F151: 0 | G151: 0 | H151: 0.3045 | I151: 0.36674952
E152: 0.2 | F152: 0 | G152: 0 | H152: 0.348 | I152: 0.38818672
E153: 0.1 | F153: 1 | G153: 8760 | H153: 0.3915 | I153: 0.43848028
E154: -1.110223025e-16 | F154: 0 | G154: 0 | H154: 0.435 | I154: 0.4548
E155: Total | F155: =SUM(F144:F154) -> 1 | G155: =SUM(G144:G154) -> 8760

Sheet Case Definition
B2: Case Definition
F3: =RIGHT(B3,12) -> 
B5: Baseline Case Definition
B6: Standard | C6: Type | D6: Size | E6: Allowances | F6: Voltage | G6: Coefficients
G7: X2 | H7: X1 | I7: X0
B8: =CONCATENATE(C8,D8) -> Double Conversion (VFI-S)10<20kVA | C8: Double Conversion (VFI-S) | D8: 10<20kVA | E8: None | F8: 400Y/230Vac | G8: 0.03831553441 | H8: 0.01611372913 | I8: 0.04462675073
B9: =CONCATENATE(C9,D9) -> Double Conversion (VFI-S)20<40kVA | C9: Double Conversion (VFI-S) | D9: 20<40kVA | E9: None | F9: 400Y/230Vac | G9: 0.03072072172 | H9: 0.02213829307 | I9: 0.04010079466
B10: Double Conversion (VFI-S)40<200kVA | C10: Double Conversion (VFI-S) | D10: 40<200kVA | E10: None | F10: 400Y/230Vac | G10: 0.03308113452 | H10: 0.02126808007 | I10: 0.03212002863
B11: Double Conversion (VFI-S)200kVA and up | C11: Double Conversion (VFI-S) | D11: 200kVA and up | E11: None | F11: 400Y/230Vac | G11: 0.02495127934 | H11: 0.02724417059 | I11: 0.02280087303
B12: Line Interactive (VI-S)10<20kVA | C12: Line Interactive (VI-S) | D12: 10<20kVA | E12: None | F12: 400Y/230Vac | G12: 0.04353167397 | H12: 0.008906633907 | I12: 0.0288931471
B13: Line Interactive (VI-S)20<40kVA | C13: Line Interactive (VI-S) | D13: 20<40kVA | E13: None | F13: 400Y/230Vac | G13: 0.04305015787 | H13: 0.003891261409 | I13: 0.02857491171
B14: Line Interactive (VI-S)40<200kVA | C14: Line Interactive (VI-S) | D14: 40<200kVA | E14: None | F14: 400Y/230Vac | G14: 0.04257658779 | H14: -0.001075074994 | I14: 0.0282619061
B15: Line Interactive (VI-S)200kVA and up | C15: Line Interactive (VI-S) | D15: 200kVA and up | E15: None | F15: 400Y/230Vac | G15: 0.03469511666 | H15: 0.004423627374 | I15: 0.01951600312
B16: Standby (VFD)10<20kVA | C16: Standby (VFD) | D16: 10<20kVA | E16: None | F16: 400Y/230Vac | G16: 0.001876087732 | H16: 0.02802755321 | I16: 0.01172804312
B17: Standby (VFD)20<40kVA | C17: Standby (VFD) | D17: 20<40kVA | E17: None | F17: 400Y/230Vac | G17: 0.005090801581 | H17: 0.01840659509 | I17: 0.01261594432
B18: Standby (VFD)40<200kVA | C18: Standby (VFD) | D18: 40<200kVA | E18: None | F18: 400Y/230Vac | G18: 0.001829303931 | H18: 0.01758235166 | I18: 0.01148185343
B19: Standby (VFD)200kVA and up | C19: Standby (VFD) | D19: 200kVA and up | E19: None | F19: 400Y/230Vac | G19: 0.001784201619 | H19: 0.007346939229 | I19: 0.01124333487
G21: Baseline Case Coefficients
G22: X2 | H22: X1 | I22: X0
G23: =VLOOKUP('Electrical System Efficiency'!$N$16&'Electrical System Efficiency'!$N$18,'Case Definition'!$B$8:$I$19,6,FALSE) -> 0.03831553441 | H23: =VLOOKUP('Electrical System Efficiency'!$N$16&'Electrical System Efficiency'!$N$18,'Case Definition'!$B$8:$I$19,7,FALSE) -> 0.01611372913 | I23: =VLOOKUP('Electrical System Efficiency'!$N$16&'Electrical System Efficiency'!$N$18,'Case Definition'!$B$8:$I$19,8,FALSE) -> 0.04462675073
B25: Proposed Case Definition
B26: Standard | C26: Type | D26: Size | E26: Allowances | F26: Voltage | G26: Coefficients
G27: X2 | H27: X1 | I27: X0
B28: =CONCATENATE(C28,D28) -> Double Conversion (VFI-S)10<20kVA | C28: Double Conversion (VFI-S) | D28: 10<20kVA | E28: None | F28: 400Y/230Vac | G28: 0.03831553441 | H28: 0.01611372913 | I28: 0.04462675073
B29: =CONCATENATE(C29,D29) -> Double Conversion (VFI-S)20<40kVA | C29: Double Conversion (VFI-S) | D29: 20<40kVA | E29: None | F29: 400Y/230Vac | G29: 0.03072072172 | H29: 0.02213829307 | I29: 0.04010079466
B30: Double Conversion (VFI-S)40<200kVA | C30: Double Conversion (VFI-S) | D30: 40<200kVA | E30: None | F30: 400Y/230Vac | G30: 0.03308113452 | H30: 0.02126808007 | I30: 0.03212002863
B31: Double Conversion (VFI-S)200kVA and up | C31: Double Conversion (VFI-S) | D31: 200kVA and up | E31: None | F31: 400Y/230Vac | G31: 0.02495127934 | H31: 0.02724417059 | I31: 0.02280087303
B32: Line Interactive (VI-S)10<20kVA | C32: Line Interactive (VI-S) | D32: 10<20kVA | E32: None | F32: 400Y/230Vac | G32: 0.04353167397 | H32: 0.008906633907 | I32: 0.0288931471
B33: Line Interactive (VI-S)20<40kVA | C33: Line Interactive (VI-S) | D33: 20<40kVA | E33: None | F33: 400Y/230Vac | G33: 0.04305015787 | H33: 0.003891261409 | I33: 0.02857491171
B34: Line Interactive (VI-S)40<200kVA | C34: Line Interactive (VI-S) | D34: 40<200kVA | E34: None | F34: 400Y/230Vac | G34: 0.04257658779 | H34: -0.001075074994 | I34: 0.0282619061
B35: Line Interactive (VI-S)200kVA and up | C35: Line Interactive (VI-S) | D35: 200kVA and up | E35: None | F35: 400Y/230Vac | G35: 0.03469511666 | H35: 0.004423627374 | I35: 0.01951600312
B36: Standby (VFD)10<20kVA | C36: Standby (VFD) | D36: 10<20kVA | E36: None | F36: 400Y/230Vac | G36: 0.001876087732 | H36: 0.02802755321 | I36: 0.01172804312
B37: Standby (VFD)20<40kVA | C37: Standby (VFD) | D37: 20<40kVA | E37: None | F37: 400Y/230Vac | G37: 0.005090801581 | H37: 0.01840659509 | I37: 0.01261594432
B38: Standby (VFD)40<200kVA | C38: Standby (VFD) | D38: 40<200kVA | E38: None | F38: 400Y/230Vac | G38: 0.001829303931 | H38: 0.01758235166 | I38: 0.01148185343
B39: Standby (VFD)200kVA and up | C39: Standby (VFD) | D39: 200kVA and up | E39: None | F39: 400Y/230Vac | G39: 0.001784201619 | H39: 0.007346939229 | I39: 0.01124333487
G41: Proposed Case Coefficients
G42: X2 | H42: X1 | I42: X0
G43: =IFERROR(VLOOKUP('Electrical System Efficiency'!D16&'Electrical System Efficiency'!D18,'Case Definition'!$B$28:$I$39,6,FALSE),0) -> 0.03831553441 | H43: =IFERROR(VLOOKUP('Electrical System Efficiency'!D16&'Electrical System Efficiency'!D18,'Case Definition'!$B$28:$I$39,7,FALSE),0) -> 0.01611372913 | I43: =IFERROR(VLOOKUP('Electrical System Efficiency'!D16&'Electrical System Efficiency'!D18,'Case Definition'!$B$28:$I$39,8,FALSE),0) -> 0.04462675073

Sheet Summary
C3: Summary
C4: Note: All information on this tab is READ-ONLY. To edit, see the previous tabs.
C8: Annual Energy Consumption | F8: Baseline | H8: Proposed | J8: Savings
C10: IT (kWh) | F10: ='Server Efficiency'!S7 -> 0 | H10: ='Server Efficiency'!S9 -> 0 | J10: =F10-H10 -> 0
C12: Electrical System (kWh) | F12: ='Electrical System Efficiency'!Y7 -> 0 | H12: ='Electrical System Efficiency'!$Y$9 -> 0 | J12: =F12-H12 -> 0
C14: Total (kWh) | F14: =SUM(F10:F12) -> 0 | H14: =SUM(H10:H12) -> 0 | J14: =SUM(J10:J12) -> 0
C16: Total annual energy savings (kWh) | J16: =J14 -> 0
C18: Energy Model Inputs | D18: Baseline | F18: Proposed | H18: Baseline Startup | J18: Proposed Startup
C20: IT (kW) | D20: =F10/8760 -> 0 | F20: =H10/8760 -> 0 | H20: ='Startup Server Efficiency'!O27/8760 -> 0 | J20: =Instructions!$H$27 -> 0
C22: Electrical System (kW) | D22: =F12/8760 -> 0 | F22: =H12/8760 -> 0 | H22: ='Electrical System Efficiency'!Q33 -> 0 | J22: =IF('Electrical System Efficiency'!B13=2,'Electrical System Efficiency'!G52,'Electrical System Efficiency'!G33) -> 0
C24: Note: The values above are intended to be used as inputs to the energy modeling software that is being submitted for the Minimum Energy Performance prerequisite. The inputs for the IT kW and the Electrical System kW should be assigned to the appropriate spaces. If the loads need to be distributed over multiple spaces enusre sure that the same ratio of loads is applied across all models. In order to be consistent with the calculations performed in this spreadsheet, the assigned loads should be taken from the values in this box and the operating schedules should be set at 100% load for all hours of the year. If the energy consumption values for the IT, or Electrical system from the energy model are different from the values calculated in the box above, additional justification beyond this spreadsheet will be required to demonstrate the amount of savings claimed.
C26: Baseline
C27: IT (servers) | D27: =F10 -> 0
C28: Electrical System | D28: =F12 -> 0
C29: Total | D29: =F14 -> 0
C31: Proposed
C32: IT (servers) | D32: =H10 -> 0
C33: Electrical System | D33: =H12 -> 0
C34: Total | D34: =H14 -> 0
